Workbook

Sheet ShortReport
A128: =traduzioni!A180 -> NOTAS
A129: =traduzioni!A181 -> Antes de la construcción, todos los cálculos deben ser comprobados y aprobados por el proyectista responsable.
A130: =traduzioni!A182 -> Los valores de resistencia mecánica y la geometría se refieren a la certificación del producto.
A131: =traduzioni!A183 -> La comprobación de la resistencia del sistema lado anclaje al hormigón deberá realizarse por separado siguiendo las indicaciones de ETA-22/0806 - Annex E1.
A132: =traduzioni!A184 -> Todos los cálculos deben ser comprobados y aprobados por el proyectista responsable antes de su ejecución. El proyectista tiene la obligación de comprobar en cada uso que los datos sean conformes con las normativas vigentes y con el proyecto. La responsabilidad final de elegir el producto apropiado para una aplicación específica recae en el proyectista.
A133: =traduzioni!A185 -> Los resultados obtenidos en esta ficha son de carácter indicativo y deben considerarse como un servicio técnico-comercial en el ámbito de la actividad de ventas de Rotho Blaas srl. El número y el espesor de las puntas deben ser determinados por el proyectista responsable, que tiene la obligación de comprobar la exactitud de los resultados obtenidos mediante el procesamiento de los datos introducidos. Rotho Blaas srl no garantiza la conformidad con la normativa vigente ni la proyección de los cálculos realizados mediante esta hoja de cálculo. En concreto, tras modificar las disposiciones pertinentes, como, por ejemplo, normas, aprobaciones, etc., el programa puede dejar de ser válido, parcial o completamente. Rotho Blaas srl no ofrece ninguna garantía y en ningún caso podrá ser considerado responsable por daños o consecuencias, directas o indirectas (garantía por defectos, garantía por mal funcionamiento, responsabilidad del producto o legal, etc.). El Usuario declara que utilizará la hoja de cálculo como profesional con la obligación y la responsabilidad de comprobar que la hoja de cálculo responda a sus necesidades específicas.

Sheet CompleteReport
A366: =traduzioni!A180 -> NOTAS
A367: =traduzioni!A181 -> Antes de la construcción, todos los cálculos deben ser comprobados y aprobados por el proyectista responsable.
A368: =traduzioni!A182 -> Los valores de resistencia mecánica y la geometría se refieren a la certificación del producto.
A369: =traduzioni!A183 -> La comprobación de la resistencia del sistema lado anclaje al hormigón deberá realizarse por separado siguiendo las indicaciones de ETA-22/0806 - Annex E1.
A370: =traduzioni!A184 -> Todos los cálculos deben ser comprobados y aprobados por el proyectista responsable antes de su ejecución. El proyectista tiene la obligación de comprobar en cada uso que los datos sean conformes con las normativas vigentes y con el proyecto. La responsabilidad final de elegir el producto apropiado para una aplicación específica recae en el proyectista.
A371: =traduzioni!A185 -> Los resultados obtenidos en esta ficha son de carácter indicativo y deben considerarse como un servicio técnico-comercial en el ámbito de la actividad de ventas de Rotho Blaas srl. El número y el espesor de las puntas deben ser determinados por el proyectista responsable, que tiene la obligación de comprobar la exactitud de los resultados obtenidos mediante el procesamiento de los datos introducidos. Rotho Blaas srl no garantiza la conformidad con la normativa vigente ni la proyección de los cálculos realizados mediante esta hoja de cálculo. En concreto, tras modificar las disposiciones pertinentes, como, por ejemplo, normas, aprobaciones, etc., el programa puede dejar de ser válido, parcial o completamente. Rotho Blaas srl no ofrece ninguna garantía y en ningún caso podrá ser considerado responsable por daños o consecuencias, directas o indirectas (garantía por defectos, garantía por mal funcionamiento, responsabilidad del producto o legal, etc.). El Usuario declara que utilizará la hoja de cálculo como profesional con la obligación y la responsabilidad de comprobar que la hoja de cálculo responda a sus necesidades específicas.

Sheet CONDITIONS
D2: tc_fusion_calculator v.1.10 | E2: =traduzioni!A216 -> Idioma
E3: ES
D6: TC-FUSION CALCULATOR
C7: =traduzioni!A190 -> CONDICIONES GENERALES DEL CONTRATO DE LICENCIA DE USO PARA LA HOJA DE CÁLCULO “TC_FUSION_CALCULATOR”
B12: =traduzioni!A191 -> 1. OBJETO
C14: =traduzioni!A192 -> Con estas Condiciones Generales (o “Contrato”), ROTHO BLAAS SRL, con domicilio en I-39040 Cortaccia (BZ), Via dell'Adige 2/1 (en lo sucesivo, “RB”), otorga al usuario el derecho no exclusivo y revocable para usar, a título gratuito, la hoja de cálculo “--” (en lo sucesivo, “CALC”) en las condiciones indicadas a continuación y mientras esté vigente el Contrato. Por lo tanto, este contrato tiene por objeto regular la relación entre el usuario y RB con respecto al uso de dicha hoja de cálculo. En el momento en que el usuario descarga y usa CALC, acepta este Contrato y las condiciones indicadas. CALC permite al usuario realizar cálculos estáticos exclusivamente para los productos y los materiales indicados en cada una de sus secciones. Este Contrato prohíbe expresamente el uso de CALC para realizar cálculos para productos que no estén indicados. En cualquier caso, RB no proporciona ninguna garantía sobre la conformidad legal ni con el proyecto de cálculos y solo pretende proporcionar una herramienta de cálculo indicativo, como servicio técnico-comercial en el ámbito de la actividad de ventas.
B16: =traduzioni!A193 -> 2. REFERENCIAS TÉCNICAS
C18: =traduzioni!A194 -> RB ha efectuado las comprobaciones según el método de los estados límite de acuerdo con la norma EN 1995-1-1 Eurocódigo 5 - Proyecto de estructuras de madera y con la norma EN 1992-1-1 Eurocódigo 2 - Proyecto de estructuras de hormigón. Para los valores de resistencia mecánica y para la geometría de los clavos se han tomado como referencia las indicaciones de ETA-22/0806.
B20: =traduzioni!A195 -> 3. DERECHOS Y OBLIGACIONES DE RB
C22: =traduzioni!A196 -> RB: a) pone el CALC a disposición del usuario gratuitamente, tal como está; b) no proporciona al usuario asistencia técnica de ningún tipo para el uso de CALC; c) no garantiza la conformidad de CALC con la normativa vigente ni con el proyecto de cálculos realizados con este. En concreto, tras modificar las disposiciones pertinentes, como, por ejemplo, normas, homologaciones, etc., la hoja de cálculo puede dejar de ser válida, parcial o completamente. d) aunque se reserva el derecho de actualizar, revisar y desarrollar CALC, no asume ninguna obligación, ante el usuario, de comprobar, corregir, completar o actualizar la hoja de cálculo ni de poner a su disposición las actualizaciones realizadas.
B24: =traduzioni!A197 -> 4. DERECHOS Y OBLIGACIONES DEL USUARIO
C26: =traduzioni!A198 -> El Usuario declara que utilizará la hoja de cálculo como profesional, quedando excluido cualquier uso como consumidor, y que respetará siempre las siguientes obligaciones y prohibiciones: a) la obligación y la responsabilidad de comprobar que CALC satisfaga sus necesidades específicas y sea compatible con su hardware, software y sistemas; b) la obligación de comprobar, cada vez que lo use, la conformidad de los cálculos realizados mediante CALC con la normativa vigente y con el proyecto; c) la obligación de comprobar la conformidad legal de los cálculos realizados mediante el software; d) la obligación de usar la versión más actualizada de CALC puesta a disposición por la persona de contacto RB y de comprobar, cada vez que lo use, si hay actualizaciones; e) la prohibición de usar XLS para productos no indicados en cada sección de cálculo; f) la obligación de utilizar un software antivirus actualizado y que sea conforme con el estándar industrial actual; g) la obligación de no ceder la licencia de uso de CALC a terceros ni, por otros medios, transferir, dar en garantía o arrendamiento, alquilar o compartir con otros o conceder en sublicencia los derechos de uso de la hoja de cálculo; h) la prohibición de hacer copias de XLS o hacer que terceros lo hagan por él. El usuario se compromete a solicitar a la persona de contacto de RB la última versión de CALC.
B28: =traduzioni!A199 -> 5. DERECHOS DE AUTOR
C30: =traduzioni!A200 -> Los derechos de autor sobre las fórmulas de la hoja de cálculo y todos los derechos de propiedad intelectual e industrial que se aplican a aquellas (a título meramente de ejemplo y no exhaustivo: marcas, patentes, secretos comerciales, saber hacer, información confidencial) son y seguirán siendo propiedad exclusiva de RB. Este acuerdo no otorga al usuario ninguno de los derechos indicados anteriormente.
B32: =traduzioni!A201 -> 6. DURACIÓN, RESCISIÓN Y TERMINACIÓN
C34: =traduzioni!A202 -> Las presentes condiciones generales y, en consecuencia, la licencia de uso de la hoja de cálculo, son válidas desde el momento de su descarga hasta que termine su uso. El usuario puede rescindir en cualquier momento este contrato eliminando CALC y cualquier copia de sus sistemas. RB puede rescindir este Contrato y desactivar el servicio en caso de infracción de una cualquiera de las disposiciones que regulan la licencia de uso. En caso de que RB comunique la terminación, el usuario deberá eliminar la hoja de cálculo y cualquier copia de sus sistemas.
B36: =traduzioni!A203 -> 7. RESPONSABILIDAD
C38: =traduzioni!A204 -> El usuario es el único responsable del uso de CALC, incluidos, entre otros, todos los cálculos, los listados y los datos exportados realizados con él; también es el único responsable de los errores de introducción, de la protección de los archivos de datos y del mantenimiento y, en general, de cualquier uso que haga de la hoja de cálculo. RB no ofrece ninguna garantía y en ningún caso podrá ser considerada responsable por daños, pérdidas y costes u otras consecuencias, bajo ningún concepto (garantía por vicios, garantía por mal funcionamiento, responsabilidad del producto o legal, etc.), ocasionados por: • uso de CALC, cálculos realizados, conformidad con la normativa vigente, con el proyecto u otras exigencias del Usuario; • compatibilidad del hardware y software, virus, mal funcionamiento, defectos, errores o lagunas; • falta de actualización de la hoja de cálculo o interrupción de la disponibilidad de la hoja de cálculo o terminación del contrato por cualquier motivo; • infracción de derechos de propiedad intelectual de terceros. El usuario confirma que ha comprendido y acepta las exclusiones de responsabilidad y las limitaciones de responsabilidad y reclamación de este Contrato. El usuario también confirma que la hoja de cálculo está disponible gratuitamente, que las exclusiones y limitaciones son elementos fundamentales de este Contrato y que RB no pone su hoja de cálculo a disposición del usuario si las exclusiones o limitaciones se eliminan o modifican a favor del usuario en cuestión.
B40: =traduzioni!A205 -> 8. REEMBOLSO
C42: =traduzioni!A206 -> El usuario acepta eximir de toda responsabilidad e indemnizar a RB, sus sociedades afiliadas y sus funcionarios, directores, empleados, sucesores, y encargados (cada uno individualmente, "Beneficiario", colectivamente, "Beneficiarios") por los costes sufragados en relación con las reclamaciones presentadas por terceros por daños o pérdidas ocasionados por el uso de la hoja de cálculo por parte del usuario (incluidos, entre otros, honorarios y gastos de gestión sufragados por RB).
B44: =traduzioni!A207 -> 9. DISPOSICIONES VARIAS
C46: =traduzioni!A208 -> Estas condiciones generales constituyen el acuerdo completo entre RB y el usuario por lo que respecta al asunto en cuestión y sustituyen todos los acuerdos anteriores, tanto orales como escritos, así como cualquier acuerdo entre RB y el usuario.
B48: =traduzioni!A209 -> 10. IDIOMA
C50: =traduzioni!A210 -> En caso de diferencias entre las versiones de estas condiciones en los distintos idiomas, el texto italiano es vinculante y prevalece con respecto a las traducciones.
B52: =traduzioni!A211 -> 11. DERECHO APLICABLE Y TRIBUNAL COMPETENTE
C54: =traduzioni!A212 -> Este acuerdo y cualquier relación entre las partes se rigen exclusivamente por el derecho italiano. Cualquier controversia que surja entre las partes en relación con este acuerdo, que estas no sean capaces de resolver amigablemente, será competencia exclusiva de los tribunales de Bolzano.
B56: =traduzioni!A213 -> 12. PRIVACIDAD
C58: =traduzioni!A214 -> Véase la política de privacidad disponible en el enlace:
C59: https://www.rothoblaas.com/privacy-policy
A61: =traduzioni!A215 -> ACEPTADA

Sheet GEOMETRY
E2: =traduzioni!A4 -> CÁLCULO TC FUSION
K6: tc_fusion_calculator v. 1.10
D8: =traduzioni!A5 -> Información general | G8: =traduzioni!A6 -> Fecha | H8: =TODAY() -> 2024-09-12 | J8: =traduzioni!A216 -> Idioma | K8: ES
G9: =traduzioni!A7 -> Proyecto
G10: =traduzioni!A8 -> Proyectista
G11: =traduzioni!A9 -> Conexión n.º
D13: =traduzioni!A10 -> Normativa | G13: TC-FUSION | H13: ETA-22/0806 (2023/05)
G14: =traduzioni!A224 -> Madera | H14: EC 1995-1-1:2014
G15: =traduzioni!A225 -> Hormigón | H15: EC 1992-1-1:2015
G16: Numero efficace assiale (non necessario) | H16: N | I16: (eff.nr ax)
G17: Numero efficace a taglio (non necessario) | H17: N | I17: (eff.nr sh)
A19: =IF(K8="IT","IT",IF(K8="EN","EN")) -> FALSE | D19: =traduzioni!A13 -> Solicitaciones | G19: =traduzioni!A14 -> Duración de la carga | H19: Corta/Instantánea
E20: kmod | G20: =traduzioni!A226 -> Coeficiente | H20: =CLT!N12 -> 1.0 | J20: [-]
E21: b | G21: =traduzioni!A15 -> Longitud de la unión | H21: 1000 | J21: [mm]
E23: nyd | G23: =traduzioni!A16 -> Acción axial paralela a la conexión | H23: 0 | J23: [kN]/[m] | K23: =IF(H23>0,traduzioni!A22,traduzioni!A23) -> - compresión
E24: vxd | G24: =traduzioni!A17 -> Corte perpendicular a la conexión, dirección-x | H24: 0 | J24: [kN]/[m]
E25: vzd | G25: =traduzioni!A18 -> Corte perpendicular a la conexión, dirección-z | H25: 0 | J25: [kN]/[m]
E26: mxd | G26: =traduzioni!A19 -> Momento flector paralelo a la conexión | H26: 11.9 | J26: [kNm]/[m] | K26: =IF(H26>0,traduzioni!A24,traduzioni!A25) -> + fibras inferiores en tracción
G27: =traduzioni!A20 -> Fibras inferiores en tracción | H27: =IF(H26>0,"POS","NEG") -> POS
E28: mxyd | G28: =traduzioni!A21 -> Momento perpendicular a la conexión, plano-xz | H28: 0 | J28: [kNm]/[m] | K28: =traduzioni!A186 -> (flexión de vigas de hormigón)
D30: =traduzioni!A32 -> Composición del panel | G30: =traduzioni!A33 -> Clase | H30: GL24h
G31: =traduzioni!A34 -> Número de capas | H31: L_7
G32: =traduzioni!A35 -> Tipo | H32: 260mm - 7s - 40 40 30 40 30 40 40
G33: =traduzioni!A36 -> Espesor | H33: =VLOOKUP(H32,CLT!F24:H76,3,FALSE) -> 260 | J33: [mm]
G34: =traduzioni!A37 -> Orientación | H34: L | I34: =IF($H$34="L",traduzioni!A38,IF(H34="T",traduzioni!A39)) -> L-Fibras capas externas perpendiculares a la línea de unión
D36: =traduzioni!A40 -> Tornillos | G36: =traduzioni!A41 -> Tipo de tornillo | H36: VGS_11
H37: VGS_11_450
E38: d | G38: =traduzioni!A42 -> Diámetro | H38: =VLOOKUP(H36,SCREWS!E11:F14,2,FALSE) -> 11 | J38: [mm]
E39: l | G39: =traduzioni!A43 -> Longitud | H39: =VLOOKUP(H37,SCREWS!X28:AJ98,3,FALSE) -> 450 | J39: [mm]
E40: esup | G40: =traduzioni!A44 -> Separación superior | H40: 200 | J40: [mm] | K40: =IF(H40<=300,IF(H40>10*H38,"emin<esup<emax","out of min/max spacing!")) -> emin<esup<emax
E41: einf | G41: =traduzioni!A45 -> Separación inferior | H41: 200 | J41: [mm] | K41: =IF(H41<=300,IF(H41>10*H38,"emin<einf<emax","out of min/max spacing!")) -> emin<einf<emax
G42: =traduzioni!A46 -> Tabla (Y/N) | H42: N | I42: 20 | J42: [mm]
E43: nsup | G43: =traduzioni!A47 -> Número de tornillos superiores/metro | H43: =H21/H40 -> 5.0 | J43: [-]/[m]
E44: ninf | G44: =traduzioni!A48 -> Número de tornillos inferiores/metro | H44: =H21/H41 -> 5.0 | J44: [-]/[m]
E45: lanc,cls | G45: =traduzioni!A49 -> Longitud del anclaje mínima (hormigón) | H45: =MAX(9*H38,100) -> 100 | J45: [mm]
E46: l0,min | G46: =traduzioni!A50 -> Longitud de superposición mínima (hormigón) | H46: =MAX(14*H38,150) -> 154 | J46: [mm]
E47: leff,min | G47: =traduzioni!A51 -> Longitud de penetración mínima (timber) | H47: =2.3*(SCREWS!D40*1000/(SCREWS!D41*SCREWS!E23))^0.5 -> 61 | J47: [mm] | K47: =IF(H74>(H47),"leff>leff,min","leff<leff,min") -> leff>leff,min | L47: (14) E8
E48: a4t | G48: =traduzioni!A52 -> Distancia borde a4t | H48: 45 | J48: [mm]
E49: a4t min | G49: =traduzioni!A53 -> Distancia mínima borde a4t | H49: =6*H38 -> 66 | J49: [mm] | K49: =IF(H48<H49,"a4<a4min","a4>a4min") -> a4<a4min | L49: (4) E1
D51: =traduzioni!A54 -> Hormigón | G51: =traduzioni!A55 -> Clase de hormigón | H51: C25/30 | K51: =IF(H51="C20/25","NOT COVERED BY ETA","OK") -> OK
E52: dst | G52: =traduzioni!A56 -> Diámetro estribos | H52: 6 | J52: [mm]
E53: dl | G53: =traduzioni!A57 -> Diámetro barras longitudinales | H53: 8 | J53: [mm]
E54: agg | G54: =traduzioni!A58 -> Diámetro áridos (*) | H54: 10 | J54: [mm] | K54: =traduzioni!A221 -> (*) Para diámetros de los áridos superiores a 15 mm, evaluar las condiciones de vertido del hormigón
G55: =traduzioni!A59 -> Clase de exposición ambiental | H55: =CONCRETE!G9 -> XC1
E56: cst | G56: =traduzioni!A60 -> Recubrimiento mínimo estribos | H56: =CONCRETE!H17 -> 20 | J56: [mm]
E57: cl | G57: =traduzioni!A61 -> Recubrimiento mínimo barras longitudinales | H57: =CONCRETE!H18 -> 20 | J57: [mm]
E58: c | G58: =traduzioni!A62 -> Distancia eje barras longitudinales | H58: =CONCRETE!H20 -> 24 | J58: [mm]
E59: lc,min | G59: =traduzioni!A63 -> Anchura mínima dala | H59: =H58+H58+H46 -> 202 | J59: [mm]
D61: =traduzioni!A64 -> Resistencias | E61: fc0,d | G61: =traduzioni!A65 -> Resistencia a la compresión madera (diseño) | H61: =CLT!N18 -> 19.2 | J61: [MPa]
E62: fc,cls,d | G62: =traduzioni!A66 -> Resistencia a la compresión hormigón (diseño) | H62: =CONCRETE!H30 -> 14.2 | J62: [MPa]
E63: fc,d | G63: =traduzioni!A67 -> min(T,CA) | H63: =MIN(H61,H62) -> 14.2 | J63: [MPa]
E64: fb | G64: =traduzioni!A68 -> Tensión de adhesión | H64: =VLOOKUP(H36,SCREWS!E11:H14,4,FALSE) -> 12.5 | J64: [MPa]
D66: =traduzioni!A69 -> Geometría efectiva | G66: =traduzioni!A70 -> Distancia eje barras longitudinales | H66: =H58+IF(H42="N",(0),IF(H42="Y",(I42))) -> 24 | J66: [mm]
E67: lc | G67: =traduzioni!A71 -> Longitud efectiva dala | H67: 200 | J67: [mm]
G68: =traduzioni!A72 -> Longitud de superposición | H68: =H67-2*CONCRETE!M14 -> 160 | J68: [mm]
G69: =traduzioni!A73 -> Longitud de anclaje | H69: =H68+CONCRETE!M14 -> 180
G70: =traduzioni!A74 -> Distancia desde el borde real tornillos | H70: =MAX(H48,(H66+H53/2+H38/2)) -> 45 | J70: [mm]
G71: =traduzioni!A75 -> Comprobación coherencia posición tornillos/barras | H71: =IF(H70>=I71,"YES >","NO, INCREASE a4 to") -> YES > | I71: =IF(H42="N",(H66+H53/2+H38/2+'CLT EDGE DISTANCE'!D15),IF(H42="Y",(H66+H53/2+H38/2+'CLT EDGE DISTANCE'!D15))) -> 35.5 | J71: [mm] | K71: =traduzioni!A81 -> (*) Se supone que el tornillo penetra en la dala hasta la barra de armadura opuesta
E72: hd | G72: =traduzioni!A76 -> Distancia tornillos borde superior | H72: =H33-H70 -> 215 | J72: [mm]
E73: lbc | G73: =traduzioni!A77 -> Longitud rosca tornillo HORM (*) | H73: =H67-CONCRETE!M14 -> 180 | J73: [mm]
E74: leff | G74: =traduzioni!A78 -> Longitud rosca tornillo Madera | H74: =H39-H73 -> 270 | J74: [mm] | K74: =IF(H74<(20*H38),"l<lmin","l>lmin") -> l>lmin | AM74: verifica strati per xsls | AO74: =0.25*H33 -> 65 | AP74: [mm]
E75: leff-10mm | G75: =traduzioni!A79 -> Longitud eficaz rosca tornillo Madera | H75: =H74-10 -> 260 | J75: [mm] | AL75: L | AQ75: T
E76: y | G76: =traduzioni!A80 -> Distancia entre tornillos superiores/inferiores | H76: =H72-H48 -> 170 | J76: [mm] | AH76: t1 | AI76: =--MID(H32,14,2) -> 40 | AJ76: =H34 -> L | AL76: =IF(AJ76="L",AI76,0) -> 40 | AM76: =AI76 -> 40 | AN76: =IF(AM76<$AO$74,AM76,"non compreso int") -> 40 | AO76: =AN76*IF(AL76=0,0,1) -> 40 | AQ76: =IF(AJ76="C",AI76,0) -> 0 | AR76: =AM76 -> 40 | AS76: =IF(AR76<$AO$74,AR76,"non compreso int") -> 40 | AT76: =AS76*IF(AQ76=0,0,1) -> 0
AH77: t2 | AI77: =--MID(H32,14+3,2) -> 40 | AJ77: =IF(AJ76="L","T") -> T | AL77: 0 | AM77: =AI77 -> 40 | AN77: =IF(AM77+AN76<$AO$74,AM77,AO74-AN76) -> 25 | AO77: =AN77*IF(AL77=0,0,1) -> 0 | AQ77: =IF(AJ77="C",AI77,0) -> 0 | AR77: =AM77 -> 40 | AS77: =IF(AR77+AS76<$AO$74,AR77,"non compreso int") -> non compreso int | AT77: =AS77*IF(AQ77=0,0,1) -> 
D78: =traduzioni!A82 -> Comprobación | E78: Fax,d | G78: =traduzioni!A83 -> Acción máxima en un solo tornillo | H78: ='CALCOLI STS (slab to slab)'!H83 -> 11.2 | J78: [kN] | AH78: t3 | AI78: =--MID(H32,14+3+3,2) -> 30 | AJ78: =AJ76 -> L | AL78: 30 | AM78: =AI78 -> 30 | AN78: =IF(AM78+AN76+AN77<$AO$74,AM78,AO74-AN76-AN77) -> 0 | AO78: =AN78*IF(AL78=0,0,1) -> 0 | AQ78: 0 | AR78: 30 | AS78: =IF(AR78+AS76+AS77<$AO$74,AR78,AO74-AS76-AS77) ->  | AT78: =AS78*IF(AQ78=0,0,1) -> 
E79: R,ax,d | G79: =traduzioni!A84 -> Resistencia axial un solo tornillo lado madera/acero | H79: ='CALCOLI STS (slab to slab)'!H93 -> 15.6 | J79: [kN] | AH79: t4 | AI79: =--MID(H32,14+3+3+3,2) -> 40 | AJ79: =IF(AJ76="L","T") -> T | AL79: 0 | AM79: 40 | AN79: =IF(AM79+AN76+AN77+AN78<$AO$74,AM79,AO74-AN76-AN77-AN78) -> 0 | AO79: =AN79*IF(AL79=0,0,1) -> 0 | AQ79: 0 | AR79: 40 | AS79: =IF(AR79+AS76+AS77+AS78<$AO$74,AR79,AO74-AS76-AS77-AS78) ->  | AT79: =AS79*IF(AQ79=0,0,1) -> 
E80: h | G80: =traduzioni!A85 -> Coeficiente de trabajo esfuerzo axial | H80: ='CALCOLI STS (slab to slab)'!H95 -> 72 | J80: [%] | K80: =IF(H80<100,"OK","NO") -> OK | AH80: t5 | AI80: =--MID(H32,14+3+3+3+3,2) -> 30 | AJ80: =AJ76 -> L | AL80: 30 | AM80: 30 | AO80: 0 | AQ80: 0 | AR80: 30 | AT80: =AS80*IF(AQ80=0,0,1) -> 0
E81: Flat,d | G81: =traduzioni!A86 -> Máxima acción de corte | H81: ='CALCOLI STS (slab to slab)'!H91 -> 0.0 | J81: [kN] | AH81: t6 | AI81: =--MID(H32,14+3+3+3+3+3,2) -> 40 | AJ81: =IF(AJ76="L","T") -> T | AL81: 0 | AM81: 40 | AO81: 0 | AQ81: 0 | AR81: 40 | AT81: =AS81*IF(AQ81=0,0,1) -> 0
E82: R,v,d | G82: =traduzioni!A87 -> Resistencia al corte de un solo tornillo | H82: ='CALCOLI STS (slab to slab)'!H94 -> 4.2 | J82: [kN] | AH82: t7 | AI82: =--MID(H32,14+3+3+3+3+3+3,2) -> 40 | AJ82: =AJ76 -> L | AL82: 40 | AM82: 40 | AO82: 0 | AQ82: 0 | AR82: 40 | AT82: 0
E83: h | G83: =traduzioni!A88 -> Coeficiente de trabajo esfuerzo corte | H83: ='CALCOLI STS (slab to slab)'!H96 -> 0 | J83: [%] | K83: =IF(H83<100,"OK","NO") -> OK | AH83: t8 | AI83: =--MID(H32,14+3+3+3+3+3+3+3,2) ->  | AJ83: =IF(AJ76="L","T") -> T | AL83: 0 | AO83: 0 | AQ83: 0 | AT83: 0
E84: h | G84: =traduzioni!A89 -> Coeficiente de trabajo combinación corte tracción | H84: ='CALCOLI STS (slab to slab)'!H97 -> 51 | J84: [%] | K84: =IF(H84<100,"OK","NO") -> OK | AH84: t9 | AI84: =--MID(H32,14+3+3+3+3+3+3+3+3,2) ->  | AJ84: =AJ76 -> L | AQ84: 0 | AT84: 0
AH85: t10 | AI85: =--MID(H32,14+3+3+3+3+3+3+3+3+3,2) ->  | AJ85: =IF(AJ76="L","T") -> T | AL85: 0 | AO85: 0 | AQ85: 0 | AT85: 0
D86: =traduzioni!A90 -> Comprobación anclaje lado hormigón | G86: =traduzioni!A91 -> Longitud efectiva | H86: ='CALCOLI STS (slab to slab)'!H101 -> 180 | J86: [mm] | AH86: t11 | AI86: =--MID(H32,14+3+3+3+3+3+3+3+3+3+3,2) ->  | AJ86: =AJ76 -> L | AO86: =AN86*IF(AL86=0,0,1) ->  | AQ86: 0 | AT86: =AS86*IF(AQ86=0,0,1) -> 0
E87: lbd,min | G87: =traduzioni!A92 -> Longitud mínimo anclaje | H87: ='CALCOLI STS (slab to slab)'!H102 -> 100 | J87: [mm] | AM87: a(x<t1) | AN87: =AN76/2 -> 20 | AO87: [mm] | AR87: a(x<t1) | AS87: =AS76+AS77/2 ->  | AT87: [mm]
E88: h | G88: =traduzioni!A93 -> Coeficiente de trabajo | H88: ='CALCOLI STS (slab to slab)'!H103 -> 56 | J88: [%] | K88: =IF(H88<100,"OK","NO") -> OK | AM88: a(x>t1) | AN88: =0.5*((AO78^2)+(2*(AO78)*(AO78+AO76))+(AO76^2))/(AO76+AO78) -> 20 | AO88: [mm] | AR88: a(x>t1) | AS88: =+AS76+(0.5*((AT79^2)+(2*(AT79)*(AT79+AT77))+(AT77^2))/(AT77+AT79)) ->  | AT88: [mm]
G89: =traduzioni!A94 -> Longitud efectiva | H89: ='CALCOLI STS (slab to slab)'!H107 -> 160 | J89: [mm] | AN89: =MIN(AN87,AN88) -> 20 | AO89: [mm] | AS89: =MIN(AS87,AS88) ->  | AT89: [mm]
E90: l0,min | G90: =traduzioni!A95 -> Longitud mínima solapamiento | H90: ='CALCOLI STS (slab to slab)'!H106 -> 154 | J90: [mm]
E91: h | G91: =traduzioni!A96 -> Coeficiente de trabajo | H91: ='CALCOLI STS (slab to slab)'!H108 -> 96 | J91: [%] | K91: =IF(H91<100,"OK","NO") -> OK
D93: =traduzioni!A97 -> Rigideces | E93: kser | G93: =traduzioni!A98 -> Rigidez al corte | H93: ='CALCOLI STS (slab to slab)'!H110 -> 19283 | J93: ='CALCOLI STS (slab to slab)'!J110 -> [N/mm/m] | K93: =traduzioni!A222 -> (*) Duplicar la rigidez en caso de conexión no simétrica con un solo plano de conexión
E94: kax | G94: =traduzioni!A99 -> Rigidez axial | H94: ='CALCOLI STS (slab to slab)'!H122 -> 302500 | J94: ='CALCOLI STS (slab to slab)'!J122 -> [N/mm/m]
E95: Kj | G95: =traduzioni!A100 -> Rigidez rotacional (*) | H95: ='CALCOLI STS (slab to slab)'!H129 -> 5204 | J95: ='CALCOLI STS (slab to slab)'!J129 -> [kNmm/Rad/m]

Sheet CALCOLI STS (slab to slab)
D2: Sollecitazione | G2: Durata carico | H2: =GEOMETRY!H19 -> Corta/Instantánea | L2: =GEOMETRY!H14 -> EC 1995-1-1:2014
E4: b | G4: Lunghezza giunto | H4: =GEOMETRY!H21 -> 1000 | J4: [mm]
E6: Ny | G6: Azione assiale (perpendicolare al giunto) | H6: =GEOMETRY!H23 -> 0 | J6: [kN]/[m]
E7: Vx | G7: Taglio in piano | H7: =GEOMETRY!H24 -> 0 | J7: [kN]/[m]
E8: Vz | G8: Taglio fuoripiano | H8: =GEOMETRY!H25 -> 0 | J8: [kN]/[m]
E9: Mx | G9: Momento flettente (parallelo al giunto) | H9: =GEOMETRY!H26 -> 11.9 | J9: [kNm]/[m]
G10: =IF(H10="POS","Fibre inferiori tese", IF(H10="NEG","Fibre superiori tese","NO")) -> Fibre inferiori tese | H10: =GEOMETRY!H27 -> POS
E14: Mxy | G14: Torsione | H14: =GEOMETRY!H28 -> 0 | J14: [kNm]/[m]
D16: Composizione pannello | G16: Classe | H16: =GEOMETRY!H30 -> GL24h
G17: Nr strati | H17: =GEOMETRY!H31 -> L_7
G18: Tipo | H18: =GEOMETRY!H32 -> 260mm - 7s - 40 40 30 40 30 40 40
G19: Spessore | H19: =GEOMETRY!H33 -> 260 | J19: [mm]
G20: Orientamento | H20: =GEOMETRY!H34 -> L
D22: Viti | G22: Tipo di vite | H22: =GEOMETRY!H36 -> VGS_11 | J22: [mm]
H23: =GEOMETRY!H37 -> VGS_11_450 | J23: [mm]
E24: d | G24: diametro | H24: =GEOMETRY!H38 -> 11 | J24: [mm]
E25: l | G25: lunghezza | H25: =GEOMETRY!H39 -> 450
E26: lanc,cls | G26: lunghezza ancoraggio minima | H26: =GEOMETRY!H45 -> 100 | J26: [mm]
E27: l0,min | G27: lunghezza di sovrapposizione minima | H27: =GEOMETRY!H46 -> 154 | J27: [mm]
E28: a4t | G28: Distanza minima bordo a4t | H28: =GEOMETRY!H48 -> 45 | J28: [mm]
E29: a4t min | G29: Distanza minima bordo a4t | H29: =GEOMETRY!H49 -> 66 | J29: [mm] | K29: =IF(H29<(5*H24),"a4<a4min","a4>a4min") -> a4>a4min | L29: (4.0 E1)
E30: esupeff | G30: Spaziatura esup | H30: =IF(GEOMETRY!H16="N",GEOMETRY!H40,IF(GEOMETRY!H16="S",(1000/MAX(GEOMETRY!H43*0.9,GEOMETRY!H43^0.9)))) -> 200 | J30: [mm]
E31: einfeff | G31: Spaziatura einf | H31: =IF(GEOMETRY!H16="N",GEOMETRY!H41,IF(GEOMETRY!H16="S",(1000/MAX(GEOMETRY!H44*0.9,GEOMETRY!H44^0.9)))) -> 200 | J31: [mm]
E32: nsup | G32: numero di viti superiori/metro | H32: =GEOMETRY!H43 -> 5 | J32: [-]/[m]
E33: ninf | G33: numero di viti inferiori/metro | H33: =GEOMETRY!H44 -> 5 | J33: [-]/[m] | Q33: Meccanismo di rottura viti
S34: Caratt | T34: Progetto | U34: Sperimentale
Q35: ASSIALE | R35: Acciaio trazione netta | S35: =T35*SCREWS!AE14 -> 38 | T35: =SCREWS!I31 -> 30 | U35: =S35 -> 38
D36: Calcestruzzo | G36: Classe calcestuzzo | H36: =GEOMETRY!H51 -> C25/30 | R36: Legno estrazione filetto | S36: =T36*SCREWS!AE17/SCREWS!AE18 -> 28 | T36: =SCREWS!I32 -> 16 | U36: =S36*SCREWS!AZ18 -> 41
E37: dst | G37: Diametro staffe | H37: =GEOMETRY!H52 -> 6 | J37: [mm] | R37: Calcestruzzo estrazione | S37: =T37*SCREWS!AE17/SCREWS!AE19 -> 69 | T37: =SCREWS!D32 -> 46 | U37: =S37 -> 69
E38: dl | G38: Diametro ferri long | H38: =GEOMETRY!H53 -> 8 | J38: [mm]
E39: agg | G39: Diam aggregato | H39: =GEOMETRY!H54 -> 10 | J39: [mm] | Q39: TAGLIO | R39: Tranciamento acciao viti | S39: =T39*SCREWS!AE14 -> 17 | T39: =SCREWS!I43 -> 14 | U39: =S39 -> 17
G40: Classe strutturale | H40: =GEOMETRY!H55 -> XC1 | R40: Rottura lato legno (Johansen) | S40: =T40*SCREWS!AE9/SCREWS!AE10 -> 6 | T40: =SCREWS!D48*H28/H29 -> 4.2 | U40: =S40*SCREWS!AZ18 -> 9
E41: cst | G41: Copriferro minimo staff | H41: =GEOMETRY!H56 -> 20 | J41: [mm] | R41: Failure mode according to EN1995 | T41: =SCREWS!$F$48 -> e | X41: =IF(T41="e","OK Annex E8","NO") -> OK Annex E8
E42: cl | G42: Copriferro minimo long | H42: =GEOMETRY!H57 -> 20 | J42: [mm] | R42: leff min (for ductile mode) | T42: =2.3*(SCREWS!$D$40*10^3/(SCREWS!$D$41*SCREWS!$E$23))^0.5 -> 61 | U42: =IF(T42<V42,"<",">") -> < | V42: =H59 -> 260 | W42: [mm] | X42: =IF(T42<V42,"OK Annex E8","NO") -> OK Annex E8
E43: c | G43: Distanza asse ferri longitudinali | H43: =GEOMETRY!H58 -> 24 | J43: [mm]
E44: lc | G44: larghezza cordolo lc,min | H44: =GEOMETRY!H59 -> 202 | J44: [mm] | Q44: assumiamo che la testa della vite sia in corrispondenza del filo esterno della staffa
D46: Resistenze | E46: fc0,d | G46: Resistenza a compressione legno (design) | H46: =GEOMETRY!H61 -> 19.2 | J46: [MPa]
E47: fc,cls,d | G47: Resistenza a compressione CLS (design) | H47: =GEOMETRY!H62 -> 14.2 | J47: [MPa]
E48: fc,d | G48: min(T,CA) | H48: =GEOMETRY!H63 -> 14.2 | J48: [MPa]
E49: fb | G49: Tensione di aderenza | H49: =GEOMETRY!H64 -> 12.5 | J49: [MPa]
D52: Geometria effettiva | G52: Distanza asse ferri longitudinali | H52: =GEOMETRY!H66 -> 24 | J52: [mm]
G53: Larghezza effettiva cordolo lc | H53: =GEOMETRY!H67 -> 200 | J53: [mm]
G54: Lunghezza di sovrapposizione | H54: =GEOMETRY!H68 -> 160 | J54: [mm]
G55: Distanza dal bordo reale viti | H55: =GEOMETRY!H70 -> 45 | J55: [mm]
E56: hd | G56: Distanza viti lembo superiore | H56: =GEOMETRY!H72 -> 215 | J56: [mm]
E57: lbc | G57: Lunghezza filetto vite CA | H57: =GEOMETRY!H73 -> 180 | J57: [mm]
E58: leff | G58: Lunghezza filetto vite Legno | H58: =GEOMETRY!H74 -> 270 | J58: [mm]
E59: leff-10mm | G59: Lunghezza efficace filetto vite Legno | H59: =GEOMETRY!H75 -> 260 | J59: [mm]
E60: y | G60: Distanza viti superiori/inferiori | H60: =GEOMETRY!H76 -> 170 | J60: [mm]
E63: =CONCATENATE(GEOMETRY!E2," - ",traduzioni!A82) -> CÁLCULO TC FUSION - Comprobación
K67: tc_fusion_calculator v. 1.10
AC68: verifica strati per xsls | AE68: =0.25*H19 -> 65 | AF68: [mm]
X69: =IF(--MID(GEOMETRY!H31,3,1)=1,--MID(GEOMETRY!H31,3,2),--MID(GEOMETRY!H31,3,1)) -> 7 | AB69: =H20 -> L | AF69: area | AG69: dist
V70: 1 | W70: =IF(V70>$X$69,0,1) -> 1 | X70: =IF(W70=1,"t1","") -> t1 | Y70: =W70*IF(X70="",0,IF(--MID(GEOMETRY!$H$31,3,1)=1,--MID(GEOMETRY!$H$32,15,2),--MID(GEOMETRY!$H$32,14,2))) -> 40 | Z70: =H20 -> L | AB70: =IF(Z70="L",Y70,0) -> 40 | AC70: =Y70 -> 40 | AD70: =IF(AC70<$AE$68,AC70,"non compreso int") -> 40 | AE70: =AD70*IF(AB70=0,0,1) -> 40 | AF70: =AE70 -> 40 | AG70: =Y70/2 -> 20 | AH70: =AF70*AG70 -> 800
V71: 2 | W71: 1 | X71: =IF(W71=1,"t2","") -> t2 | Y71: =W71*IF(X71="",0,IF(--MID(GEOMETRY!$H$31,3,1)=1,--MID(GEOMETRY!$H$32,15+3,2),--MID(GEOMETRY!$H$32,14+3,2))) -> 40 | Z71: =IF(Z70="L","T","L") -> T | AB71: =IF(Z71="L",Y71,0) -> 0 | AC71: =Y71 -> 40 | AD71: =IF(AC71+AD70<$AE$68,AC71,AE68-AD70) -> 25 | AE71: =AD71*IF(AB71=0,0,1) -> 0 | AF71: =AE71 -> 0 | AG71: =Y71+AF71/2 -> 40 | AH71: =AF71*AG71 -> 0
V72: 3 | W72: 1 | X72: =IF(W72=1,"t3","") -> t3 | Y72: =W72*IF(X72="",0,IF(--MID(GEOMETRY!$H$31,3,1)=1,--MID(GEOMETRY!$H$32,15+6,2),--MID(GEOMETRY!$H$32,14+6,2))) -> 30 | Z72: L | AB72: =IF(Z72="L",Y72,0) -> 30 | AC72: =Y72 -> 30 | AD72: =IF(AC72+AD70+AD71<$AE$68,AC72,AE68-AD70-AD71) -> 0 | AE72: =AD72*IF(AB72=0,0,1) -> 0 | AF72: =AE72 -> 0 | AG72: =Y71+AF72/2 -> 40 | AH72: =AF72*AG72 -> 0
D73: =traduzioni!A101 -> Cálculo eje neutro - Flexión | E73: mxd | G73: =traduzioni!A102 -> Momento de flexión respecto a los tornillos | H73: =H9+H6*((H19/2-H55)/1000) -> 11.9 | J73: [kNm] | V73: 4 | W73: 1 | X73: =IF(W73=1,"t4","") -> t4 | Y73: =W73*IF(X73="",0,IF(--MID(GEOMETRY!$H$31,3,1)=1,--MID(GEOMETRY!$H$32,15+9,2),--MID(GEOMETRY!$H$32,14+9,2))) -> 40 | Z73: T | AB73: 0 | AC73: 40 | AD73: =IF(AC73+AD70+AD71+AD72<$AE$68,AC73,AE68-AD70-AD71-AD72) -> 0 | AE73: =AD73*IF(AB73=0,0,1) -> 0 | AF73: 0 | AG73: =Y72+AF73/2 -> 30 | AH73: 0
E74: x | G74: =traduzioni!A103 -> Eje neutro | H74: =IF(GEOMETRY!H34="L",IF(U84<Y70,U84,IF(U84>Y70,U85,IF(U85>(Y70+Y71+Y72),"NOT POSSIBLE"))),IF(GEOMETRY!H34="T",IF(Z84<Y70,Z84,IF(Z84>Y70,Z85,IF(Z85>(Y70+Y71+Y72),"NOT POSSIBLE"))),0)) -> 3.9 | J74: [mm] | L74: (5) E4 or (6) E5 | S74: Analitica | V74: 5 | W74: 1 | X74: =IF(W74=1,"t5","") -> t5 | Y74: =W74*IF(X74="",0,IF(--MID(GEOMETRY!$H$31,3,1)=1,--MID(GEOMETRY!$H$32,15+12,2),--MID(GEOMETRY!$H$32,14+12,2))) -> 30 | Z74: L | AA74: =--MID(GEOMETRY!$H$32,11+12,2) -> 40 | AB74: 30 | AC74: 30 | AE74: 0 | AF74: 0 | AG74: 40 | AH74: 0
H75: =IF(H74<Y70,"x<t1",IF(H74>Y70,"x>t1",0)) -> x<t1 | S75: =H56*(1-(1-((2*H73*1000+H6*1000*(2*H56-H19))/(H48*1*H56^2)))^0.5) -> 3.94 | V75: 6 | W75: 1 | X75: =IF(W75=1,"t6","") -> t6 | Y75: =W75*IF(X75="",0,IF(--MID(GEOMETRY!$H$31,3,1)=1,--MID(GEOMETRY!$H$32,15+15,2),--MID(GEOMETRY!$H$32,14+15,2))) -> 40 | Z75: T | AA75: =--MID(GEOMETRY!$H$32,11+12,2) -> 40 | AB75: 0 | AC75: =Y75 -> 40 | AE75: 0 | AF75: 0 | AG75: 30 | AH75: 0
E76: x1 | G76: =traduzioni!A104 -> Parte comprimida primera lámina | H76: =IF(H20="L",IF(H75="x<t1",H74,IF(H75="x>t1",Y70)),IF(H20="T",I76,)) -> 3.9 | I76: 0.0 | J76: [mm] | V76: 7 | W76: 1 | X76: =IF(W76=1,"t7","") -> t7 | Y76: =W76*IF(X76="",0,IF(--MID(GEOMETRY!$H$31,3,1)=1,--MID(GEOMETRY!$H$32,15+18,2),--MID(GEOMETRY!$H$32,14+18,2))) -> 40 | Z76: L | AB76: 40 | AC76: 40 | AE76: 0 | AF76: 0 | AG76: 40 | AH76: 0
E77: t2 | G77: =traduzioni!A105 -> Parte comprimida segunda lámina | H77: =IF(H20="L",IF(H75="x<t1",0,Y71),IF(H20="T",I77,)) -> 0.0 | I77: =IF(Z84>Y71,"non implementato",Z84) -> 4.9 | J77: [mm] | V77: 8 | W77: 0 | X77: =IF(W77=1,"t8","") ->  | Y77: =W77*IF(X77="",0,IF(--MID(GEOMETRY!$H$31,3,1)=1,--MID(GEOMETRY!$H$32,15+21,2),--MID(GEOMETRY!$H$32,14+21,2))) -> 0 | Z77: T | AB77: 0 | AC77: 0 | AE77: 0 | AF77: 0 | AG77: 40 | AH77: 0
E78: x3 | G78: =traduzioni!A106 -> Parte comprimida tercera lámina | H78: =IF(H20="L",IF(H75="x<t1",0,((H56-Y70-Y71)-((H56-Y70-Y71)^2+2*Y70*(H56-Y70/2)-(2*H73*1000*1000/H4/H48))^0.5)),IF(H20="T",I78,)) -> 0.0 | I78: 0.0 | J78: [mm] | V78: 9 | W78: 0 | X78: =IF(W78=1,"t9","") ->  | Y78: =W78*IF(X78="",0,IF(--MID(GEOMETRY!$H$31,3,1)=1,--MID(GEOMETRY!$H$32,15+24,2),--MID(GEOMETRY!$H$32,14+24,2))) -> 0 | Z78: L | AB78: 0 | AC78: 0 | AE78: 0 | AF78: 0 | AG78: 0 | AH78: 0
E79: a | G79: =traduzioni!A107 -> Posición resultante | H79: =IF(H20="L",IF(U84<Y70,(H76/2),(0.5*(H78^2+2*H78*(H77+H76)+H76^2)/(H76+H78))),IF(H20="T",I79,)) -> 2 | I79: =IF(Z84<Y71,(Y70+Z84/2),"non implementato") -> 42 | J79: [mm] | L79: E5/E6 | V79: 10 | W79: 0 | X79: =IF(W79=1,"t10","") ->  | Y79: =W79*IF(X79="",0,IF(--MID(GEOMETRY!$H$31,3,1)=1,--MID(GEOMETRY!$H$32,15+27,2),--MID(GEOMETRY!$H$32,14+27,2))) -> 0 | Z79: T | AB79: 0 | AC79: 0 | AE79: 0 | AF79: 0 | AG79: 0 | AH79: 0
E80: z | G80: =traduzioni!A108 -> Brazo de palanca | H80: =IF(H20="L",H56-H79,IF(H20="T",H56-I79,"NO")) -> 213 | J80: [mm] | L80: E5/E6 | V80: 11 | W80: 0 | X80: =IF(W80=1,"t11","") ->  | Y80: =W80*IF(X80="",0,IF(--MID(GEOMETRY!$H$31,3,1)=1,--MID(GEOMETRY!$H$32,15+30,2),--MID(GEOMETRY!$H$32,14+30,2))) -> 0 | Z80: L | AB80: 0 | AC80: 0 | AE80: =AD80*IF(AB80=0,0,1) -> 0 | AF80: 0 | AG80: 0 | AH80: 0
AC81: somma | AE81: =SUM(AE70:AE80) -> 40 | AF81: =SUM(AF70:AF80) -> 40 | AG81: =SUM(AG70:AG80) -> 280 | AH81: =SUM(AH70:AH80) -> 800
D82: =traduzioni!A109 -> Cálculo esfuerzos | G82: =traduzioni!A110 -> Acción máxima en todos los tornillos | H82: =(H9/(H80/1000)+H6) -> 56 | J82: [kN] | K82: =traduzioni!A119 -> (*) Se considera que la tracción es absorbida únicamente por los tornillos en la línea inferior | L82: =IF(H10="POS",traduzioni!A120, IF(H10="NEG",traduzioni!A121,"NO")) -> Fibras inferiores en tracción | R82: =IF(GEOMETRY!H34="L",1,IF(GEOMETRY!H34="T",IF(Z84<Y70,2,0))) -> 1 | T82: =IF(U84<Y70,"Set I annex E4",IF(U84>Y70,"Set II annexE5",IF(U85>(Y70+Y71+Y72),"NOT POSSIBLE"))) -> Set I annex E4
E83: Fax,d | G83: =traduzioni!A111 -> Acción máxima en un solo tornillo (*) | H83: =(H9/(H80/1000)+H6)*((IF(H10="POS",H31, IF(H10="NEG",H30,"NO")))/1000) -> 11 | J83: [kN] | L83: (7) E6 | R83: =IF(GEOMETRY!H34="L",1,IF(GEOMETRY!H34="T",IF(Z84<Y70,2,0))) -> 1
T84: I set | U84: =H56-(((H48*(H56)^2)-(2*H73*1000))/H48)^0.5 -> 3.9 | V84: mm | Y84: I set | Z84: =(H56-Y70)-(((H48*(H56-Y70)^2)-(2*H73*1000))/H48)^0.5 -> 4.86769854
E85: Flat,sup,x | G85: =traduzioni!A112 -> Acción máxima tornillos dentro del plano en un solo tornillo superior | H85: =(((ABS(H14)/(H60*10^-3))+(H32/(H32+H33))*ABS(H7))*H30)/1000 -> 0.0 | J85: [kN] | L85: (8) E7 | T85: II set | U85: =((Y70+Y71+((H56-Y70-Y71)-((H56-Y70-Y71)^2+2*Y70*(H56-Y70/2)-(2*H73*1000*1000/1000/H48))^0.5))) -> 35.7097 | V85: mm | Y85: II set | Z85: =((Y70+Y71+((H56-Y70-Y71)-((H56-Y70-Y71)^2+2*Y70*(H56-Y70/2)-(2*H73*1000*1000/1000/H48))^0.5))) -> 35.70973256 | AC85: a(x<t1) | AD85: =AD70/2 -> 20 | AE85: [mm] | AF85: min zona comp | AG85: =IF(AB69="T",AF71,AF70/2) -> 20 | AH85: mm | AI85: =MIN(AG85,AG86) -> 20 | AJ85: mm
E86: Flat,inf,x | G86: =traduzioni!A113 -> Acción máxima tornillos dentro del plano en un solo tornillo inferior | H86: =(((ABS(H14)/(H60*10^-3))+(H33/(H32+H33))*ABS(H7))*H31)/1000 -> 0.0 | J86: [kN] | L86: (9) E7 | AC86: a(x>t1) | AD86: =AH81/AF81 -> 20 | AE86: [mm] | AG86: =AF81 -> 40 | AH86: mm
E87: Flat,sup,z | G87: =traduzioni!A114 -> Acción máxima tornillos fuera del plano en un solo tornillo superior | H87: =((H32/(H32+H33))*H8)*(H30/1000) -> 0.0 | J87: [kN] | L87: (10) E7 | AD87: =IF(AB69="T",AD86,IF(AI85=AG85,AD85,IF(AI85=AG86,AD86))) -> 20 | AE87: [mm]
E88: Flat,inf,z | G88: =traduzioni!A115 -> Acción máxima tornillos fuera del plano en un solo tornillo inferior | H88: =((H33/(H32+H33))*H8)*(H31/1000) -> 0.0 | J88: [kN] | L88: (11) E7
E89: Flat,sup | G89: =traduzioni!A116 -> Acción combinada en un solo tornillo superior | H89: =(H85^2+H87^2)^0.5 -> 0.0 | J89: [kN] | L89: (12) E7 | U89: FROM EQUILIBRIUM L PAN: | Y89: FROM EQUILIBRIUM L PAN:
E90: Flat,inf | G90: =traduzioni!A117 -> Acción combinada en un solo tornillo inferior | H90: =(H86^2+H88^2)^0.5 -> 0.0 | J90: [kN] | L90: (13) E7 | U90: x | V90: =V92+V93+V94 -> 35.7 | W90: [mm] | Y90: x | Z90: =V92+V93+V94 -> 35.7 | AA90: [mm]
G91: =traduzioni!A118 -> Máxima acción de corte | H91: =MAX(H90,H89) -> 0.0 | J91: [kN]
U92: x1 | V92: =Y70 -> 40 | W92: [mm] | Y92: x1 | Z92: =Y70 -> 40 | AA92: [mm]
D93: =traduzioni!A122 -> Comprobación | E93: R,ax,d | G93: =traduzioni!A123 -> Resistencia axial un solo tornillo lado madera/acero | H93: =SCREWS!I34 -> 15.6 | J93: [kN] | U93: x2 | V93: =Y71 -> 40 | W93: [mm] | Y93: x2 | Z93: =Y71 -> 40 | AA93: [mm]
E94: R,v,d | G94: =traduzioni!A124 -> Resistencia al corte de un solo tornillo | H94: =SCREWS!D48*(H28/H29) -> 4.2 | J94: [kN] | U94: x3 | V94: =(H56-Y70-Y71)-((H56-Y70-Y71)^2+2*Y70*(H56-Y70/2)-(2*H73*1000*1000/1000/H48))^0.5 -> -44.3 | W94: [mm] | Y94: x3 | Z94: =Y73 -> 40.0 | AA94: [mm]
E95: h | G95: =traduzioni!A125 -> Coeficiente de trabajo esfuerzo axial | H95: =(H83/H93)*100 -> 72 | J95: [%] | K95: =IF(H95<100,"OK","NO") -> OK | L95: (1) E1 | Y95: x4 | Z95: =(H56-Y71-Y72)-((++(H56-Y71-Y72)^2+2*Y71*(H56-Y71/2)-(2*H73*1000*1000/1000/H48))^0.5) -> -41.9 | AA95: [mm]
E96: h | G96: =traduzioni!A126 -> Coeficiente de trabajo esfuerzo corte | H96: =(H91/H94)*100 -> 0.0 | J96: [%] | K96: =IF(H96<100,"OK","NO") -> OK | L96: (2) E1
E97: h | G97: =traduzioni!A127 -> Coeficiente de trabajo combinación corte tracción | H97: =((H95/100)^2+(H96/100)^2)*100 -> 51 | J97: [%] | K97: =IF(H97<100,"OK","NO") -> OK | L97: (3) E1
D99: =traduzioni!A128 -> Comprobación anclaje lado hormigón | E99: lb,rqd | G99: =traduzioni!A129 -> Longitud anclaje requerida | H99: =H83*1000/(H24*PI()*(H49/CONCRETE!H26)) -> 39 | J99: [mm] | L99: (1) D1
E100: lbd | G100: =traduzioni!A130 -> Longitud mínima anclaje | H100: =H99*(H83/H93) -> 28 | J100: [mm] | L100: C1
G101: =traduzioni!A131 -> Longitud efectiva | H101: =H57 -> 180 | J101: [mm]
E102: lbd,min | G102: =traduzioni!A132 -> Longitud anclaje | H102: =MAX(9*H24,100) -> 100 | J102: [mm]
E103: h | G103: =traduzioni!A133 -> Coeficiente de trabajo | H103: =(H102/H101)*100 -> 56 | J103: [%] | K103: =IF(H103<100,"OK","NO") -> OK | L103: (4/5) E1
E105: l0 | G105: =traduzioni!A134 -> Longitud solapamiento | H105: =1.5*H100 -> 41.6 | J105: [mm]
E106: l0,min | G106: =traduzioni!A135 -> Longitud mínima solapamiento | H106: =MAX(14*H24,150) -> 154 | J106: [mm] | L106: C1
G107: =traduzioni!A136 -> Longitud efectiva | H107: =H54 -> 160 | J107: [mm]
E108: h | G108: =traduzioni!A137 -> Coeficiente de trabajo | H108: =(H106/H107)*100 -> 96 | J108: [%] | K108: =IF(H108<100,"OK","NO") -> OK | L108: (4/5) E1
D110: =traduzioni!A138 -> Rigidez corte/flexión | E110: kser | G110: =traduzioni!A139 -> Rigidez al corte | H110: =((H32+H33)*SCREWS!D53)/2 -> 19283 | J110: [N/mm/m] | L110: (15) E9
G112: =traduzioni!A140 -> primera capa | H112: =IF(H20="L",Y70,IF(H20="T",Y71)) -> 40 | J112: [mm]
G113: =traduzioni!A141 -> 25 % espesor | H113: =IF(AND(GEOMETRY!H34="T",H19=160),0.25*(H19-Y70),IF(GEOMETRY!H34="T",0.25*H19-Y70,0.25*H19)) -> 65 | J113: [mm] | T113: spessore di tutti gli strati longitudinali entro il 25% della sezione trasversale esterna
G114: =traduzioni!A142 -> a_t(25%) | H114: =AD87 -> 20
E116: xsls | G116: =traduzioni!A143 -> Cálculo longitud comprimida por rigidez | H116: =MIN(H112,H113) -> 40 | J116: [mm]
E117: zsls | G117: =traduzioni!A144 -> Brazo de palanca | H117: =IF(GEOMETRY!H34="T",H56-Y70-H116/2,H56-H116/2) -> 195 | J117: [mm]
E118: mref | G118: =traduzioni!A145 -> Momento de referencia | H118: 1000 | J118: [kNm/m]
E119: fref | G119: =traduzioni!A146 -> Fuerza en los tornillos de referencia | H119: =H118/(H117/1000) -> 5128 | J119: [N/mm] | L119: (16) E10
E120: bref | G120: =traduzioni!A147 -> Anchura de referencia | H120: 1000 | J120: [mm]
E121: kc | G121: =traduzioni!A148 -> Rigidez a compresión | H121: =CLT!N15*H120/4 -> 2875000 | J121: [N/mm] | L121: (18) E10
E122: kax | G122: =traduzioni!A149 -> Rigidez axial | H122: =(25*SCREWS!E23*MIN(20*SCREWS!E23,SCREWS!I30))*(H32+H33)/2 -> 302500 | J122: [N/mm/m] | L122: (20) E10
E123: nref | G123: =traduzioni!A150 -> Tornillos en zona de tensión | H123: =IF(H10="POS",H33,IF(H10="NEG",H32)) -> 5 | J123: [-]/[m]
E125: uc,ref | G125: =traduzioni!A151 -> Deformación de la zona comprimida | H125: =H119/H121 -> 0.002 | J125: [mm] | L125: (17) E10
E126: ut,ref | G126: =traduzioni!A152 -> Deformación de las fijaciones | H126: =(H119)/((H122*2/(H32+H33))*H123) -> 0.017 | J126: [mm] | L126: (19) E10
K127: =traduzioni!A222 -> (*) Duplicar la rigidez en caso de conexión no simétrica con un solo plano de conexión
E128: jref | G128: =traduzioni!A153 -> Ángulo de rotación unitario | H128: =ATAN((ABS(H126)+ABS(H125))/(H117)) -> 0.00010 | J128: [Rad] | L128: (21) E10
E129: Kj | G129: =traduzioni!A154 -> Rigidez rotacional (*) | H129: =H118/(2*H128*1000) -> 5204 | J129: [kNmm/Rad/m] | L129: (22) E10

Sheet CLT EDGE DISTANCE
C4: =traduzioni!A155 -> celdas editables
C9: =traduzioni!A156 -> Distancia de la línea de tornillos bajos desde el borde CLT
C12: =CONCATENATE(traduzioni!A157," t") -> Tabla t | D12: =IF(GEOMETRY!H42="N",0,GEOMETRY!I42) -> 0 | E12: [mm]
C13: =CONCATENATE(traduzioni!A158," c") -> Posición barra longitudinal c | D13: =CONCRETE!H20 -> 24 | E13: [mm]
C14: =traduzioni!A159 -> Barra longitudinal (1/2 diám.) | D14: =0.5*'CALCOLI STS (slab to slab)'!H38 -> 4 | E14: [mm]
C15: =traduzioni!A160 -> Tolerancia en curvatura estribos | D15: 2 | E15: [mm]
C16: =traduzioni!A161 -> Tornillo (1/2 diám.) | D16: =0.5*'CALCOLI STS (slab to slab)'!H24 -> 5.5 | E16: [mm]
D18: =SUM(D12:D16) -> 35.5 | E18: [mm]

Sheet CONCRETE
C4: =traduzioni!A162 -> celdas editables
C9: =traduzioni!A164 -> Clase de exposición ambiental | G9: XC1 | Q9: =CONCATENATE(traduzioni!A223," [mm]") -> Recubrimiento mínimo requerido [mm]
C10: =traduzioni!A165 -> Clase estructural | G10: S3 | Q10: Cl | R10: X0 | S10: XC1 | T10: XC2 | U10: XC3 | V10: XC4
Q11: S1 | R11: 10 | S11: 10 | T11: 10 | U11: 10 | V11: 15
D12: d | F12: cmin,b | G12: cmin,dur | J12: Cmin | K12: D,cdev | M12: c,nom | Q12: S2 | R12: 10 | S12: 10 | T12: 15 | U12: 15 | V12: 20
D13: [mm] | F13: [mm] | G13: [mm] | H13: [mm] | J13: [mm] | K13: [mm] | M13: [mm] | Q13: S3 | R13: 10 | S13: 10 | T13: 20 | U13: 20 | V13: 25
C14: d st | D14: ='CALCOLI STS (slab to slab)'!H37 -> 6 | F14: =D14+IF('CALCOLI STS (slab to slab)'!H39>32,5,0) -> 6 | G14: =HLOOKUP(G9,R10:V16,MID(G10,2,1)+1,FALSE) -> 10 | H14: 10 | J14: =MAX(F14,G14,H14) -> 10 | K14: 10 | M14: =J14+K14 -> 20 | Q14: S4 | R14: 10 | S14: 15 | T14: 25 | U14: 25 | V14: 30
C15: d_L | D15: ='CALCOLI STS (slab to slab)'!H38 -> 8 | F15: =D15+IF('CALCOLI STS (slab to slab)'!H39>32,5,0) -> 8 | G15: =HLOOKUP(G9,R10:V16,MID(G10,2,1)+1,FALSE) -> 10 | H15: 10 | J15: =MAX(F15,G15,H15) -> 10 | K15: 10 | M15: =J15+K15 -> 20 | Q15: S5 | R15: 15 | S15: 20 | T15: 30 | U15: 30 | V15: 35
Q16: S6 | R16: 20 | S16: 25 | T16: 35 | U16: 35 | V16: 40
C17: cst | D17: =traduzioni!A166 -> Recubrimiento mínimo para estribos | H17: =M14 -> 20 | I17: [mm]
C18: cl | D18: =traduzioni!A167 -> Recubrimiento mínimo para barras longitudinales | H18: =M15 -> 20 | I18: [mm]
C20: c | D20: =traduzioni!A167 -> Recubrimiento mínimo para barras longitudinales | H20: =MAX((H17+(D15/2)),(H18+(D15/2))) -> 24 | I20: [mm]
D24: Rck | E24: fck | G24: ='CALCOLI STS (slab to slab)'!H36 -> C25/30
D25: [MPa] | E25: [MPa]
C26: C20/25 | D26: 25 | E26: 20 | G26: ym | H26: =IF('CALCOLI STS (slab to slab)'!L2="NTC 2018 (ITA)",1.5,1.5) -> 1.5 | I26: [-]
C27: C25/30 | D27: 30 | E27: 25 | G27: acc | H27: 0.85 | I27: [-]
C28: C28/35 | D28: 35 | E28: 28 | G28: act | H28: 1 | I28: [-]
C29: C30/37 | D29: 37 | E29: 28
C30: C32/40 | D30: 40 | E30: 32 | G30: fcd | H30: =VLOOKUP(G24,C26:E35,3,FALSE)*H27/H26 -> 14.2 | I30: [MPa]
C31: C35/45 | D31: 45 | E31: 35
C32: C40/50 | D32: 50 | E32: 40
C33: C45/55 | D33: 55 | E33: 45
C34: C50/60 | D34: 60 | E34: 50
C35: user material

Sheet CLT
F5: =traduzioni!A169 -> celdas editables
G9: fc0k | H9: fc90k | I9: ro | J9: E0m | K9: E90m | M9: ='CALCOLI STS (slab to slab)'!H16 -> GL24h | W9: =traduzioni!A26 -> Permanente | X9: 0.6
G10: [Mpa] | H10: [Mpa] | I10: [kg/mc] | J10: [Mpa] | K10: [Mpa] | W10: =traduzioni!A27 -> Larga | X10: 0.7
F11: C24 | G11: 21 | H11: 2.5 | I11: 380 | J11: =11000 -> 11000 | K11: 370 | M11: ym | N11: =IF(GEOMETRY!H14="NTC 2018 (ITA)",1.35,1.25) -> 1.25 | O11: [-] | W11: =traduzioni!A28 -> Media | X11: 0.8
F12: GL24h | G12: 24 | H12: 2.5 | I12: 380 | J12: 11500 | K12: 300 | M12: kmod | N12: =VLOOKUP('CALCOLI STS (slab to slab)'!H2,W9:X14,2,FALSE) -> 1 | O12: [-] | W12: =traduzioni!A29 -> Corta | X12: 0.9
F13: user material | W13: =traduzioni!A30 -> Instantánea | X13: 1.1
M14: ro | N14: =VLOOKUP($M$9,$F$11:$K$13,4,FALSE) -> 380 | O14: [kg/mc] | W14: =traduzioni!A31 -> Corta/Instantánea | X14: 1
M15: E0m | N15: =VLOOKUP($M$9,$F$11:$K$13,5,FALSE) -> 11500 | O15: [Mpa]
M16: E90m | N16: =VLOOKUP($M$9,$F$11:$K$13,6,FALSE) -> 300 | O16: [Mpa]
M18: fc0d | N18: =VLOOKUP($M$9,$F$11:$K$13,2,FALSE)*(N12/N11) -> 19.2 | O18: [Mpa]
A22: strati | B22: =E25 -> 5 | C22: =_xlfn.CONCAT("L","_",B22,) -> L_5 | F22: =traduzioni!A170 -> Paneles
B23: =E42 -> 7 | C23: =_xlfn.CONCAT("L","_",B23,) -> L_7 | G23: ns | H23: t | I23: t1 | J23: t2 | K23: t3 | L23: t4 | M23: t5 | N23: t6 | O23: t7 | P23: t8 | Q23: t9 | R23: t10 | S23: t11
B24: =E63 -> 9 | C24: =_xlfn.CONCAT("L","_",B24,) -> L_9 | G24: [-] | H24: [mm] | I24: [mm] | J24: [mm] | K24: [mm] | L24: [mm] | M24: [mm] | N24: [mm] | O24: [mm] | P24: [mm] | Q24: [mm] | R24: [mm] | S24: [mm]
B25: =E74 -> 11 | C25: =_xlfn.CONCAT("L","_",B25,) -> L_11 | E25: 5 | F25: =_xlfn.CONCAT(H25,"mm - ",G25," - ",I25," ",J25," ",K25," ",L25," ",M25) -> 160mm - 5s - 40 20 40 20 40 | G25: 5s | H25: =SUM(I25:M25) -> 160 | I25: 40 | J25: 20 | K25: 40 | L25: 20 | M25: 40
F26: =_xlfn.CONCAT(H26,"mm - ",G26," - ",I26," ",J26," ",K26," ",L26," ",M26) -> 160mm - 5s - 30 30 40 30 30 | G26: 5s | H26: =SUM(I26:M26) -> 160 | I26: 30 | J26: 30 | K26: 40 | L26: 30 | M26: 30
F27: 170mm - 5s - 40 30 30 30 40 | G27: 5s | H27: =SUM(I27:M27) -> 170 | I27: 40 | J27: 30 | K27: 30 | L27: 30 | M27: 40
F28: =_xlfn.CONCAT(H28,"mm - ",G28," - ",I28," ",J28," ",K28," ",L28," ",M28) -> 170mm - 5s - 30 40 30 40 30 | G28: 5s | H28: =SUM(I28:M28) -> 170 | I28: 30 | J28: 40 | K28: 30 | L28: 40 | M28: 30
F29: 180mm - 5s - 40 30 40 30 40 | G29: 5s | H29: =SUM(I29:M29) -> 180 | I29: 40 | J29: 30 | K29: 40 | L29: 30 | M29: 40
F30: 190mm - 5s - 40 40 30 40 40 | G30: 5s | H30: =SUM(I30:M30) -> 190 | I30: 40 | J30: 40 | K30: 30 | L30: 40 | M30: 40
F31: =_xlfn.CONCAT(H31,"mm - ",G31," - ",I31," ",J31," ",K31," ",L31," ",M31) -> 200mm - 5s - 60 20 40 20 60 | G31: 5s | H31: 200 | I31: 60 | J31: 20 | K31: 40 | L31: 20 | M31: 60
F32: 200mm - 5s - 40 40 40 40 40 | G32: 5s | H32: 200 | I32: 40 | J32: 40 | K32: 40 | L32: 40 | M32: 40
F33: =_xlfn.CONCAT(H33,"mm - ",G33," - ",I33," ",J33," ",K33," ",L33," ",M33) -> 220mm - 5s - 60 30 40 30 60 | G33: 5s | H33: =SUM(I33:M33) -> 220 | I33: 60 | J33: 30 | K33: 40 | L33: 30 | M33: 60
F34: =_xlfn.CONCAT(H34,"mm - ",G34," - ",I34," ",J34," ",K34," ",L34," ",M34) -> 260mm - 5s - 80 30 40 30 80 | G34: 5s | H34: =SUM(I34:M34) -> 260 | I34: 80 | J34: 30 | K34: 40 | L34: 30 | M34: 80
F35: =_xlfn.CONCAT(H35,"mm - ",G35," - ",I35," ",J35," ",K35," ",L35," ",M35," - user") -> 0mm - 5s - - user | G35: 5s | H35: 0
G40: ns | H40: t | I40: t1 | J40: t2 | K40: t3 | L40: t4 | M40: t5 | N40: t6 | O40: t7 | P40: t8 | Q40: t9 | R40: t10 | S40: t11
G41: [-] | H41: [mm] | I41: [mm] | J41: [mm] | K41: [mm] | L41: [mm] | M41: [mm] | N41: [mm] | O41: [mm] | P41: [mm] | Q41: [mm] | R41: [mm] | S41: [mm]
E42: 7 | F42: =_xlfn.CONCAT(H42,"mm - ",G42," - ",I42," ",J42," ",K42," ",L42," ",M42," ",N42," ",O42) -> 180mm - 7s - 30 20 30 20 30 20 30 | G42: 7s | H42: =SUM(I42:O42) -> 180 | I42: 30 | J42: 20 | K42: 30 | L42: 20 | M42: 30 | N42: 20 | O42: 30
F43: =_xlfn.CONCAT(H43,"mm - ",G43," - ",I43," ",J43," ",K43," ",L43," ",M43," ",N43," ",O43) -> 180mm - 7s - 20 40 20 20 20 40 20 | G43: 7s | H43: =SUM(I43:O43) -> 180 | I43: 20 | J43: 40 | K43: 20 | L43: 20 | M43: 20 | N43: 40 | O43: 20
F44: 200mm - 7s - 20 40 20 40 20 40 20 | G44: 7s | H44: =SUM(I44:O44) -> 200 | I44: 20 | J44: 40 | K44: 20 | L44: 40 | M44: 20 | N44: 40 | O44: 20
F45: 200mm - 7s - 30 30 30 20 30 30 30 | G45: 7s | H45: 200 | I45: 30 | J45: 30 | K45: 30 | L45: 20 | M45: 30 | N45: 30 | O45: 30
F46: 210mm - 7s - 30 30 30 30 30 30 30 | G46: 7s | H46: 210 | I46: 30 | J46: 30 | K46: 30 | L46: 30 | M46: 30 | N46: 30 | O46: 30
F47: 220mm - 7s - 40 40 20 20 20 40 40 | G47: 7s | H47: 220 | I47: 40 | J47: 40 | K47: 20 | L47: 20 | M47: 20 | N47: 40 | O47: 40
F48: =_xlfn.CONCAT(H48,"mm - ",G48," - ",I48," ",J48," ",K48," ",L48," ",M48," ",N48," ",O48) -> 220mm - 7s - 30 40 30 20 30 40 30 | G48: 7s | H48: =SUM(I48:O48) -> 220 | I48: 30 | J48: 40 | K48: 30 | L48: 20 | M48: 30 | N48: 40 | O48: 30
F49: =_xlfn.CONCAT(H49,"mm - ",G49," - ",I49," ",J49," ",K49," ",L49," ",M49," ",N49," ",O49) -> 220mm - 7s - 40 20 40 20 40 20 40 | G49: 7s | H49: =SUM(I49:O49) -> 220 | I49: 40 | J49: 20 | K49: 40 | L49: 20 | M49: 40 | N49: 20 | O49: 40
F50: 240mm - 7s - 30 40 30 40 30 40 30 | G50: 7s | H50: 240 | I50: 30 | J50: 40 | K50: 30 | L50: 40 | M50: 30 | N50: 40 | O50: 30
F51: =_xlfn.CONCAT(H51,"mm - ",G51," - ",I51," ",J51," ",K51," ",L51," ",M51," ",N51," ",O51) -> 240mm - 7s - 40 40 20 40 20 40 40 | G51: 7s | H51: =SUM(I51:O51) -> 240 | I51: 40 | J51: 40 | K51: 20 | L51: 40 | M51: 20 | N51: 40 | O51: 40
F52: 240mm - 7s - 40 20 40 40 40 20 40 | G52: 7s | H52: 240 | I52: 40 | J52: 20 | K52: 40 | L52: 40 | M52: 40 | N52: 20 | O52: 40
F53: =_xlfn.CONCAT(H53,"mm - ",G53," - ",I53," ",J53," ",K53," ",L53," ",M53," ",N53," ",O53) -> 252mm - 7s - 33 40 33 40 33 40 33 | G53: 7s | H53: =SUM(I53:O53) -> 252 | I53: 33 | J53: 40 | K53: 33 | L53: 40 | M53: 33 | N53: 40 | O53: 33
F54: =_xlfn.CONCAT(H54,"mm - ",G54," - ",I54," ",J54," ",K54," ",L54," ",M54," ",N54," ",O54) -> 260mm - 7s - 40 40 30 40 30 40 40 | G54: 7s | H54: =SUM(I54:O54) -> 260 | I54: 40 | J54: 40 | K54: 30 | L54: 40 | M54: 30 | N54: 40 | O54: 40
F55: 280mm - 7s - 40 40 40 40 40 40 40 | G55: 7s | H55: =SUM(I55:O55) -> 280 | I55: 40 | J55: 40 | K55: 40 | L55: 40 | M55: 40 | N55: 40 | O55: 40
F56: =_xlfn.CONCAT(H56,"mm - ",G56," - ",I56," ",J56," ",K56," ",L56," ",M56," ",N56," ",O56," - user") -> 0mm - 7s - - user | G56: 7s | H56: =SUM(I56:O56) -> 0
G61: ns | H61: t | I61: t1 | J61: t2 | K61: t3 | L61: t4 | M61: t5 | N61: t6 | O61: t7 | P61: t8 | Q61: t9 | R61: t10 | S61: t11
G62: [-] | H62: [mm] | I62: [mm] | J62: [mm] | K62: [mm] | L62: [mm] | M62: [mm] | N62: [mm] | O62: [mm] | P62: [mm] | Q62: [mm] | R62: [mm] | S62: [mm]
E63: 9 | F63: =_xlfn.CONCAT(H63,"mm - ",G63," - ",I63," ",J63," ",K63," ",L63," ",M63," ",N63," ",O63," ",P63," ",Q63) -> 297mm - 9s - 33 33 33 33 33 33 33 33 33 | G63: 9s | H63: =SUM(I63:Q63) -> 297 | I63: 33 | J63: 33 | K63: 33 | L63: 33 | M63: 33 | N63: 33 | O63: 33 | P63: 33 | Q63: 33
F64: =_xlfn.CONCAT(H64,"mm - ",G64," - ",I64," ",J64," ",K64," ",L64," ",M64," ",N64," ",O64," ",P64," ",Q64) -> 320mm - 9s - 40 30 40 30 40 30 40 30 40 | G64: 9s | H64: =SUM(I64:Q64) -> 320 | I64: 40 | J64: 30 | K64: 40 | L64: 30 | M64: 40 | N64: 30 | O64: 40 | P64: 30 | Q64: 40
F65: =_xlfn.CONCAT(H65,"mm - ",G65," - ",I65," ",J65," ",K65," ",L65," ",M65," ",N65," ",O65," ",P65," ",Q65) -> 340mm - 9s - 40 40 40 30 40 30 40 40 40 | G65: 9s | H65: 340 | I65: 40 | J65: 40 | K65: 40 | L65: 30 | M65: 40 | N65: 30 | O65: 40 | P65: 40 | Q65: 40
F66: =_xlfn.CONCAT(H66,"mm - ",G66," - ",I66," ",J66," ",K66," ",L66," ",M66," ",N66," ",O66," ",P66," ",Q66) -> 360mm - 9s - 40 40 40 40 40 40 40 40 40 | G66: 9s | H66: =SUM(I66:Q66) -> 360 | I66: 40 | J66: 40 | K66: 40 | L66: 40 | M66: 40 | N66: 40 | O66: 40 | P66: 40 | Q66: 40
F67: =_xlfn.CONCAT(H67,"mm - ",G67," - ",I67," ",J67," ",K67," ",L67," ",M67," ",N67," ",O67," ",P67," ",Q67," - user") -> 0mm - 9s - - user | G67: 9s | H67: =SUM(I67:Q67) -> 0
G72: ns | H72: t | I72: t1 | J72: t2 | K72: t3 | L72: t4 | M72: t5 | N72: t6 | O72: t7 | P72: t8 | Q72: t9 | R72: t10 | S72: t11
G73: [-] | H73: [mm] | I73: [mm] | J73: [mm] | K73: [mm] | L73: [mm] | M73: [mm] | N73: [mm] | O73: [mm] | P73: [mm] | Q73: [mm] | R73: [mm] | S73: [mm]
E74: 11 | F74: =_xlfn.CONCAT(H74,"mm - ",G74," - ",I74," ",J74," ",K74," ",L74," ",M74," ",N74," ",O74," ",P74," ",Q74," ",R74," ",S74) -> 220mm - 11s - 20 20 20 20 20 20 20 20 20 20 20 | G74: 11s | H74: =SUM(I74:S74) -> 220 | I74: 20 | J74: 20 | K74: 20 | L74: 20 | M74: 20 | N74: 20 | O74: 20 | P74: 20 | Q74: 20 | R74: 20 | S74: 20
F75: =_xlfn.CONCAT(H75,"mm - ",G75," - ",I75," ",J75," ",K75," ",L75," ",M75," ",N75," ",O75," ",P75," ",Q75," ",R75," ",S75) -> 380mm - 11s - 30 40 30 40 30 40 30 40 30 40 30 | G75: 11s | H75: =SUM(I75:S75) -> 380 | I75: 30 | J75: 40 | K75: 30 | L75: 40 | M75: 30 | N75: 40 | O75: 30 | P75: 40 | Q75: 30 | R75: 40 | S75: 30
F76: =_xlfn.CONCAT(H76,"mm - ",G76," - ",I76," ",J76," ",K76," ",L76," ",M76," ",N76," ",O76," ",P76," ",Q76," ",R76," ",S76," - user") -> 0mm - 11s - - user | G76: 11s | H76: =SUM(I76:S76) -> 0

Sheet SCREWS
C5: =traduzioni!A171 -> celdas editables
AD8: legno | AI8: leff min (duct) | AJ8: leff min (e)
C9: SCREWS | F9: d | G9: Ftens | H9: fbk | I9: MY | J9: fuk | K9: dn | M9: =traduzioni!A172 -> coef. conexión madera | AD9: ym | AE9: =IF('CALCOLI STS (slab to slab)'!L2="NTC 2018 (ITA)",1.4,1.35) -> 1.35 | AF9: [-] | AH9: =((20*F11^-0.5)) -> 6.7 | AI9: =2.3*(I11*1000/(20*F11^-0.5*F11))^0.5 -> 49.0
F10: [mm] | G10: [kN] | H10: [MPa] | I10: [Nm] | J10: [MPa] | K10: [mm] | M10: ym | N10: =IF('CALCOLI STS (slab to slab)'!L2="NTC 2018 (ITA)",1.4,1.3) -> 1.3 | O10: [-] | AD10: kmod | AE10: =VLOOKUP('CALCOLI STS (slab to slab)'!H2,CLT!W9:X14,2,FALSE) -> 1 | AF10: [-] | AH10: =((20*F12^-0.5)) -> 6.0 | AI10: =2.3*(I12*1000/(20*F12^-0.5*F12))^0.5 -> 60.5
C11: VGS | E11: =_xlfn.CONCAT(C11,"_",F11) -> VGS_9 | F11: 9 | G11: 25.4 | H11: 12.5 | I11: 27.2 | J11: 1000 | K11: 5.9 | M11: kmod | N11: =VLOOKUP('CALCOLI STS (slab to slab)'!H2,CLT!W9:X14,2,FALSE) -> 1 | O11: [-] | AD11: ymconn | AE11: =IF('CALCOLI STS (slab to slab)'!L2="NTC 2018 (ITA)",1.4,1.3) -> 1.3 | AF11: [-] | AH11: =((20*F13^-0.5)) -> 5.5 | AI11: =2.3*(I13*1000/(20*F13^-0.5*F13))^0.5 -> 72.1
E12: =_xlfn.CONCAT(C11,"_",F12) -> VGS_11 | F12: 11 | G12: 38 | H12: 12.5 | I12: 45.9 | J12: 1000 | K12: 6.6 | AH12: =((20*F14^-0.5)) -> 5.0 | AI12: =2.3*(I14*1000/(20*F14^-0.5*F14))^0.5 -> 115.0
E13: =_xlfn.CONCAT(C11,"_",F13) -> VGS_13 | F13: 13 | G13: 53 | H13: 12.5 | I13: 70.9 | J13: 1000 | K13: 8 | M13: =traduzioni!A173 -> coef. material acero | AD13: acciaio (trazione)
C14: RTR | E14: =_xlfn.CONCAT(C14,"_",F14) -> RTR_16 | F14: 16 | G14: 100 | H14: 9 | I14: 200 | J14: 650 | K14: 12 | M14: ym | N14: =IF('CALCOLI STS (slab to slab)'!L2="NTC 2018 (ITA)",1.25,1.25) -> 1.25 | O14: [-] | AD14: ym | AE14: =IF('CALCOLI STS (slab to slab)'!L2="NTC 2018 (ITA)",1.25,1.25) -> 1.25 | AF14: [-]
M16: =traduzioni!A174 -> coef. material hormigón | AD16: Calcestruzzo
M17: ym | N17: =CONCRETE!H26 -> 1.5 | O17: [-] | AD17: ym | AE17: =CONCRETE!H26 -> 1.5 | AF17: [-]
M18: acc | N18: =CONCRETE!H27 -> 0.85 | O18: [-] | AD18: acc | AE18: =CONCRETE!H27 -> 0.85 | AF18: [-] | AX18: coeff. Sovr. exp | AZ18: 1.5
M19: act | N19: =CONCRETE!H28 -> 1 | O19: [-] | AD19: act | AE19: =CONCRETE!H28 -> 1 | AF19: [-]
AL22: CONTROLLO SU VALORI DI PROGETTO | AR22: CONTROLLO SU VALORI CARATTERISTICI | AX22: CONTROLLO SU VALORI MEDI
C23: Selection: | D23: ='CALCOLI STS (slab to slab)'!H22 -> VGS_11 | E23: ='CALCOLI STS (slab to slab)'!H24 -> 11
AB24: RESISTENZE IMPONENDO MINIMA LUNGHEZZA LATO CALCESTRUZZO | AM24: sovrapposizione | AO24: ancoraggio | AS24: sovrapposizione | AU24: ancoraggio | AY24: sovrapposizione | BA24: ancoraggio
B25: =traduzioni!A175 -> Resistencia axial - Hormigón | G25: =traduzioni!A176 -> Resistencia axial - Madera | AB25: Resistenze massime lato legno con lunghezza minima lato cls | AF25: Resistenze massime lato calcestruzzo con lunghezza minima | AL25: Rmin | AM25: tipo di rottura | AN25: Rmin | AR25: Rmin | AS25: tipo di rottura | AT25: Rmin | AX25: Rmin | AY25: tipo di rottura | AZ25: Rmin
AB26: Sovrapposizione | AC26: Ancoraggio | AD26: Resistenza lato legno considerando penetrazione minima lato calcestruzzo (sovrapp) | AE26: Resistenza lato legno considerando penetrazione minima lato calcestruzzo (anc) | AF26: Sovrapposizione | AG26: Ancoraggio | AI26: Sovrapposizione | AJ26: Ancoraggio
Y27: d | Z27: l | AA27: Ftens,d | AB27: l-l0min-c | AC27: l-lbdmin | AD27: Raxd(l-L0min-c) | AE27: Raxd(l-Lbdmin) | AG27: lbdmin | AI27: Raxd(Lmin) | AJ27: Raxd(Lbdmin)
C28: leff | D28: ='CALCOLI STS (slab to slab)'!H54 -> 160 | E28: [mm] | W28: =$E$11 -> VGS_9 | X28: =_xlfn.CONCAT(W28,"_",Z28) -> VGS_9_300 | Y28: =IF(MID(W28,5,1)<=9,MID(W28,5,1),MID(W28,5,2)) -> 9 | Z28: 300 | AA28: =$G$11/$AE$14 -> 20.32 | AB28: =Z28-AF28-25 -> 125 | AC28: =Z28-AG28 -> 200.0 | AD28: =((20*(Y28^0.8)*AB28^0.9)/1000)*$AE$10/$AE$9 -> 6.6 | AE28: =((20*(Y28^0.8)*AC28^0.9)/1000)*$AE$10/$AE$9 -> 10.1 | AF28: =MAX(14*Y28,150) -> 150 | AG28: =MAX(9*Y28,100) -> 100 | AH28: =VLOOKUP(W28,$E$11:$I$14,4,FALSE) -> 12.5 | AI28: =((Y28*PI())*AF28)*(AH28*$AE$18/$AE$17)/1000 -> 30.0 | AJ28: =((Y28*PI())*AG28)*(AH28*$AE$18/$AE$17)/1000 -> 20.0 | AL28: =MIN(#REF!,#REF!,#REF!) ->  | AM28: =IF(AL28=AA28,"ACCIAIO",IF(AL28=AD28,"LEGNO",IF(AL28=AI28," CALCESTRUZZO"))) ->  | AN28: =MIN(#REF!,#REF!,#REF!) ->  | AO28: =IF(AN28=AA28,"ACCIAIO",IF(AN28=AE28,"LEGNO",IF(AN28=AJ28,"CALCESTRUZZO"))) ->  | AR28: =MIN(AA28*$AE$14,AD28*$AE$9/$AE$10,AI28*$AE$17/$AE$18) -> 8.9 | AS28: =IF(AR28=AA28*$AE$14,"ACCIAIO",IF(AR28=AD28*$AE$9/$AE$10,"LEGNO",IF(AR28=AI28*$AE$17/$AE$18," CALCESTRUZZO"))) -> LEGNO | AT28: =MIN(AA28*$AE$14,AE28*$AE$9/$AE$10,AJ28*$AE$17/$AE$18) -> 13.7 | AU28: =IF(AT28=AA28*$AE$14,"ACCIAIO",IF(AT28=AE28*$AE$9/$AE$10,"LEGNO",IF(AT28=AJ28*$AE$17/$AE$18," CALCESTRUZZO"))) -> LEGNO | AX28: =MIN(AA28*$AE$14,$AZ$18*AD28*$AE$9/$AE$10,AI28*$AE$17/$AE$18) -> 13.4 | AY28: =IF(AX28=AA28*$AE$14,"ACCIAIO",IF(AX28=$AZ$18*AD28*$AE$9/$AE$10,"LEGNO",IF(AX28=AI28*$AE$17/$AE$18," CALCESTRUZZO"))) -> LEGNO | AZ28: =MIN(AA28*$AE$14,$AZ$18*AE28*$AE$9/$AE$10,AJ28*$AE$17/$AE$18) -> 20.5 | BA28: =IF(AZ28=AA28*$AE$14,"ACCIAIO",IF(AZ28=$AZ$18*AE28*$AE$9/$AE$10,"LEGNO",IF(AZ28=AJ28*$AE$17/$AE$18," CALCESTRUZZO"))) -> LEGNO
C29: fbk | D29: =VLOOKUP(D23,E11:I14,4,FALSE)*D34 -> 12.5 | E29: [MPa] | F29: ETA-22/0806 | H29: ρ CLT | I29: =CLT!N14 -> 380 | J29: [kg/mc] | W29: VGS_9 | X29: =_xlfn.CONCAT(W29,"_",Z29) -> VGS_9_320 | Y29: 9 | Z29: =Z28+20 -> 320 | AA29: 20.32 | AB29: =Z29-AF29-25 -> 145 | AC29: =Z29-AG29 -> 220.0 | AD29: =((20*(Y29^0.8)*AB29^0.9)/1000)*$AE$10/$AE$9 -> 7.6 | AE29: =((20*(Y29^0.8)*AC29^0.9)/1000)*$AE$10/$AE$9 -> 11.0 | AF29: =MAX(14*Y29,150) -> 150 | AG29: =MAX(9*Y29,100) -> 100 | AH29: =VLOOKUP(W29,$E$11:$I$14,4,FALSE) -> 12.5 | AI29: =((Y29*PI())*AF29)*(AH29*$AE$18/$AE$17)/1000 -> 30.0 | AJ29: =((Y29*PI())*AG29)*(AH29*$AE$18/$AE$17)/1000 -> 20.0 | AL29: =MIN(AA29,AD29,AI29) -> 7.6 | AM29: =IF(AL29=AA29,"ACCIAIO",IF(AL29=AD29,"LEGNO",IF(AL29=AI29," CALCESTRUZZO"))) -> LEGNO | AN29: =MIN(AA29,AE29,AJ29) -> 11.0 | AO29: =IF(AN29=AA29,"ACCIAIO",IF(AN29=AE29,"LEGNO",IF(AN29=AJ29,"CALCESTRUZZO"))) -> LEGNO | AR29: =MIN(AA29*$AE$14,AD29*$AE$9/$AE$10,AI29*$AE$17/$AE$18) -> 10.2 | AS29: =IF(AR29=AA29*$AE$14,"ACCIAIO",IF(AR29=AD29*$AE$9/$AE$10,"LEGNO",IF(AR29=AI29*$AE$17/$AE$18," CALCESTRUZZO"))) -> LEGNO | AT29: =MIN(AA29*$AE$14,AE29*$AE$9/$AE$10,AJ29*$AE$17/$AE$18) -> 14.9 | AU29: =IF(AT29=AA29*$AE$14,"ACCIAIO",IF(AT29=AE29*$AE$9/$AE$10,"LEGNO",IF(AT29=AJ29*$AE$17/$AE$18," CALCESTRUZZO"))) -> LEGNO | AX29: =MIN(AA29*$AE$14,$AZ$18*AD29*$AE$9/$AE$10,AI29*$AE$17/$AE$18) -> 15.3 | AY29: =IF(AX29=AA29*$AE$14,"ACCIAIO",IF(AX29=$AZ$18*AD29*$AE$9/$AE$10,"LEGNO",IF(AX29=AI29*$AE$17/$AE$18," CALCESTRUZZO"))) -> LEGNO | AZ29: =MIN(AA29*$AE$14,$AZ$18*AE29*$AE$9/$AE$10,AJ29*$AE$17/$AE$18) -> 22.3 | BA29: =IF(AZ29=AA29*$AE$14,"ACCIAIO",IF(AZ29=$AZ$18*AE29*$AE$9/$AE$10,"LEGNO",IF(AZ29=AJ29*$AE$17/$AE$18," CALCESTRUZZO"))) -> LEGNO
C30: fbd | D30: =D29*AE19/AE17 -> 8.3 | E30: [MPa] | H30: leff | I30: ='CALCOLI STS (slab to slab)'!H59 -> 260 | J30: [mm] | W30: VGS_9 | X30: VGS_9_340 | Y30: 9 | Z30: 340 | AA30: 20.32 | AB30: 165 | AC30: 240.0 | AD30: 8.5 | AE30: 11.9 | AF30: 150 | AG30: 100 | AH30: 12.5 | AI30: 30.0 | AJ30: 20.0 | AL30: 8.5 | AM30: LEGNO | AN30: 11.9 | AO30: LEGNO | AR30: 11.5 | AS30: LEGNO | AT30: 16.1 | AU30: LEGNO | AX30: 17.2 | AY30: LEGNO | AZ30: 24.1 | BA30: LEGNO
C31: Raxconc,k | D31: =((E23*PI())*D28)*D29/1000 -> 69.1 | E31: [kN] | F31: EC 1992-1-1 | H31: Rtens,d | I31: =VLOOKUP(D23,E11:G14,3,FALSE)/AE14 -> 30.4 | J31: [kN] | W31: VGS_9 | X31: VGS_9_360 | Y31: 9 | Z31: 360 | AA31: 20.32 | AB31: 185 | AC31: 260.0 | AD31: 9.4 | AE31: 12.8 | AF31: 150 | AG31: 100 | AH31: 12.5 | AI31: 30.0 | AJ31: 20.0 | AL31: 9.4 | AM31: LEGNO | AN31: 12.8 | AO31: LEGNO | AR31: 12.7 | AS31: LEGNO | AT31: 17.3 | AU31: LEGNO | AX31: 19.1 | AY31: LEGNO | AZ31: 25.4 | BA31: ACCIAIO
C32: Raxconc,d | D32: =((E23*PI())*D28)*D30/1000 -> 46.1 | E32: [kN] | H32: Rax,d | I32: =IF(D23=W84,(((15*(E23^0.8)*I30^0.9)/1000)*AE10/AE11),(((20*(E23^0.8)*I30^0.9)/1000)*AE10/AE11)) -> 15.6 | J32: [kN] | K32: ETA-11/0030 | W32: VGS_9 | X32: VGS_9_380 | Y32: =IF(MID(W32,5,1)<=9,MID(W32,5,1),MID(W32,5,2)) -> 9 | Z32: 380 | AA32: 20.32 | AB32: 205 | AC32: 280.0 | AD32: 10.3 | AE32: 13.7 | AF32: 150 | AG32: 100 | AH32: 12.5 | AI32: 30.0 | AJ32: 20.0 | AL32: 10.3 | AM32: LEGNO | AN32: 13.7 | AO32: LEGNO | AR32: 14.0 | AS32: LEGNO | AT32: 18.5 | AU32: LEGNO | AX32: 20.9 | AY32: LEGNO | AZ32: 25.4 | BA32: ACCIAIO
W33: VGS_9 | X33: VGS_9_400 | Y33: 9 | Z33: 400 | AA33: 20.32 | AB33: 225 | AC33: 300.0 | AD33: 11.2 | AE33: 14.6 | AF33: 150 | AG33: 100 | AH33: 12.5 | AI33: 30.0 | AJ33: 20.0 | AL33: 11.2 | AM33: LEGNO | AN33: 14.6 | AO33: LEGNO | AR33: 15.2 | AS33: LEGNO | AT33: 19.7 | AU33: LEGNO | AX33: 22.8 | AY33: LEGNO | AZ33: 25.4 | BA33: ACCIAIO
C34: Conversion factor | D34: 1 | E34: [%] | F34: ETA-22/0806 | H34: min | I34: =MIN(I32,I31,D32) -> 15.6 | J34: [kN] | W34: VGS_9 | X34: VGS_9_440 | Y34: 9 | Z34: =Z33+40 -> 440 | AA34: 20.32 | AB34: 265 | AC34: 340.0 | AD34: 13.0 | AE34: 16.3 | AF34: 150 | AG34: 100 | AH34: 12.5 | AI34: 30.0 | AJ34: 20.0 | AL34: 13.0 | AM34: LEGNO | AN34: 16.3 | AO34: LEGNO | AR34: 17.6 | AS34: LEGNO | AT34: 22.0 | AU34: LEGNO | AX34: 25.4 | AY34: ACCIAIO | AZ34: 25.4 | BA34: ACCIAIO
W35: VGS_9 | X35: VGS_9_480 | Y35: 9 | Z35: =Z34+40 -> 480 | AA35: 20.32 | AB35: 305 | AC35: 380.0 | AD35: 14.8 | AE35: 18.0 | AF35: 150 | AG35: 100 | AH35: 12.5 | AI35: 30.0 | AJ35: 20.0 | AL35: 14.8 | AM35: LEGNO | AN35: 18.0 | AO35: LEGNO | AR35: 20.0 | AS35: LEGNO | AT35: 24.3 | AU35: LEGNO | AX35: 25.4 | AY35: ACCIAIO | AZ35: 25.4 | BA35: ACCIAIO
W36: VGS_9 | X36: VGS_9_520 | Y36: 9 | Z36: 520 | AA36: 20.32 | AB36: =Z36-AF36-25 -> 345 | AC36: =Z36-AG36 -> 420.0 | AD36: =((20*(Y36^0.8)*AB36^0.9)/1000)*$AE$10/$AE$9 -> 16.5 | AE36: =((20*(Y36^0.8)*AC36^0.9)/1000)*$AE$10/$AE$9 -> 19.7 | AF36: =MAX(14*Y36,150) -> 150 | AG36: =MAX(9*Y36,100) -> 100 | AH36: =VLOOKUP(W36,$E$11:$I$14,4,FALSE) -> 12.5 | AI36: =((Y36*PI())*AF36)*(AH36*$AE$18/$AE$17)/1000 -> 30.0 | AJ36: =((Y36*PI())*AG36)*(AH36*$AE$18/$AE$17)/1000 -> 20.0 | AL36: =MIN(AA36,AD36,AI36) -> 16.5 | AM36: =IF(AL36=AA36,"ACCIAIO",IF(AL36=AD36,"LEGNO",IF(AL36=AI36," CALCESTRUZZO"))) -> LEGNO | AN36: =MIN(AA36,AE36,AJ36) -> 19.7 | AO36: =IF(AN36=AA36,"ACCIAIO",IF(AN36=AE36,"LEGNO",IF(AN36=AJ36,"CALCESTRUZZO"))) -> LEGNO | AR36: =MIN(AA36*$AE$14,AD36*$AE$9/$AE$10,AI36*$AE$17/$AE$18) -> 22.3 | AS36: =IF(AR36=AA36*$AE$14,"ACCIAIO",IF(AR36=AD36*$AE$9/$AE$10,"LEGNO",IF(AR36=AI36*$AE$17/$AE$18," CALCESTRUZZO"))) -> LEGNO | AT36: =MIN(AA36*$AE$14,AE36*$AE$9/$AE$10,AJ36*$AE$17/$AE$18) -> 25.4 | AU36: =IF(AT36=AA36*$AE$14,"ACCIAIO",IF(AT36=AE36*$AE$9/$AE$10,"LEGNO",IF(AT36=AJ36*$AE$17/$AE$18," CALCESTRUZZO"))) -> ACCIAIO | AX36: =MIN(AA36*$AE$14,$AZ$18*AD36*$AE$9/$AE$10,AI36*$AE$17/$AE$18) -> 25.4 | AY36: =IF(AX36=AA36*$AE$14,"ACCIAIO",IF(AX36=$AZ$18*AD36*$AE$9/$AE$10,"LEGNO",IF(AX36=AI36*$AE$17/$AE$18," CALCESTRUZZO"))) -> ACCIAIO | AZ36: =MIN(AA36*$AE$14,$AZ$18*AE36*$AE$9/$AE$10,AJ36*$AE$17/$AE$18) -> 25.4 | BA36: =IF(AZ36=AA36*$AE$14,"ACCIAIO",IF(AZ36=$AZ$18*AE36*$AE$9/$AE$10,"LEGNO",IF(AZ36=AJ36*$AE$17/$AE$18," CALCESTRUZZO"))) -> ACCIAIO
B37: =traduzioni!A177 -> Resistencia al corte - Madera | G37: =traduzioni!A178 -> Resistencia al corte - Acero | W37: VGS_9 | X37: VGS_9_560 | Y37: 9 | Z37: =Z36+40 -> 560 | AA37: 20.32 | AB37: 385 | AC37: 460.0 | AD37: 18.2 | AE37: 21.4 | AF37: 150 | AG37: 100 | AH37: 12.5 | AI37: 30.0 | AJ37: 20.0 | AL37: 18.2 | AM37: LEGNO | AN37: 20.0 | AO37: CALCESTRUZZO | AR37: 24.6 | AS37: LEGNO | AT37: 25.4 | AU37: ACCIAIO | AX37: 25.4 | AY37: ACCIAIO | AZ37: 25.4 | BA37: ACCIAIO
W38: VGS_9 | X38: VGS_9_600 | Y38: 9 | Z38: 600 | AA38: 20.32 | AB38: =Z38-AF38-25 -> 425 | AC38: =Z38-AG38 -> 500.0 | AD38: 19.9 | AE38: 23.1 | AF38: 150 | AG38: 100 | AH38: 12.5 | AI38: 30.0 | AJ38: 20.0 | AL38: 19.9 | AM38: LEGNO | AN38: 20.0 | AO38: =IF(AN38=AA38,"ACCIAIO",IF(AN38=AE38,"LEGNO",IF(AN38=AJ38,"CALCESTRUZZO"))) -> CALCESTRUZZO | AR38: 25.4 | AS38: ACCIAIO | AT38: 25.4 | AU38: ACCIAIO | AX38: 25.4 | AY38: ACCIAIO | AZ38: 25.4 | BA38: ACCIAIO
C40: My | D40: =VLOOKUP(D23,E11:J14,5,FALSE) -> 45.9 | E40: [Nm] | H40: ftb | I40: =VLOOKUP(D23,E11:J14,6,FALSE) -> 1000 | J40: [MPa] | W40: =$E$12 -> VGS_11 | X40: VGS_11_300 | Y40: =IF(MID(W40,5,1)<=9,MID(W40,5,1),MID(W40,5,2)) -> 11 | Z40: 300 | AA40: =$G$12/$AE$14 -> 30.4 | AB40: =Z40-AF40-25 -> 121 | AC40: =Z40-AG40 -> 200.0 | AD40: =((20*(Y40^0.8)*AB40^0.9)/1000)*$AE$10/$AE$9 -> 7.6 | AE40: =((20*(Y40^0.8)*AC40^0.9)/1000)*$AE$10/$AE$9 -> 11.9 | AF40: =MAX(14*Y40,150) -> 154 | AG40: =MAX(9*Y40,100) -> 100 | AH40: =VLOOKUP(W40,$E$11:$I$14,4,FALSE) -> 12.5 | AI40: =((Y40*PI())*AF40)*(AH40*$AE$18/$AE$17)/1000 -> 37.7 | AJ40: =((Y40*PI())*AG40)*(AH40*$AE$18/$AE$17)/1000 -> 24.5 | AL40: =MIN(AA40,AD40,AI40) -> 7.6 | AM40: =IF(AL40=AA40,"ACCIAIO",IF(AL40=AD40,"LEGNO",IF(AL40=AI40," CALCESTRUZZO"))) -> LEGNO | AN40: =MIN(AA40,AE40,AJ40) -> 11.9 | AO40: =IF(AN40=AA40,"ACCIAIO",IF(AN40=AE40,"LEGNO",IF(AN40=AJ40,"CALCESTRUZZO"))) -> LEGNO | AR40: =MIN(AA40*$AE$14,AD40*$AE$9/$AE$10,AI40*$AE$17/$AE$18) -> 10.2 | AS40: =IF(AR40=AA40*$AE$14,"ACCIAIO",IF(AR40=AD40*$AE$9/$AE$10,"LEGNO",IF(AR40=AI40*$AE$17/$AE$18," CALCESTRUZZO"))) -> LEGNO | AT40: =MIN(AA40*$AE$14,AE40*$AE$9/$AE$10,AJ40*$AE$17/$AE$18) -> 16.0 | AU40: =IF(AT40=AA40*$AE$14,"ACCIAIO",IF(AT40=AE40*$AE$9/$AE$10,"LEGNO",IF(AT40=AJ40*$AE$17/$AE$18," CALCESTRUZZO"))) -> LEGNO | AX40: =MIN(AA40*$AE$14,$AZ$18*AD40*$AE$9/$AE$10,AI40*$AE$17/$AE$18) -> 15.3 | AY40: =IF(AX40=AA40*$AE$14,"ACCIAIO",IF(AX40=$AZ$18*AD40*$AE$9/$AE$10,"LEGNO",IF(AX40=AI40*$AE$17/$AE$18," CALCESTRUZZO"))) -> LEGNO | AZ40: =MIN(AA40*$AE$14,$AZ$18*AE40*$AE$9/$AE$10,AJ40*$AE$17/$AE$18) -> 24.1 | BA40: =IF(AZ40=AA40*$AE$14,"ACCIAIO",IF(AZ40=$AZ$18*AE40*$AE$9/$AE$10,"LEGNO",IF(AZ40=AJ40*$AE$17/$AE$18," CALCESTRUZZO"))) -> LEGNO
C41: fhk | D41: =20*E23^-0.5 -> 6.0 | E41: [MPa] | F41: ETA-11/0030 | H41: Aeff | I41: =PI()*VLOOKUP(D23,E11:K14,7,FALSE)^2/4 -> 34.2 | J41: [mm2] | W41: VGS_11 | X41: VGS_11_325 | Y41: 11 | Z41: =Z40+25 -> 325 | AA41: 30.4 | AB41: 146 | AC41: 225.0 | AD41: 8.9 | AE41: 13.2 | AF41: 154 | AG41: 100 | AH41: 12.5 | AI41: 37.7 | AJ41: 24.5 | AL41: 8.9 | AM41: LEGNO | AN41: 13.2 | AO41: LEGNO | AR41: 12.1 | AS41: LEGNO | AT41: 17.8 | AU41: LEGNO | AX41: 18.1 | AY41: LEGNO | AZ41: 26.7 | BA41: LEGNO
H42: Fv,Rk | I42: =0.5*I40*I41/1000 -> 17.1 | J42: [kN] | K42: EC 1995-1-1 | W42: VGS_11 | X42: VGS_11_350 | Y42: 11 | Z42: 350 | AA42: 30.4 | AB42: 171 | AC42: 250.0 | AD42: 10.3 | AE42: 14.5 | AF42: 154 | AG42: 100 | AH42: 12.5 | AI42: 37.7 | AJ42: 24.5 | AL42: 10.3 | AM42: LEGNO | AN42: 14.5 | AO42: LEGNO | AR42: 13.9 | AS42: LEGNO | AT42: 19.6 | AU42: LEGNO | AX42: 20.9 | AY42: LEGNO | AZ42: 29.4 | BA42: LEGNO
H43: Fv,Rd | I43: =I42/AE14 -> 13.7 | J43: [kN] | W43: VGS_11 | X43: VGS_11_375 | Y43: 11 | Z43: 375 | AA43: 30.4 | AB43: 196 | AC43: 275.0 | AD43: 11.7 | AE43: 15.8 | AF43: 154 | AG43: 100 | AH43: 12.5 | AI43: 37.7 | AJ43: 24.5 | AL43: 11.7 | AM43: LEGNO | AN43: 15.8 | AO43: LEGNO | AR43: 15.7 | AS43: LEGNO | AT43: 21.4 | AU43: LEGNO | AX43: 23.6 | AY43: LEGNO | AZ43: 32.0 | BA43: LEGNO
C44: failure mode: | D44: =(D41*I30*E23)/1000 -> 17.2 | F44: c | W44: VGS_11 | X44: VGS_11_400 | Y44: 11 | Z44: 400 | AA44: 30.4 | AB44: 221 | AC44: 300.0 | AD44: 13.0 | AE44: 17.1 | AF44: 154 | AG44: 100 | AH44: 12.5 | AI44: 37.7 | AJ44: 24.5 | AL44: 13.0 | AM44: LEGNO | AN44: 17.1 | AO44: LEGNO | AR44: 17.5 | AS44: LEGNO | AT44: 23.1 | AU44: LEGNO | AX44: 26.3 | AY44: LEGNO | AZ44: 34.6 | BA44: LEGNO
C45: EC 1995-1-1 | D45: =IF(T55<(T53/100)*S55,(S55+T55),IF(T55>(T53/100),(S55+U55))) -> 12.2 | F45: d | W45: VGS_11 | X45: VGS_11_425 | Y45: 11 | Z45: 425 | AA45: 30.4 | AB45: 246 | AC45: 325.0 | AD45: 14.3 | AE45: 18.4 | AF45: 154 | AG45: 100 | AH45: 12.5 | AI45: 37.7 | AJ45: 24.5 | AL45: 14.3 | AM45: LEGNO | AN45: 18.4 | AO45: LEGNO | AR45: 19.3 | AS45: LEGNO | AT45: 24.8 | AU45: LEGNO | AX45: 29.0 | AY45: LEGNO | AZ45: 37.2 | BA45: LEGNO
C46: thick plate | D46: =IF(T56<(T53/100)*S56,(S56+T56),IF(T56>(T53/100),S56+U56)) -> 8.03 | F46: e | W46: VGS_11 | X46: VGS_11_450 | Y46: 11 | Z46: 450 | AA46: 30.4 | AB46: =Z46-AF46-25 -> 271 | AC46: =Z46-AG46 -> 350.0 | AD46: =((20*(Y46^0.8)*AB46^0.9)/1000)*$AE$10/$AE$9 -> 15.6 | AE46: =((20*(Y46^0.8)*AC46^0.9)/1000)*$AE$10/$AE$9 -> 19.7 | AF46: 154 | AG46: =MAX(9*Y46,100) -> 100 | AH46: =VLOOKUP(W46,$E$11:$I$14,4,FALSE) -> 12.5 | AI46: =((Y46*PI())*AF46)*(AH46*$AE$18/$AE$17)/1000 -> 37.7 | AJ46: =((Y46*PI())*AG46)*(AH46*$AE$18/$AE$17)/1000 -> 24.5 | AL46: 15.6 | AM46: LEGNO | AN46: 19.7 | AO46: LEGNO | AR46: =MIN(AA46*$AE$14,AD46*$AE$9/$AE$10,AI46*$AE$17/$AE$18) -> 21.1 | AS46: =IF(AR46=AA46*$AE$14,"ACCIAIO",IF(AR46=AD46*$AE$9/$AE$10,"LEGNO",IF(AR46=AI46*$AE$17/$AE$18," CALCESTRUZZO"))) -> LEGNO | AT46: =MIN(AA46*$AE$14,AE46*$AE$9/$AE$10,AJ46*$AE$17/$AE$18) -> 26.5 | AU46: =IF(AT46=AA46*$AE$14,"ACCIAIO",IF(AT46=AE46*$AE$9/$AE$10,"LEGNO",IF(AT46=AJ46*$AE$17/$AE$18," CALCESTRUZZO"))) -> LEGNO | AX46: =MIN(AA46*$AE$14,$AZ$18*AD46*$AE$9/$AE$10,AI46*$AE$17/$AE$18) -> 31.6 | AY46: =IF(AX46=AA46*$AE$14,"ACCIAIO",IF(AX46=$AZ$18*AD46*$AE$9/$AE$10,"LEGNO",IF(AX46=AI46*$AE$17/$AE$18," CALCESTRUZZO"))) -> LEGNO | AZ46: =MIN(AA46*$AE$14,$AZ$18*AE46*$AE$9/$AE$10,AJ46*$AE$17/$AE$18) -> 38.0 | BA46: =IF(AZ46=AA46*$AE$14,"ACCIAIO",IF(AZ46=$AZ$18*AE46*$AE$9/$AE$10,"LEGNO",IF(AZ46=AJ46*$AE$17/$AE$18," CALCESTRUZZO"))) -> ACCIAIO
W47: VGS_11 | X47: VGS_11_475 | Y47: 11 | Z47: =Z46+25 -> 475 | AA47: 30.4 | AB47: 296 | AC47: 375.0 | AD47: 16.9 | AE47: 20.9 | AF47: 154 | AG47: 100 | AH47: 12.5 | AI47: 37.7 | AJ47: 24.5 | AL47: 16.9 | AM47: LEGNO | AN47: 20.9 | AO47: LEGNO | AR47: 22.8 | AS47: LEGNO | AT47: 28.2 | AU47: LEGNO | AX47: 34.2 | AY47: LEGNO | AZ47: 38.0 | BA47: ACCIAIO
C48: Rv,d | D48: =MIN(D44,D46,D45)*AE10/AE11 -> 6.2 | E48: [kN] | F48: =VLOOKUP(D48*AE11/CLT!N12,D44:F46,3,FALSE) -> e | W48: VGS_11 | X48: VGS_11_500 | Y48: 11 | Z48: 500 | AA48: 30.4 | AB48: 321 | AC48: 400.0 | AD48: 18.2 | AE48: 22.2 | AF48: 154 | AG48: 100 | AH48: 12.5 | AI48: 37.7 | AJ48: 24.5 | AL48: 18.2 | AM48: LEGNO | AN48: 22.2 | AO48: LEGNO | AR48: 24.5 | AS48: LEGNO | AT48: 29.9 | AU48: LEGNO | AX48: 36.8 | AY48: LEGNO | AZ48: 38.0 | BA48: ACCIAIO
W49: VGS_11 | X49: VGS_11_525 | Y49: 11 | Z49: 525 | AA49: 30.4 | AB49: 346 | AC49: 425.0 | AD49: 19.5 | AE49: 23.4 | AF49: 154 | AG49: 100 | AH49: 12.5 | AI49: 37.7 | AJ49: 24.5 | AL49: 19.5 | AM49: LEGNO | AN49: 23.4 | AO49: LEGNO | AR49: 26.3 | AS49: LEGNO | AT49: 31.6 | AU49: LEGNO | AX49: 38.0 | AY49: ACCIAIO | AZ49: 38.0 | BA49: ACCIAIO
C50: leff,min duct | D50: =2.3*(D40*10^3/(D41*E23))^0.5 -> 60.5 | E50: [mm] | F50: =IF(D50<I30,"OK","NO") -> OK | W50: VGS_11 | X50: VGS_11_550 | Y50: 11 | Z50: 550 | AA50: 30.4 | AB50: 371 | AC50: 450.0 | AD50: 20.7 | AE50: 24.6 | AF50: 154 | AG50: 100 | AH50: 12.5 | AI50: 37.7 | AJ50: 24.5 | AL50: 20.7 | AM50: LEGNO | AN50: 24.5 | AO50: CALCESTRUZZO | AR50: 28.0 | AS50: LEGNO | AT50: 33.3 | AU50: LEGNO | AX50: 38.0 | AY50: ACCIAIO | AZ50: 38.0 | BA50: ACCIAIO
W51: VGS_11 | X51: VGS_11_575 | Y51: 11 | Z51: 575 | AA51: 30.4 | AB51: 396 | AC51: 475.0 | AD51: 22.0 | AE51: 25.9 | AF51: 154 | AG51: 100 | AH51: 12.5 | AI51: 37.7 | AJ51: 24.5 | AL51: 22.0 | AM51: LEGNO | AN51: 24.5 | AO51: CALCESTRUZZO | AR51: 29.7 | AS51: LEGNO | AT51: 34.9 | AU51: LEGNO | AX51: 38.0 | AY51: ACCIAIO | AZ51: 38.0 | BA51: ACCIAIO
C52: =traduzioni!A179 -> Rigidez lateral para un solo tornillo | W52: VGS_11 | X52: VGS_11_600 | Y52: 11 | Z52: 600 | AA52: 30.4 | AB52: 421 | AC52: 500.0 | AD52: 23.2 | AE52: 27.1 | AF52: 154 | AG52: 100 | AH52: 12.5 | AI52: 37.7 | AJ52: 24.5 | AL52: 23.2 | AM52: LEGNO | AN52: 24.5 | AO52: CALCESTRUZZO | AR52: 31.3 | AS52: LEGNO | AT52: 36.6 | AU52: LEGNO | AX52: 38.0 | AY52: ACCIAIO | AZ52: 38.0 | BA52: ACCIAIO
C53: kser | D53: =2*60*(0.7*E23)^1.7 -> 3857 | E53: [kN/m] | F53: EC 1995-1-1 | S53: % | T53: 100 | W53: VGS_11 | X53: VGS_11_650 | Y53: 11 | Z53: =Z52+50 -> 650 | AA53: 30.4 | AB53: =Z53-AF53-25 -> 471 | AC53: =Z53-AG53 -> 550.0 | AD53: =((20*(Y53^0.8)*AB53^0.9)/1000)*$AE$10/$AE$9 -> 25.7 | AE53: =((20*(Y53^0.8)*AC53^0.9)/1000)*$AE$10/$AE$9 -> 29.5 | AF53: =MAX(14*Y53,150) -> 154 | AG53: =MAX(9*Y53,100) -> 100 | AH53: =VLOOKUP(W53,$E$11:$I$14,4,FALSE) -> 12.5 | AI53: =((Y53*PI())*AF53)*(AH53*$AE$18/$AE$17)/1000 -> 37.7 | AJ53: =((Y53*PI())*AG53)*(AH53*$AE$18/$AE$17)/1000 -> 24.5 | AL53: =MIN(AA53,AD53,AI53) -> 25.7 | AM53: =IF(AL53=AA53,"ACCIAIO",IF(AL53=AD53,"LEGNO",IF(AL53=AI53," CALCESTRUZZO"))) -> LEGNO | AN53: =MIN(AA53,AE53,AJ53) -> 24.5 | AO53: =IF(AN53=AA53,"ACCIAIO",IF(AN53=AE53,"LEGNO",IF(AN53=AJ53,"CALCESTRUZZO"))) -> CALCESTRUZZO | AR53: =MIN(AA53*$AE$14,AD53*$AE$9/$AE$10,AI53*$AE$17/$AE$18) -> 34.7 | AS53: =IF(AR53=AA53*$AE$14,"ACCIAIO",IF(AR53=AD53*$AE$9/$AE$10,"LEGNO",IF(AR53=AI53*$AE$17/$AE$18," CALCESTRUZZO"))) -> LEGNO | AT53: =MIN(AA53*$AE$14,AE53*$AE$9/$AE$10,AJ53*$AE$17/$AE$18) -> 38.0 | AU53: =IF(AT53=AA53*$AE$14,"ACCIAIO",IF(AT53=AE53*$AE$9/$AE$10,"LEGNO",IF(AT53=AJ53*$AE$17/$AE$18," CALCESTRUZZO"))) -> ACCIAIO | AX53: =MIN(AA53*$AE$14,$AZ$18*AD53*$AE$9/$AE$10,AI53*$AE$17/$AE$18) -> 38.0 | AY53: =IF(AX53=AA53*$AE$14,"ACCIAIO",IF(AX53=$AZ$18*AD53*$AE$9/$AE$10,"LEGNO",IF(AX53=AI53*$AE$17/$AE$18," CALCESTRUZZO"))) -> ACCIAIO | AZ53: =MIN(AA53*$AE$14,$AZ$18*AE53*$AE$9/$AE$10,AJ53*$AE$17/$AE$18) -> 38.0 | BA53: =IF(AZ53=AA53*$AE$14,"ACCIAIO",IF(AZ53=$AZ$18*AE53*$AE$9/$AE$10,"LEGNO",IF(AZ53=AJ53*$AE$17/$AE$18," CALCESTRUZZO"))) -> ACCIAIO
S54: J | T54: RE | U54: max RE adm | W54: VGS_11 | X54: VGS_11_700 | Y54: 11 | Z54: =Z53+50 -> 700 | AA54: 30.4 | AB54: 521 | AC54: 600.0 | AD54: 28.1 | AE54: 31.9 | AF54: 154 | AG54: 100 | AH54: 12.5 | AI54: 37.7 | AJ54: 24.5 | AL54: 28.1 | AM54: LEGNO | AN54: 24.5 | AO54: CALCESTRUZZO | AR54: 38.0 | AS54: LEGNO | AT54: 38.0 | AU54: ACCIAIO | AX54: 38.0 | AY54: ACCIAIO | AZ54: 38.0 | BA54: ACCIAIO
S55: =(D41*I30*E23*(((2+(4*D40/(D41*E23*I30^2)))^0.5)-1))/1000 -> 7.1 | T55: =IF(I34=I32,I34/4*(AE11/AE10),IF(I34=I31,I34/4*AE14)) -> 5.1 | U55: =MIN(T55,S55*($T$53/100)) -> 5.1 | W55: VGS_11 | X55: VGS_11_750 | Y55: 11 | Z55: 750 | AA55: 30.4 | AB55: 571 | AC55: 650.0 | AD55: 30.5 | AE55: 34.3 | AF55: 154 | AG55: 100 | AH55: 12.5 | AI55: 37.7 | AJ55: 24.5 | AL55: 30.4 | AM55: ACCIAIO | AN55: 24.5 | AO55: CALCESTRUZZO | AR55: 38.0 | AS55: ACCIAIO | AT55: 38.0 | AU55: ACCIAIO | AX55: 38.0 | AY55: ACCIAIO | AZ55: 38.0 | BA55: ACCIAIO
S56: =(2.3*(D40*1000*D41*E23)^0.5)/1000 -> 4.0 | T56: =IF(I34=I32,I32/4*(AE11/AE10),IF(I34=I31,I31/4*AE14)) -> 5.1 | U56: =MIN(T56,S56*($T$53/100)) -> 4.0 | W56: VGS_11 | X56: VGS_11_800 | Y56: 11 | Z56: 800 | AA56: 30.4 | AB56: 621 | AC56: 700.0 | AD56: 32.9 | AE56: 36.7 | AF56: 154 | AG56: 100 | AH56: 12.5 | AI56: 37.7 | AJ56: 24.5 | AL56: 30.4 | AM56: ACCIAIO | AN56: 24.5 | AO56: CALCESTRUZZO | AR56: 38.0 | AS56: ACCIAIO | AT56: 38.0 | AU56: ACCIAIO | AX56: 38.0 | AY56: ACCIAIO | AZ56: 38.0 | BA56: ACCIAIO
W57: VGS_11 | X57: VGS_11_850 | Y57: 11 | Z57: 850 | AA57: 30.4 | AB57: 671 | AC57: 750.0 | AD57: 35.3 | AE57: 39.0 | AF57: =MAX(14*Y57,150) -> 154 | AG57: 100 | AH57: 12.5 | AI57: 37.7 | AJ57: 24.5 | AL57: 30.4 | AM57: ACCIAIO | AN57: 24.5 | AO57: CALCESTRUZZO | AR57: 38.0 | AS57: ACCIAIO | AT57: 38.0 | AU57: ACCIAIO | AX57: 38.0 | AY57: ACCIAIO | AZ57: 38.0 | BA57: ACCIAIO
W58: VGS_11 | X58: VGS_11_900 | Y58: 11 | Z58: 900 | AA58: 30.4 | AB58: 721 | AC58: 800.0 | AD58: 37.7 | AE58: 41.4 | AF58: =MAX(14*Y58,150) -> 154 | AG58: 100 | AH58: 12.5 | AI58: 37.7 | AJ58: 24.5 | AL58: 30.4 | AM58: ACCIAIO | AN58: 24.5 | AO58: CALCESTRUZZO | AR58: 38.0 | AS58: ACCIAIO | AT58: 38.0 | AU58: ACCIAIO | AX58: 38.0 | AY58: ACCIAIO | AZ58: 38.0 | BA58: ACCIAIO
W59: VGS_11 | X59: VGS_11_950 | Y59: 11 | Z59: 950 | AA59: 30.4 | AB59: =Z59-AF59-25 -> 771 | AC59: =Z59-AG59 -> 850.0 | AD59: =((20*(Y59^0.8)*AB59^0.9)/1000)*$AE$10/$AE$9 -> 40.0 | AE59: =((20*(Y59^0.8)*AC59^0.9)/1000)*$AE$10/$AE$9 -> 43.7 | AF59: =MAX(14*Y59,150) -> 154 | AG59: =MAX(9*Y59,100) -> 100 | AH59: =VLOOKUP(W59,$E$11:$I$14,4,FALSE) -> 12.5 | AI59: =((Y59*PI())*AF59)*(AH59*$AE$18/$AE$17)/1000 -> 37.7 | AJ59: =((Y59*PI())*AG59)*(AH59*$AE$18/$AE$17)/1000 -> 24.5 | AL59: =MIN(AA59,AD59,AI59) -> 30.4 | AM59: =IF(AL59=AA59,"ACCIAIO",IF(AL59=AD59,"LEGNO",IF(AL59=AI59," CALCESTRUZZO"))) -> ACCIAIO | AN59: =MIN(AA59,AE59,AJ59) -> 24.5 | AO59: =IF(AN59=AA59,"ACCIAIO",IF(AN59=AE59,"LEGNO",IF(AN59=AJ59,"CALCESTRUZZO"))) -> CALCESTRUZZO | AR59: =MIN(AA59*$AE$14,AD59*$AE$9/$AE$10,AI59*$AE$17/$AE$18) -> 38.0 | AS59: =IF(AR59=AA59*$AE$14,"ACCIAIO",IF(AR59=AD59*$AE$9/$AE$10,"LEGNO",IF(AR59=AI59*$AE$17/$AE$18," CALCESTRUZZO"))) -> ACCIAIO | AT59: =MIN(AA59*$AE$14,AE59*$AE$9/$AE$10,AJ59*$AE$17/$AE$18) -> 38.0 | AU59: =IF(AT59=AA59*$AE$14,"ACCIAIO",IF(AT59=AE59*$AE$9/$AE$10,"LEGNO",IF(AT59=AJ59*$AE$17/$AE$18," CALCESTRUZZO"))) -> ACCIAIO | AX59: =MIN(AA59*$AE$14,$AZ$18*AD59*$AE$9/$AE$10,AI59*$AE$17/$AE$18) -> 38.0 | AY59: =IF(AX59=AA59*$AE$14,"ACCIAIO",IF(AX59=$AZ$18*AD59*$AE$9/$AE$10,"LEGNO",IF(AX59=AI59*$AE$17/$AE$18," CALCESTRUZZO"))) -> ACCIAIO | AZ59: =MIN(AA59*$AE$14,$AZ$18*AE59*$AE$9/$AE$10,AJ59*$AE$17/$AE$18) -> 38.0 | BA59: =IF(AZ59=AA59*$AE$14,"ACCIAIO",IF(AZ59=$AZ$18*AE59*$AE$9/$AE$10,"LEGNO",IF(AZ59=AJ59*$AE$17/$AE$18," CALCESTRUZZO"))) -> ACCIAIO
W60: VGS_11 | X60: VGS_11_1000 | Y60: 11 | Z60: 1000 | AA60: 30.4 | AB60: =Z60-AF60-25 -> 821 | AC60: =Z60-AG60 -> 900.0 | AD60: 42.3 | AE60: 46.0 | AF60: 154 | AG60: 100 | AH60: 12.5 | AI60: 37.7 | AJ60: 24.5 | AL60: 30.4 | AM60: ACCIAIO | AN60: 24.5 | AO60: CALCESTRUZZO | AR60: 38.0 | AS60: ACCIAIO | AT60: 38.0 | AU60: ACCIAIO | AX60: 38.0 | AY60: ACCIAIO | AZ60: 38.0 | BA60: ACCIAIO
W62: =$E$13 -> VGS_13 | X62: VGS_13_300 | Y62: 13 | Z62: 300 | AA62: =$G$13/$AE$14 -> 42.4 | AB62: =Z62-AF62-25 -> 93 | AC62: =Z62-AG62 -> 183.0 | AD62: =((20*(Y62^0.8)*AB62^0.9)/1000)*$AE$10/$AE$9 -> 6.8 | AE62: =((20*(Y62^0.8)*AC62^0.9)/1000)*$AE$10/$AE$9 -> 12.5 | AF62: =MAX(14*Y62,150) -> 182 | AG62: =MAX(9*Y62,100) -> 117 | AH62: =VLOOKUP(W62,$E$11:$I$14,4,FALSE) -> 12.5 | AI62: =((Y62*PI())*AF62)*(AH62*$AE$18/$AE$17)/1000 -> 52.7 | AJ62: =((Y62*PI())*AG62)*(AH62*$AE$18/$AE$17)/1000 -> 33.8 | AL62: =MIN(AA62,AD62,AI62) -> 6.8 | AM62: =IF(AL62=AA62,"ACCIAIO",IF(AL62=AD62,"LEGNO",IF(AL62=AI62," CALCESTRUZZO"))) -> LEGNO | AN62: =MIN(AA62,AE62,AJ62) -> 12.5 | AO62: =IF(AN62=AA62,"ACCIAIO",IF(AN62=AE62,"LEGNO",IF(AN62=AJ62,"CALCESTRUZZO"))) -> LEGNO | AR62: =MIN(AA62*$AE$14,AD62*$AE$9/$AE$10,AI62*$AE$17/$AE$18) -> 9.2 | AS62: =IF(AR62=AA62*$AE$14,"ACCIAIO",IF(AR62=AD62*$AE$9/$AE$10,"LEGNO",IF(AR62=AI62*$AE$17/$AE$18," CALCESTRUZZO"))) -> LEGNO | AT62: =MIN(AA62*$AE$14,AE62*$AE$9/$AE$10,AJ62*$AE$17/$AE$18) -> 16.9 | AU62: =IF(AT62=AA62*$AE$14,"ACCIAIO",IF(AT62=AE62*$AE$9/$AE$10,"LEGNO",IF(AT62=AJ62*$AE$17/$AE$18," CALCESTRUZZO"))) -> LEGNO | AX62: =MIN(AA62*$AE$14,$AZ$18*AD62*$AE$9/$AE$10,AI62*$AE$17/$AE$18) -> 13.8 | AY62: =IF(AX62=AA62*$AE$14,"ACCIAIO",IF(AX62=$AZ$18*AD62*$AE$9/$AE$10,"LEGNO",IF(AX62=AI62*$AE$17/$AE$18," CALCESTRUZZO"))) -> LEGNO | AZ62: =MIN(AA62*$AE$14,$AZ$18*AE62*$AE$9/$AE$10,AJ62*$AE$17/$AE$18) -> 25.4 | BA62: =IF(AZ62=AA62*$AE$14,"ACCIAIO",IF(AZ62=$AZ$18*AE62*$AE$9/$AE$10,"LEGNO",IF(AZ62=AJ62*$AE$17/$AE$18," CALCESTRUZZO"))) -> LEGNO
W63: VGS_13 | X63: VGS_13_350 | Y63: 13 | Z63: =Z62+50 -> 350 | AA63: 42.4 | AB63: 143 | AC63: 233.0 | AD63: 10.0 | AE63: 15.6 | AF63: 182 | AG63: 117 | AH63: 12.5 | AI63: 52.7 | AJ63: 33.8 | AL63: 10.0 | AM63: LEGNO | AN63: 15.6 | AO63: LEGNO | AR63: 13.6 | AS63: LEGNO | AT63: 21.0 | AU63: LEGNO | AX63: 20.3 | AY63: LEGNO | AZ63: 31.5 | BA63: LEGNO
W64: VGS_13 | X64: VGS_13_400 | Y64: 13 | Z64: 400 | AA64: 42.4 | AB64: 193 | AC64: 283.0 | AD64: 13.1 | AE64: 18.6 | AF64: 182 | AG64: 117 | AH64: 12.5 | AI64: 52.7 | AJ64: 33.8 | AL64: 13.1 | AM64: LEGNO | AN64: 18.6 | AO64: LEGNO | AR64: 17.7 | AS64: LEGNO | AT64: 25.0 | AU64: LEGNO | AX64: 26.6 | AY64: LEGNO | AZ64: 37.6 | BA64: LEGNO
W65: VGS_13 | X65: VGS_13_450 | Y65: 13 | Z65: 450 | AA65: 42.4 | AB65: 243 | AC65: 333.0 | AD65: 16.2 | AE65: 21.5 | AF65: 182 | AG65: 117 | AH65: 12.5 | AI65: 52.7 | AJ65: 33.8 | AL65: 16.2 | AM65: LEGNO | AN65: 21.5 | AO65: LEGNO | AR65: 21.8 | AS65: LEGNO | AT65: 29.0 | AU65: LEGNO | AX65: 32.8 | AY65: LEGNO | AZ65: 43.5 | BA65: LEGNO
W66: VGS_13 | X66: VGS_13_500 | Y66: 13 | Z66: 500 | AA66: 42.4 | AB66: 293 | AC66: 383.0 | AD66: 19.1 | AE66: 24.4 | AF66: 182 | AG66: 117 | AH66: 12.5 | AI66: 52.7 | AJ66: 33.8 | AL66: 19.1 | AM66: LEGNO | AN66: 24.4 | AO66: LEGNO | AR66: 25.8 | AS66: LEGNO | AT66: 32.9 | AU66: LEGNO | AX66: 38.8 | AY66: LEGNO | AZ66: 49.3 | BA66: LEGNO
W67: VGS_13 | X67: VGS_13_550 | Y67: 13 | Z67: 550 | AA67: 42.4 | AB67: 343 | AC67: 433.0 | AD67: 22.1 | AE67: 27.2 | AF67: 182 | AG67: 117 | AH67: 12.5 | AI67: 52.7 | AJ67: 33.8 | AL67: 22.1 | AM67: LEGNO | AN67: 27.2 | AO67: LEGNO | AR67: 29.8 | AS67: LEGNO | AT67: 36.7 | AU67: LEGNO | AX67: 44.7 | AY67: LEGNO | AZ67: 53.0 | BA67: ACCIAIO
W68: VGS_13 | X68: VGS_13_600 | Y68: 13 | Z68: 600 | AA68: 42.4 | AB68: 393 | AC68: 483.0 | AD68: 24.9 | AE68: 30.0 | AF68: 182 | AG68: 117 | AH68: 12.5 | AI68: 52.7 | AJ68: 33.8 | AL68: 24.9 | AM68: LEGNO | AN68: 30.0 | AO68: LEGNO | AR68: 33.7 | AS68: LEGNO | AT68: 40.5 | AU68: LEGNO | AX68: 50.5 | AY68: LEGNO | AZ68: 53.0 | BA68: ACCIAIO
W69: VGS_13 | X69: VGS_13_650 | Y69: 13 | Z69: 650 | AA69: 42.4 | AB69: 443 | AC69: 533.0 | AD69: 27.8 | AE69: 32.8 | AF69: 182 | AG69: 117 | AH69: 12.5 | AI69: 52.7 | AJ69: 33.8 | AL69: 27.8 | AM69: LEGNO | AN69: 32.8 | AO69: LEGNO | AR69: 37.5 | AS69: LEGNO | AT69: 44.3 | AU69: LEGNO | AX69: 53.0 | AY69: ACCIAIO | AZ69: 53.0 | BA69: ACCIAIO
W70: VGS_13 | X70: VGS_13_700 | Y70: 13 | Z70: 700 | AA70: 42.4 | AB70: 493 | AC70: 583.0 | AD70: 30.6 | AE70: 35.6 | AF70: 182 | AG70: 117 | AH70: 12.5 | AI70: 52.7 | AJ70: 33.8 | AL70: 30.6 | AM70: LEGNO | AN70: 33.8 | AO70: CALCESTRUZZO | AR70: 41.3 | AS70: LEGNO | AT70: 48.0 | AU70: LEGNO | AX70: 53.0 | AY70: ACCIAIO | AZ70: 53.0 | BA70: ACCIAIO
W71: VGS_13 | X71: VGS_13_750 | Y71: 13 | Z71: 750 | AA71: 42.4 | AB71: 543 | AC71: 633.0 | AD71: 33.4 | AE71: 38.3 | AF71: 182 | AG71: 117 | AH71: 12.5 | AI71: 52.7 | AJ71: 33.8 | AL71: 33.4 | AM71: LEGNO | AN71: 33.8 | AO71: CALCESTRUZZO | AR71: 45.0 | AS71: LEGNO | AT71: 51.7 | AU71: LEGNO | AX71: 53.0 | AY71: ACCIAIO | AZ71: 53.0 | BA71: ACCIAIO
W72: VGS_13 | X72: VGS_13_800 | Y72: 13 | Z72: 800 | AA72: 42.4 | AB72: 593 | AC72: 683.0 | AD72: 36.1 | AE72: 41.0 | AF72: 182 | AG72: 117 | AH72: 12.5 | AI72: 52.7 | AJ72: 33.8 | AL72: 36.1 | AM72: LEGNO | AN72: 33.8 | AO72: CALCESTRUZZO | AR72: 48.7 | AS72: LEGNO | AT72: 53.0 | AU72: ACCIAIO | AX72: 53.0 | AY72: ACCIAIO | AZ72: 53.0 | BA72: ACCIAIO
W73: VGS_13 | X73: =_xlfn.CONCAT(W73,"_",Z73) -> VGS_13_850 | Y73: 13 | Z73: 850 | AA73: 42.4 | AB73: =Z73-AF73-25 -> 643 | AC73: 733.0 | AD73: =((20*(Y73^0.8)*AB73^0.9)/1000)*$AE$10/$AE$9 -> 38.8 | AE73: =((20*(Y73^0.8)*AC73^0.9)/1000)*$AE$10/$AE$9 -> 43.7 | AF73: =MAX(14*Y73,150) -> 182 | AG73: =MAX(9*Y73,100) -> 117 | AH73: =VLOOKUP(W73,$E$11:$I$14,4,FALSE) -> 12.5 | AI73: =((Y73*PI())*AF73)*(AH73*$AE$18/$AE$17)/1000 -> 52.7 | AJ73: =((Y73*PI())*AG73)*(AH73*$AE$18/$AE$17)/1000 -> 33.8 | AL73: 38.8 | AM73: LEGNO | AN73: 33.8 | AO73: CALCESTRUZZO | AR73: =MIN(AA73*$AE$14,AD73*$AE$9/$AE$10,AI73*$AE$17/$AE$18) -> 52.4 | AS73: =IF(AR73=AA73*$AE$14,"ACCIAIO",IF(AR73=AD73*$AE$9/$AE$10,"LEGNO",IF(AR73=AI73*$AE$17/$AE$18," CALCESTRUZZO"))) -> LEGNO | AT73: =MIN(AA73*$AE$14,AE73*$AE$9/$AE$10,AJ73*$AE$17/$AE$18) -> 53.0 | AU73: =IF(AT73=AA73*$AE$14,"ACCIAIO",IF(AT73=AE73*$AE$9/$AE$10,"LEGNO",IF(AT73=AJ73*$AE$17/$AE$18," CALCESTRUZZO"))) -> ACCIAIO | AX73: =MIN(AA73*$AE$14,$AZ$18*AD73*$AE$9/$AE$10,AI73*$AE$17/$AE$18) -> 53.0 | AY73: =IF(AX73=AA73*$AE$14,"ACCIAIO",IF(AX73=$AZ$18*AD73*$AE$9/$AE$10,"LEGNO",IF(AX73=AI73*$AE$17/$AE$18," CALCESTRUZZO"))) -> ACCIAIO | AZ73: =MIN(AA73*$AE$14,$AZ$18*AE73*$AE$9/$AE$10,AJ73*$AE$17/$AE$18) -> 53.0 | BA73: =IF(AZ73=AA73*$AE$14,"ACCIAIO",IF(AZ73=$AZ$18*AE73*$AE$9/$AE$10,"LEGNO",IF(AZ73=AJ73*$AE$17/$AE$18," CALCESTRUZZO"))) -> ACCIAIO
W74: VGS_13 | X74: VGS_13_900 | Y74: 13 | Z74: 900 | AA74: 42.4 | AB74: 693 | AC74: 783.0 | AD74: 41.5 | AE74: 46.4 | AF74: 182 | AG74: 117 | AH74: 12.5 | AI74: 52.7 | AJ74: 33.8 | AL74: 41.5 | AM74: LEGNO | AN74: 33.8 | AO74: CALCESTRUZZO | AR74: 53.0 | AS74: ACCIAIO | AT74: 53.0 | AU74: ACCIAIO | AX74: 53.0 | AY74: ACCIAIO | AZ74: 53.0 | BA74: ACCIAIO
W75: VGS_13 | X75: VGS_13_950 | Y75: 13 | Z75: 950 | AA75: 42.4 | AB75: 743 | AC75: 833.0 | AD75: 44.2 | AE75: 49.0 | AF75: 182 | AG75: 117 | AH75: 12.5 | AI75: 52.7 | AJ75: 33.8 | AL75: 42.4 | AM75: ACCIAIO | AN75: 33.8 | AO75: CALCESTRUZZO | AR75: 53.0 | AS75: ACCIAIO | AT75: 53.0 | AU75: ACCIAIO | AX75: 53.0 | AY75: ACCIAIO | AZ75: 53.0 | BA75: ACCIAIO
W76: VGS_13 | X76: VGS_13_1000 | Y76: 13 | Z76: 1000 | AA76: 42.4 | AB76: 793 | AC76: 883.0 | AD76: 46.9 | AE76: 51.7 | AF76: 182 | AG76: 117 | AH76: 12.5 | AI76: 52.7 | AJ76: 33.8 | AL76: 42.4 | AM76: ACCIAIO | AN76: 33.8 | AO76: CALCESTRUZZO | AR76: 53.0 | AS76: ACCIAIO | AT76: 53.0 | AU76: ACCIAIO | AX76: 53.0 | AY76: ACCIAIO | AZ76: 53.0 | BA76: ACCIAIO
W77: VGS_13 | X77: VGS_13_1100 | Y77: 13 | Z77: =Z76+100 -> 1100 | AA77: 42.4 | AB77: 893 | AC77: 983.0 | AD77: 52.2 | AE77: 56.9 | AF77: 182 | AG77: 117 | AH77: 12.5 | AI77: 52.7 | AJ77: 33.8 | AL77: 42.4 | AM77: ACCIAIO | AN77: 33.8 | AO77: CALCESTRUZZO | AR77: 53.0 | AS77: ACCIAIO | AT77: 53.0 | AU77: ACCIAIO | AX77: 53.0 | AY77: ACCIAIO | AZ77: 53.0 | BA77: ACCIAIO
W78: VGS_13 | X78: VGS_13_1200 | Y78: 13 | Z78: 1200 | AA78: 42.4 | AB78: 993 | AC78: 1083.0 | AD78: 57.4 | AE78: 62.1 | AF78: 182 | AG78: 117 | AH78: 12.5 | AI78: 52.7 | AJ78: 33.8 | AL78: 42.4 | AM78: ACCIAIO | AN78: 33.8 | AO78: CALCESTRUZZO | AR78: 53.0 | AS78: ACCIAIO | AT78: 53.0 | AU78: ACCIAIO | AX78: 53.0 | AY78: ACCIAIO | AZ78: 53.0 | BA78: ACCIAIO
W79: VGS_13 | X79: VGS_13_1300 | Y79: 13 | Z79: 1300 | AA79: 42.4 | AB79: 1093 | AC79: 1183.0 | AD79: 62.6 | AE79: 67.2 | AF79: 182 | AG79: 117 | AH79: 12.5 | AI79: 52.7 | AJ79: 33.8 | AL79: 42.4 | AM79: ACCIAIO | AN79: 33.8 | AO79: CALCESTRUZZO | AR79: 53.0 | AS79: ACCIAIO | AT79: 53.0 | AU79: ACCIAIO | AX79: 53.0 | AY79: ACCIAIO | AZ79: 53.0 | BA79: ACCIAIO
W80: VGS_13 | X80: VGS_13_1400 | Y80: 13 | Z80: =Z79+100 -> 1400 | AA80: 42.4 | AB80: 1193 | AC80: 1283.0 | AD80: 67.7 | AE80: 72.3 | AF80: 182 | AG80: 117 | AH80: 12.5 | AI80: 52.7 | AJ80: 33.8 | AL80: 42.4 | AM80: ACCIAIO | AN80: 33.8 | AO80: CALCESTRUZZO | AR80: 53.0 | AS80: ACCIAIO | AT80: 53.0 | AU80: ACCIAIO | AX80: 53.0 | AY80: ACCIAIO | AZ80: 53.0 | BA80: ACCIAIO
W81: VGS_13 | X81: VGS_13_1500 | Y81: 13 | Z81: 1500 | AA81: 42.4 | AB81: 1293 | AC81: 1383.0 | AD81: 72.8 | AE81: 77.4 | AF81: 182 | AG81: 117 | AH81: 12.5 | AI81: 52.7 | AJ81: 33.8 | AL81: 42.4 | AM81: ACCIAIO | AN81: 33.8 | AO81: CALCESTRUZZO | AR81: 53.0 | AS81: ACCIAIO | AT81: 53.0 | AU81: ACCIAIO | AX81: 53.0 | AY81: ACCIAIO | AZ81: 53.0 | BA81: ACCIAIO
W84: =$E$14 -> RTR_16 | X84: =_xlfn.CONCAT(W84,"_",Z84) -> RTR_16_300 | Y84: 16 | Z84: 300 | AA84: =$G$14/$AE$14 -> 80 | AB84: =Z84-AF84-25 -> 51 | AC84: 156.0 | AD84: =((15*(Y84^0.8)*AB84^0.9)/1000)*$AE$10/$AE$9 -> 3.5 | AE84: =((15*(Y84^0.8)*AC84^0.9)/1000)*$AE$10/$AE$9 -> 9.6 | AF84: =MAX(14*Y84,150) -> 224 | AG84: =MAX(9*Y84,100) -> 144 | AH84: =VLOOKUP(W84,$E$11:$I$14,4,FALSE) -> 9 | AI84: =((Y84*PI())*AF84)*(AH84*$AE$18/$AE$17)/1000 -> 57.4 | AJ84: =((Y84*PI())*AG84)*(AH84*$AE$18/$AE$17)/1000 -> 36.9 | AL84: 3.5 | AM84: LEGNO | AN84: 9.6 | AO84: LEGNO | AR84: =MIN(AA84*$AE$14,AD84*$AE$9/$AE$10,AI84*$AE$17/$AE$18) -> 4.7 | AS84: =IF(AR84=AA84*$AE$14,"ACCIAIO",IF(AR84=AD84*$AE$9/$AE$10,"LEGNO",IF(AR84=AI84*$AE$17/$AE$18," CALCESTRUZZO"))) -> LEGNO | AT84: =MIN(AA84*$AE$14,AE84*$AE$9/$AE$10,AJ84*$AE$17/$AE$18) -> 13.0 | AU84: =IF(AT84=AA84*$AE$14,"ACCIAIO",IF(AT84=AE84*$AE$9/$AE$10,"LEGNO",IF(AT84=AJ84*$AE$17/$AE$18," CALCESTRUZZO"))) -> LEGNO | AX84: =MIN(AA84*$AE$14,$AZ$18*AD84*$AE$9/$AE$10,AI84*$AE$17/$AE$18) -> 7.1 | AY84: =IF(AX84=AA84*$AE$14,"ACCIAIO",IF(AX84=$AZ$18*AD84*$AE$9/$AE$10,"LEGNO",IF(AX84=AI84*$AE$17/$AE$18," CALCESTRUZZO"))) -> LEGNO | AZ84: =MIN(AA84*$AE$14,$AZ$18*AE84*$AE$9/$AE$10,AJ84*$AE$17/$AE$18) -> 19.5 | BA84: =IF(AZ84=AA84*$AE$14,"ACCIAIO",IF(AZ84=$AZ$18*AE84*$AE$9/$AE$10,"LEGNO",IF(AZ84=AJ84*$AE$17/$AE$18," CALCESTRUZZO"))) -> LEGNO
W85: RTR_16 | X85: =_xlfn.CONCAT(W85,"_",Z85) -> RTR_16_350 | Y85: 16 | Z85: =Z84+50 -> 350 | AA85: 80 | AB85: =Z85-AF85-25 -> 101 | AC85: =Z85-AG85 -> 206.0 | AD85: =((15*(Y85^0.8)*AB85^0.9)/1000)*$AE$10/$AE$9 -> 6.5 | AE85: =((15*(Y85^0.8)*AC85^0.9)/1000)*$AE$10/$AE$9 -> 12.3 | AF85: =MAX(14*Y85,150) -> 224 | AG85: =MAX(9*Y85,100) -> 144 | AH85: =VLOOKUP(W85,$E$11:$I$14,4,FALSE) -> 9 | AI85: =((Y85*PI())*AF85)*(AH85*$AE$18/$AE$17)/1000 -> 57.4 | AJ85: =((Y85*PI())*AG85)*(AH85*$AE$18/$AE$17)/1000 -> 36.9 | AL85: =MIN(AA85,AD85,AI85) -> 6.5 | AM85: =IF(AL85=AA85,"ACCIAIO",IF(AL85=AD85,"LEGNO",IF(AL85=AI85," CALCESTRUZZO"))) -> LEGNO | AN85: =MIN(AA85,AE85,AJ85) -> 12.3 | AO85: =IF(AN85=AA85,"ACCIAIO",IF(AN85=AE85,"LEGNO",IF(AN85=AJ85,"CALCESTRUZZO"))) -> LEGNO | AR85: =MIN(AA85*$AE$14,AD85*$AE$9/$AE$10,AI85*$AE$17/$AE$18) -> 8.8 | AS85: =IF(AR85=AA85*$AE$14,"ACCIAIO",IF(AR85=AD85*$AE$9/$AE$10,"LEGNO",IF(AR85=AI85*$AE$17/$AE$18," CALCESTRUZZO"))) -> LEGNO | AT85: =MIN(AA85*$AE$14,AE85*$AE$9/$AE$10,AJ85*$AE$17/$AE$18) -> 16.7 | AU85: =IF(AT85=AA85*$AE$14,"ACCIAIO",IF(AT85=AE85*$AE$9/$AE$10,"LEGNO",IF(AT85=AJ85*$AE$17/$AE$18," CALCESTRUZZO"))) -> LEGNO | AX85: =MIN(AA85*$AE$14,$AZ$18*AD85*$AE$9/$AE$10,AI85*$AE$17/$AE$18) -> 13.2 | AY85: =IF(AX85=AA85*$AE$14,"ACCIAIO",IF(AX85=$AZ$18*AD85*$AE$9/$AE$10,"LEGNO",IF(AX85=AI85*$AE$17/$AE$18," CALCESTRUZZO"))) -> LEGNO | AZ85: =MIN(AA85*$AE$14,$AZ$18*AE85*$AE$9/$AE$10,AJ85*$AE$17/$AE$18) -> 25.0 | BA85: =IF(AZ85=AA85*$AE$14,"ACCIAIO",IF(AZ85=$AZ$18*AE85*$AE$9/$AE$10,"LEGNO",IF(AZ85=AJ85*$AE$17/$AE$18," CALCESTRUZZO"))) -> LEGNO
W86: RTR_16 | X86: RTR_16_400 | Y86: 16 | Z86: =Z85+50 -> 400 | AA86: 80 | AB86: 151 | AC86: 256.0 | AD86: 9.3 | AE86: 15.0 | AF86: 224 | AG86: 144 | AH86: 9 | AI86: 57.4 | AJ86: 36.9 | AL86: 9.3 | AM86: LEGNO | AN86: 15.0 | AO86: LEGNO | AR86: 12.6 | AS86: LEGNO | AT86: 20.3 | AU86: LEGNO | AX86: 18.9 | AY86: LEGNO | AZ86: 30.4 | BA86: LEGNO
W87: RTR_16 | X87: RTR_16_450 | Y87: 16 | Z87: 450 | AA87: 80 | AB87: 201 | AC87: 306.0 | AD87: 12.1 | AE87: 17.6 | AF87: 224 | AG87: 144 | AH87: 9 | AI87: 57.4 | AJ87: 36.9 | AL87: 12.1 | AM87: LEGNO | AN87: 17.6 | AO87: LEGNO | AR87: 16.3 | AS87: LEGNO | AT87: 23.8 | AU87: LEGNO | AX87: 24.5 | AY87: LEGNO | AZ87: 35.7 | BA87: LEGNO
W88: RTR_16 | X88: RTR_16_500 | Y88: 16 | Z88: 500 | AA88: 80 | AB88: 251 | AC88: 356.0 | AD88: 14.7 | AE88: 20.2 | AF88: 224 | AG88: 144 | AH88: 9 | AI88: 57.4 | AJ88: 36.9 | AL88: 14.7 | AM88: LEGNO | AN88: 20.2 | AO88: LEGNO | AR88: 19.9 | AS88: LEGNO | AT88: 27.3 | AU88: LEGNO | AX88: 29.9 | AY88: LEGNO | AZ88: 40.9 | BA88: LEGNO
W89: RTR_16 | X89: RTR_16_550 | Y89: 16 | Z89: 550 | AA89: 80 | AB89: 301 | AC89: 406.0 | AD89: 17.4 | AE89: 22.7 | AF89: 224 | AG89: 144 | AH89: 9 | AI89: 57.4 | AJ89: 36.9 | AL89: 17.4 | AM89: LEGNO | AN89: 22.7 | AO89: LEGNO | AR89: 23.4 | AS89: LEGNO | AT89: 30.7 | AU89: LEGNO | AX89: 35.2 | AY89: LEGNO | AZ89: 46.0 | BA89: LEGNO
W90: RTR_16 | X90: RTR_16_600 | Y90: 16 | Z90: 600 | AA90: 80 | AB90: 351 | AC90: 456.0 | AD90: 19.9 | AE90: 25.2 | AF90: 224 | AG90: 144 | AH90: 9 | AI90: 57.4 | AJ90: 36.9 | AL90: 19.9 | AM90: LEGNO | AN90: 25.2 | AO90: LEGNO | AR90: 26.9 | AS90: LEGNO | AT90: 34.1 | AU90: LEGNO | AX90: 40.4 | AY90: LEGNO | AZ90: 51.1 | BA90: LEGNO
W91: RTR_16 | X91: RTR_16_650 | Y91: 16 | Z91: 650 | AA91: 80 | AB91: 401 | AC91: 506.0 | AD91: 22.5 | AE91: 27.7 | AF91: 224 | AG91: 144 | AH91: 9 | AI91: 57.4 | AJ91: 36.9 | AL91: 22.5 | AM91: LEGNO | AN91: 27.7 | AO91: LEGNO | AR91: 30.4 | AS91: LEGNO | AT91: 37.4 | AU91: LEGNO | AX91: 45.5 | AY91: LEGNO | AZ91: 56.1 | BA91: LEGNO
W92: RTR_16 | X92: =_xlfn.CONCAT(W92,"_",Z92) -> RTR_16_700 | Y92: =IF(MID(W92,5,1)<=9,MID(W92,5,1),MID(W92,5,2)) -> 16 | Z92: 700 | AA92: 80 | AB92: 451 | AC92: 556.0 | AD92: =((15*(Y92^0.8)*AB92^0.9)/1000)*$AE$10/$AE$9 -> 25.0 | AE92: =((15*(Y92^0.8)*AC92^0.9)/1000)*$AE$10/$AE$9 -> 30.2 | AF92: =MAX(14*Y92,150) -> 224 | AG92: =MAX(9*Y92,100) -> 144 | AH92: =VLOOKUP(W92,$E$11:$I$14,4,FALSE) -> 9 | AI92: =((Y92*PI())*AF92)*(AH92*$AE$18/$AE$17)/1000 -> 57.4 | AJ92: =((Y92*PI())*AG92)*(AH92*$AE$18/$AE$17)/1000 -> 36.9 | AL92: 25.0 | AM92: LEGNO | AN92: 30.2 | AO92: LEGNO | AR92: 33.7 | AS92: LEGNO | AT92: 40.7 | AU92: LEGNO | AX92: 50.6 | AY92: LEGNO | AZ92: 61.1 | BA92: LEGNO
W93: RTR_16 | X93: =_xlfn.CONCAT(W93,"_",Z93) -> RTR_16_750 | Y93: 16 | Z93: 750 | AA93: 80 | AB93: =Z93-AF93-25 -> 501 | AC93: 606.0 | AD93: =((15*(Y93^0.8)*AB93^0.9)/1000)*$AE$10/$AE$9 -> 27.5 | AE93: =((15*(Y93^0.8)*AC93^0.9)/1000)*$AE$10/$AE$9 -> 32.6 | AF93: =MAX(14*Y93,150) -> 224 | AG93: =MAX(9*Y93,100) -> 144 | AH93: =VLOOKUP(W93,$E$11:$I$14,4,FALSE) -> 9 | AI93: =((Y93*PI())*AF93)*(AH93*$AE$18/$AE$17)/1000 -> 57.4 | AJ93: =((Y93*PI())*AG93)*(AH93*$AE$18/$AE$17)/1000 -> 36.9 | AL93: 27.5 | AM93: LEGNO | AN93: 32.6 | AO93: LEGNO | AR93: 37.1 | AS93: LEGNO | AT93: 44.0 | AU93: LEGNO | AX93: 55.6 | AY93: LEGNO | AZ93: 65.1 | BA93: CALCESTRUZZO
W94: RTR_16 | X94: =_xlfn.CONCAT(W94,"_",Z94) -> RTR_16_800 | Y94: 16 | Z94: 800 | AA94: 80 | AB94: 551 | AC94: 656.0 | AD94: =((15*(Y94^0.8)*AB94^0.9)/1000)*$AE$10/$AE$9 -> 29.9 | AE94: =((15*(Y94^0.8)*AC94^0.9)/1000)*$AE$10/$AE$9 -> 35.0 | AF94: =MAX(14*Y94,150) -> 224 | AG94: =MAX(9*Y94,100) -> 144 | AH94: =VLOOKUP(W94,$E$11:$I$14,4,FALSE) -> 9 | AI94: =((Y94*PI())*AF94)*(AH94*$AE$18/$AE$17)/1000 -> 57.4 | AJ94: =((Y94*PI())*AG94)*(AH94*$AE$18/$AE$17)/1000 -> 36.9 | AL94: 29.9 | AM94: LEGNO | AN94: 35.0 | AO94: LEGNO | AR94: 40.4 | AS94: LEGNO | AT94: 47.3 | AU94: LEGNO | AX94: 60.6 | AY94: LEGNO | AZ94: 65.1 | BA94: CALCESTRUZZO
W95: RTR_16 | X95: =_xlfn.CONCAT(W95,"_",Z95) -> RTR_16_850 | Y95: 16 | Z95: 850 | AA95: 80 | AB95: 601 | AC95: 706.0 | AD95: =((15*(Y95^0.8)*AB95^0.9)/1000)*$AE$10/$AE$9 -> 32.4 | AE95: =((15*(Y95^0.8)*AC95^0.9)/1000)*$AE$10/$AE$9 -> 37.4 | AF95: =MAX(14*Y95,150) -> 224 | AG95: =MAX(9*Y95,100) -> 144 | AH95: =VLOOKUP(W95,$E$11:$I$14,4,FALSE) -> 9 | AI95: =((Y95*PI())*AF95)*(AH95*$AE$18/$AE$17)/1000 -> 57.4 | AJ95: =((Y95*PI())*AG95)*(AH95*$AE$18/$AE$17)/1000 -> 36.9 | AL95: 32.4 | AM95: LEGNO | AN95: 36.9 | AO95: CALCESTRUZZO | AR95: 43.7 | AS95: LEGNO | AT95: 50.5 | AU95: LEGNO | AX95: 65.5 | AY95: LEGNO | AZ95: 65.1 | BA95: CALCESTRUZZO
W96: RTR_16 | X96: =_xlfn.CONCAT(W96,"_",Z96) -> RTR_16_900 | Y96: 16 | Z96: 900 | AA96: 80 | AB96: =Z96-AF96-25 -> 651 | AC96: =Z96-AG96 -> 756.0 | AD96: =((15*(Y96^0.8)*AB96^0.9)/1000)*$AE$10/$AE$9 -> 34.8 | AE96: =((15*(Y96^0.8)*AC96^0.9)/1000)*$AE$10/$AE$9 -> 39.8 | AF96: =MAX(14*Y96,150) -> 224 | AG96: =MAX(9*Y96,100) -> 144 | AH96: =VLOOKUP(W96,$E$11:$I$14,4,FALSE) -> 9 | AI96: =((Y96*PI())*AF96)*(AH96*$AE$18/$AE$17)/1000 -> 57.4 | AJ96: =((Y96*PI())*AG96)*(AH96*$AE$18/$AE$17)/1000 -> 36.9 | AL96: =MIN(AA96,AD96,AI96) -> 34.8 | AM96: =IF(AL96=AA96,"ACCIAIO",IF(AL96=AD96,"LEGNO",IF(AL96=AI96," CALCESTRUZZO"))) -> LEGNO | AN96: =MIN(AA96,AE96,AJ96) -> 36.9 | AO96: =IF(AN96=AA96,"ACCIAIO",IF(AN96=AE96,"LEGNO",IF(AN96=AJ96,"CALCESTRUZZO"))) -> CALCESTRUZZO | AR96: =MIN(AA96*$AE$14,AD96*$AE$9/$AE$10,AI96*$AE$17/$AE$18) -> 46.9 | AS96: =IF(AR96=AA96*$AE$14,"ACCIAIO",IF(AR96=AD96*$AE$9/$AE$10,"LEGNO",IF(AR96=AI96*$AE$17/$AE$18," CALCESTRUZZO"))) -> LEGNO | AT96: =MIN(AA96*$AE$14,AE96*$AE$9/$AE$10,AJ96*$AE$17/$AE$18) -> 53.7 | AU96: =IF(AT96=AA96*$AE$14,"ACCIAIO",IF(AT96=AE96*$AE$9/$AE$10,"LEGNO",IF(AT96=AJ96*$AE$17/$AE$18," CALCESTRUZZO"))) -> LEGNO | AX96: =MIN(AA96*$AE$14,$AZ$18*AD96*$AE$9/$AE$10,AI96*$AE$17/$AE$18) -> 70.4 | AY96: =IF(AX96=AA96*$AE$14,"ACCIAIO",IF(AX96=$AZ$18*AD96*$AE$9/$AE$10,"LEGNO",IF(AX96=AI96*$AE$17/$AE$18," CALCESTRUZZO"))) -> LEGNO | AZ96: =MIN(AA96*$AE$14,$AZ$18*AE96*$AE$9/$AE$10,AJ96*$AE$17/$AE$18) -> 65.1 | BA96: =IF(AZ96=AA96*$AE$14,"ACCIAIO",IF(AZ96=$AZ$18*AE96*$AE$9/$AE$10,"LEGNO",IF(AZ96=AJ96*$AE$17/$AE$18," CALCESTRUZZO"))) -> CALCESTRUZZO
W97: RTR_16 | X97: RTR_16_950 | Y97: 16 | Z97: 950 | AA97: 80 | AB97: 701 | AC97: 806.0 | AD97: 37.2 | AE97: 42.1 | AF97: 224 | AG97: 144 | AH97: 9 | AI97: 57.4 | AJ97: 36.9 | AL97: 37.2 | AM97: LEGNO | AN97: 36.9 | AO97: CALCESTRUZZO | AR97: 50.2 | AS97: LEGNO | AT97: 56.9 | AU97: LEGNO | AX97: 75.3 | AY97: LEGNO | AZ97: 65.1 | BA97: CALCESTRUZZO
W98: RTR_16 | X98: =_xlfn.CONCAT(W98,"_",Z98) -> RTR_16_1000 | Y98: 16 | Z98: 1000 | AA98: 80 | AB98: 751 | AC98: =Z98-AG98 -> 856.0 | AD98: =((15*(Y98^0.8)*AB98^0.9)/1000)*$AE$10/$AE$9 -> 39.5 | AE98: =((15*(Y98^0.8)*AC98^0.9)/1000)*$AE$10/$AE$9 -> 44.5 | AF98: =MAX(14*Y98,150) -> 224 | AG98: =MAX(9*Y98,100) -> 144 | AH98: =VLOOKUP(W98,$E$11:$I$14,4,FALSE) -> 9 | AI98: =((Y98*PI())*AF98)*(AH98*$AE$18/$AE$17)/1000 -> 57.4 | AJ98: =((Y98*PI())*AG98)*(AH98*$AE$18/$AE$17)/1000 -> 36.9 | AL98: =MIN(AA98,AD98,AI98) -> 39.5 | AM98: LEGNO | AN98: 36.9 | AO98: CALCESTRUZZO | AR98: 53.4 | AS98: LEGNO | AT98: 60.1 | AU98: LEGNO | AX98: 80.1 | AY98: LEGNO | AZ98: 65.1 | BA98: CALCESTRUZZO

Sheet traduzioni (hidden)
A1: lingua selezionata: | B1: =GEOMETRY!K8 -> ES | D1: IT | E1: EN | F1: DE | G1: ES | H1: FR | I1: PT
A3: =IF($B$1=$D$1,D3,IF($B$1=$E$1,E3,IF($B$1=$F$1,F3,IF($B$1=$G$1,G3,IF($B$1=$H$1,H3,IF($B$1=$I$1,I3,"ERROR")))))) -> Idioma | D3: Lingua | E3: Language | F3: Sprache | G3: Idioma | H3: Langue | I3: Idioma
A4: =IF($B$1=$D$1,D4,IF($B$1=$E$1,E4,IF($B$1=$F$1,F4,IF($B$1=$G$1,G4,IF($B$1=$H$1,H4,IF($B$1=$I$1,I4,"ERROR")))))) -> CÁLCULO TC FUSION | D4: CALCOLO TC-FUSION | E4: TC-FUSION CALCULATION | F4: BERECHNUNG TC FUSION | G4: CÁLCULO TC FUSION | H4: CALCUL TC-FUSION | I4: CÁLCULO TC-FUSION
A5: Información general | D5: Informazioni generali | E5: General informations | F5: Allgemeine Informationen | G5: Información general | H5: Informations générales | I5: Informações gerais
A6: Fecha | D6: Data | E6: Date | F6: Datum | G6: Fecha | H6: Date | I6: Data
A7: Proyecto | D7: Progetto | E7: Project | F7: Projekt | G7: Proyecto | H7: Projet | I7: Projeto
A8: Proyectista | D8: Progettista | E8: Designer | F8: Planer | G8: Proyectista | H8: Concepteur | I8: Projetista
A9: Conexión n.º | D9: Connessione nr. | E9: Connection no. | F9: Verbindung Nr. | G9: Conexión n.º | H9: Connexion n° | I9: Ligação n.º
A10: Normativa | D10: Normativa | E10: Standard | F10: Norm | G10: Normativa | H10: Norme | I10: Normativa
A11: Número eficaz axial (no necesario) | D11: Numero efficace assiale (non necessario) | E11: Axial effective number (not required) | F11: Wirksame Anzahl in axialer Richtung (nicht erforderlich) | G11: Número eficaz axial (no necesario) | H11: Nombre efficace axial (non nécessaire) | I11: Número efetivo axial (não necessário)
A12: Número eficaz al corte (no necesario) | D12: Numero efficace a taglio (non necessario) | E12: Effective shear number (not necessary) | F12: Wirksame Anzahl in Richtung Querkraft (nicht erforderlich) | G12: Número eficaz al corte (no necesario) | H12: Nombre efficace au cisaillement (non nécessaire) | I12: Número efetivo de corte (não necessário)
A13: Solicitaciones | D13: Sollecitazioni | E13: Loads | F13: Beanspruchungen | G13: Solicitaciones | H13: Sollicitations | I13: Carregamentos
A14: Duración de la carga | D14: Durata carico | E14: Load duration | F14: Lasteinwirkungsdauer | G14: Duración de la carga | H14: Durée de la charge | I14: Duração da carga
A15: Longitud de la unión | D15: Lunghezza giunto | E15: Joint length | F15: Länge Verbindung | G15: Longitud de la unión | H15: Longueur de l’assemblage | I15: Comprimento da junta
A16: Acción axial paralela a la conexión | D16: Azione assiale parallella alla connessione | E16: Axial force parallel to the connection | F16: Normalkraft senkrecht zum Anschluss | G16: Acción axial paralela a la conexión | H16: Action axiale parallèle à la connexion | I16: Ação axial paralela à ligação
A17: Corte perpendicular a la conexión, dirección-x | D17: Taglio perpendicolare alla connessione, direzione-x | E17: Shear perpendicular to the connection, x-direction | F17: Querkraft in x-Richtung | G17: Corte perpendicular a la conexión, dirección-x | H17: Coupe perpendiculaire à la connexion, direction-x | I17: Corte perpendicular à ligação, direção-x
A18: Corte perpendicular a la conexión, dirección-z | D18: Taglio perpendicolare alla connessione, direzione-z | E18: Shear perpendicular to the connection, z-direction | F18: Querkraft in z-Richtung | G18: Corte perpendicular a la conexión, dirección-z | H18: Coupe perpendiculaire à la connexion, direction-z | I18: Corte perpendicular à ligação, direção-z
A19: Momento flector paralelo a la conexión | D19: Momento flettente parallelo alla connessione | E19: Bending moment parallel to the connection | F19: Biegemoment parallel zur Verbindung | G19: Momento flector paralelo a la conexión | H19: Moment de flexion parallèle à la connexion | I19: Momento fletor paralelo à ligação
A20: Fibras inferiores en tracción | D20: Fibre inferiori tese | E20: Lower tense fibers | F20: Untere Fasern unter Zugspannung | G20: Fibras inferiores en tracción | H20: Fibres inférieures tendues | I20: Fibras inferiores tensionadas
A21: Momento perpendicular a la conexión, plano-xz | D21: Momento perpendicolare alla connessione, piano-xz | E21: Moment perpendicular to the connection, plane-xz | F21: Moment senkrecht zur Verbindung, Ebene-xz | G21: Momento perpendicular a la conexión, plano-xz | H21: Momentum perpendiculaire à la connexion, plan-xz | I21: Momento perpendicular à ligação, plano-xz
A22: + tracción | D22: + trazione | E22: + traction | F22: + Zugkraft | G22: + tracción | H22: + traction | I22: + tração
A23: - compresión | D23: - compressione | E23: - compression | F23: - Druckkraft | G23: - compresión | H23: - compression | I23: - compressão
A24: + fibras inferiores en tracción | D24: + fibre tese inferiori | E24: + lower tense fibers | F24: + untere Fasern unter Zugspannung | G24: + fibras inferiores en tracción | H24: + fibres tendues inférieures | I24: + fibras tensionadas inferiores
A25: - fibras superiores en tracción | D25: - fibre tese superiori | E25: - upper tense fibers | F25: - obere Fasern unter Zugspannung | G25: - fibras superiores en tracción | H25: - fibres tendues supérieures | I25: - fibras tensionadas superiores
A26: Permanente | D26: Permanente | E26: Permanent | F26: Dauerhaft | G26: Permanente | H26: Permanente | I26: Permanente
A27: Larga | D27: Lunga | E27: Long-term | F27: Lang | G27: Larga | H27: Longue | I27: Longa
A28: Media | D28: Media | E28: Medium-term | F28: Mittel | G28: Media | H28: Moyenne | I28: Média
A29: Corta | D29: Breve | E29: Short-term | F29: Kurz | G29: Corta | H29: Courte | I29: Curta
A30: Instantánea | D30: Istantanea | E30: Istantaneous | F30: Sofort wirkend | G30: Instantánea | H30: Instantanée | I30: Instantânea
A31: Corta/Instantánea | D31: Breve/Istantanea | E31: Short/Instantaneous | F31: Kurz/Sofort wirkend | G31: Corta/Instantánea | H31: Brève/Instantanée | I31: Curta/Instantânea
A32: Composición del panel | D32: Composizione pannello | E32: Panel composition | F32: Zusammensetzung Platte | G32: Composición del panel | H32: Composition du panneau | I32: Composição do painel
A33: Clase | D33: Classe | E33: Class | F33: Klasse | G33: Clase | H33: Classe | I33: Classe
A34: Número de capas | D34: Nr strati | E34: No. Layers | F34: Anz. Schichten | G34: Número de capas | H34: N° de couches | I34: N.º camadas
A35: Tipo | D35: Tipo | E35: Type | F35: Typ | G35: Tipo | H35: Type | I35: Tipo
A36: Espesor | D36: Spessore | E36: Thickness | F36: Stärke | G36: Espesor | H36: Épaisseur | I36: Espessura
A37: Orientación | D37: Orientamento | E37: Orientation | F37: Ausrichtung | G37: Orientación | H37: Orientation | I37: Orientação
A38: L-Fibras capas externas perpendiculares a la línea de unión | D38: L-Fibre strati esterni perpendicolari alla linea di giunto | E38: L-Outer layers fibers perpendicular to the joint line | F38: L-Fasern äußere Schichten senkrecht zur Verbindungslinie | G38: L-Fibras capas externas perpendiculares a la línea de unión | H38: L-Fibre couches externes perpendiculaires à la ligne de l'assemblage | I38: L-Fibras das camadas exteriores perpendiculares à linha de junção
A39: T-Fibras capas externas paralelas a la línea de unión | D39: T-Fibre strati esterni paralleli alla linea di giunto | E39: T-Outer layers fibers parallel to the joint line | F39: T-Fasern äußere Schichten parallel zur Verbindungslinie | G39: T-Fibras capas externas paralelas a la línea de unión | H39: T-Fibre couches externes parallèles à la ligne de l'assemblage | I39: T-Fibras das camadas exteriores paralelas à linha de junção
A40: Tornillos | D40: Viti | E40: Screws | F40: Schrauben | G40: Tornillos | H40: Vis | I40: Parafusos
A41: Tipo de tornillo | D41: Tipo di vite | E41: Screw type | F41: Schraubentyp | G41: Tipo de tornillo | H41: Type de vis | I41: Tipo de parafuso
A42: Diámetro | D42: Diametro | E42: Diameter | F42: Durchmesser | G42: Diámetro | H42: Diamètre | I42: Diâmetro
A43: Longitud | D43: Lunghezza | E43: Length | F43: Länge | G43: Longitud | H43: Longueur | I43: Comprimento
A44: Separación superior | D44: Spaziatura superiore | E44: Upper spacing | F44: Oberer Abstand | G44: Separación superior | H44: Espacement supérieur | I44: Espaçamento superior
A45: Separación inferior | D45: Spaziatura inferiore | E45: Bottom spacing | F45: Unterer Abstand | G45: Separación inferior | H45: Espacement inférieur | I45: Espaçamento inferior
A46: Tabla (Y/N) | D46: Tavola (Y/N) | E46: Board (Y/N) | F46: Schalung (Y/N) | G46: Tabla (Y/N) | H46: Lame (Y/N) | I46: Tabela (S/N)
A47: Número de tornillos superiores/metro | D47: Numero di viti superiori/metro | E47: Number of upper screws/meter | F47: Anzahl obere Schrauben/Meter | G47: Número de tornillos superiores/metro | H47: Nombre de vis supérieures/mètre | I47: Número de parafusos superiores/metro
A48: Número de tornillos inferiores/metro | D48: Numero di viti inferiori/metro | E48: Number of lower screws/meter | F48: Anzahl untere Schrauben/Meter | G48: Número de tornillos inferiores/metro | H48: Nombre de vis inférieures/mètre | I48: Número de parafusos inferiores/metro
A49: Longitud del anclaje mínima (hormigón) | D49: Lunghezza ancoraggio minima (Concrete) | E49: Minimum anchorage length (Concrete) | F49: Min. Länge Verankerung (Beton) | G49: Longitud del anclaje mínima (hormigón) | H49: Longueur ancrage minimum (Concrete) | I49: Comprimento mínimo de ancoragem (Concrete)
A50: Longitud de superposición mínima (hormigón) | D50: Lunghezza di sovrapposizione minima (Concrete) | E50: Minimum overlap length (Concrete) | F50: Min. Länge Überlappung (Beton) | G50: Longitud de superposición mínima (hormigón) | H50: Longueur de superposition minimum (Concrete) | I50: Comprimento mínimo de sobreposição (Concrete)
A51: Longitud de penetración mínima (timber) | D51: Lunghezza di penetrazione minima (Timber) | E51: Minimum penetration length (Timber) | F51: Min. Penetrationslänge (Holz) | G51: Longitud de penetración mínima (timber) | H51: Longueur de pénétration minimum (Timber) | I51: Comprimento mínimo de penetração (Timber)
A52: Distancia borde a4t | D52: Distanza bordo a4t | E52: Edge distance a4t | F52: Randabstand a4t | G52: Distancia borde a4t | H52: Distance bord a4t | I52: Distância do bordo a4t
A53: Distancia mínima borde a4t | D53: Distanza minima bordo a4t | E53: Minimum edge distance a4t | F53: Minimaler Randabstand a4t | G53: Distancia mínima borde a4t | H53: Distance minimum bord a4t | I53: Distância mínima do bordo a4t
A54: Hormigón | D54: Calcestruzzo | E54: Concrete | F54: Beton | G54: Hormigón | H54: Béton | I54: Betão
A55: Clase de hormigón | D55: Classe calcestuzzo | E55: Concrete class | F55: Klasse Beton | G55: Clase de hormigón | H55: Classe du béton | I55: Classe do betão
A56: Diámetro estribos | D56: Diametro staffe | E56: Stirrups diameter | F56: Durchmesser Bügel | G56: Diámetro estribos | H56: Diamètre étriers | I56: Diâmetro do estribo
A57: Diámetro barras longitudinales | D57: Diametro ferri longitudinali | E57: Longitudinal bars diameter | F57: Durchmesser Längseisen | G57: Diámetro barras longitudinales | H57: Diamètre barres longitudinales | I57: Diâmetro da armadura longitudinais
A58: Diámetro áridos (*) | D58: Diametro aggregato (*) | E58: Aggregate diameter (*) | F58: Korndurchmesser (*) | G58: Diámetro áridos (*) | H58: Diamètre agrégat (*) | I58: Diâmetro do agregado (*)
A59: Clase de exposición ambiental | D59: Classe di esposizione ambientale | E59: Environmental exposure class | F59: Klasse Umweltexposition | G59: Clase de exposición ambiental | H59: Classe d’exposition environnementale | I59: Classe de exposição ambiental
A60: Recubrimiento mínimo estribos | D60: Copriferro minimo staffe | E60: Minimum stirrups cover | F60: Min. Betondeckung Bügel | G60: Recubrimiento mínimo estribos | H60: Enrobage minimum étriers | I60: Cobrimento mínimo dos estribros
A61: Recubrimiento mínimo barras longitudinales | D61: Copriferro minimo barre longitudinali | E61: Minimum longitudinal bars cover | F61: Min. Betondeckung Längsbewehrung | G61: Recubrimiento mínimo barras longitudinales | H61: Enrobage minimum barres longitudinales | I61: Cobrimento mínimo das barras longitudinais
A62: Distancia eje barras longitudinales | D62: Distanza asse ferri longitudinali | E62: Longitudinal iron axis distance | F62: Abstand Achse Längseisen | G62: Distancia eje barras longitudinales | H62: Distance axe barres longitudinales | I62: Distância do eixo dos ferros longitudinais
A63: Anchura mínima dala | D63: Larghezza minima cordolo | E63: Minimum curb width | F63: Min. Breite Aufkantung | G63: Anchura mínima dala | H63: Largeur minimum bordure | I63: Largura mínima do lancil
A64: Resistencias | D64: Resistenze | E64: Resistances | F64: Festigkeiten | G64: Resistencias | H64: Résistances | I64: Resistências
A65: Resistencia a la compresión madera (diseño) | D65: Resistenza a compressione legno (design) | E65: Wood compression strength (design) | F65: Druckfestigkeit Holz (Design) | G65: Resistencia a la compresión madera (diseño) | H65: Résistance à la compression bois (design) | I65: Resistência à compressão madeira (design)
A66: Resistencia a la compresión hormigón (diseño) | D66: Resistenza a compressione CLS (design) | E66: Concrete compressive strength (design) | F66: Druckfestigkeit Beton (Design) | G66: Resistencia a la compresión hormigón (diseño) | H66: Résistance à la compression béton CLS (design) | I66: Resistência à compressão CLS (design)
A67: min(T,CA) | D67: min(T,CA) | E67: min(T,CLS) | F67: min(T,CA) | G67: min(T,CA) | H67: min(T,CA) | I67: min(T,CA)
A68: =IF($B$1=$D$1,D68,IF($B$1=$E$1,E68,IF($B$1=$F$1,F68,IF($B$1=$G$1,G68,IF($B$1=$H$1,H68,IF($B$1=$I$1,I68,"ERROR")))))) -> Tensión de adhesión | D68: Tensione di aderenza | E68: Tension of adhesion | F68: Verbundspannung | G68: Tensión de adhesión | H68: Tension d’adhérence | I68: Tensão de aderência
A69: Geometría efectiva | D69: Geometria effettiva | E69: Effective geometry | F69: Wirksame Geometrie | G69: Geometría efectiva | H69: Géométrie effective | I69: Geometria efetiva
A70: Distancia eje barras longitudinales | D70: Distanza asse ferri longitudinali | E70: Longitudinal bars axis distance | F70: Abstand Achse Längseisen | G70: Distancia eje barras longitudinales | H70: Distance axe barres longitudinales | I70: Distância do eixo dos ferros longitudinais
A71: Longitud efectiva dala | D71: Larghezza effettiva cordolo | E71: Effective curb width | F71: Wirksame Breite Betonbalken | G71: Longitud efectiva dala | H71: Largeur effective bordure | I71: Largura efetiva do lancil
A72: Longitud de superposición | D72: Lunghezza di sovrapposizione | E72: Length of overlap | F72: Länge Überlappung | G72: Longitud de superposición | H72: Longueur de superposition | I72: Comprimento de sobreposição
A73: Longitud de anclaje | D73: Lunghezza di ancoraggio | E73: Anchorage length | F73: Länge Verankerung | G73: Longitud de anclaje | H73: Longueur d’ancrage | I73: Comprimento de ancoragem
A74: Distancia desde el borde real tornillos | D74: Distanza dal bordo reale viti | E74: Distance from the edge screws | F74: Abstand zur tatsächlichen Kante der Schrauben | G74: Distancia desde el borde real tornillos | H74: Distance du bord réel des vis | I74: Distância do bordo real dos parafusos
A75: Comprobación coherencia posición tornillos/barras | D75: Verifica coerenza posizione viti/ferri | E75: Checking consistency of screw/rod position | F75: Überprüfung der Kohärenz Position Schrauben/Bewehrung | G75: Comprobación coherencia posición tornillos/barras | H75: Vérification cohérence position vis/barres | I75: Verificação da coerência da posição dos parafusos/ferros
A76: Distancia tornillos borde superior | D76: Distanza viti lembo superiore | E76: Upper edge screw distance | F76: Abstand Schrauben oberer Rand | G76: Distancia tornillos borde superior | H76: Distance vis section supérieure | I76: Distância dos parafusos da aba superior
A77: Longitud rosca tornillo HORM (*) | D77: Lunghezza filetto vite CA (*) | E77: Screw thread length in concrete (*) | F77: Länge Schraubengewinde BET(*) | G77: Longitud rosca tornillo HORM (*) | H77: Longueur filetage vis CA (*) | I77: Comprimento da rosca do parafuso CA (*)
A78: Longitud rosca tornillo Madera | D78: Lunghezza filetto vite Legno | E78: Screw thread length in timber | F78: Länge Schraubengewinde Holz | G78: Longitud rosca tornillo Madera | H78: Longueur filetage vis Bois | I78: Comprimento da rosca do parafuso Madeira
A79: Longitud eficaz rosca tornillo Madera | D79: Lunghezza efficace filetto vite Legno | E79: Effective screw thread length in timber | F79: Wirksame Länge Schraubengewinde Holz | G79: Longitud eficaz rosca tornillo Madera | H79: Longueur efficace filetage vis Bois | I79: Comprimento eficaz da rosca do parafuso Madeira
A80: Distancia entre tornillos superiores/inferiores | D80: Distanza tra viti superiori/inferiori | E80: Distance between upper/lower screws | F80: Abstand zwischen oberen/unteren Schrauben | G80: Distancia entre tornillos superiores/inferiores | H80: Distance entre vis supérieures/inférieures | I80: Distância entre os parafusos superiores/inferiores
A81: (*) Se supone que el tornillo penetra en la dala hasta la barra de armadura opuesta | D81: (*) si assume che la vite penetri nel cordolo fino alla barra d'armatura opposta | E81: (*) it is assumed that the screw penetrates the curb to the opposite reinforcement bar | F81: (*) Es wird angenommen, dass die Schraube im Betonbalken bis zum gegenüberliegenden Betonstahl hineinreicht | G81: (*) Se supone que el tornillo penetra en la dala hasta la barra de armadura opuesta | H81: (*) nous supposons que la vis pénètre dans la bordure jusqu'à la barre d'armature opposée | I81: (*) assume-se que o parafuso penetra no lancil até à barra de armadura oposta
A82: Comprobación | D82: Verifica | E82: Verification | F82: Überprüfung | G82: Comprobación | H82: Vérification | I82: Verificação
A83: Acción máxima en un solo tornillo | D83: Azione massima su singola vite | E83: Maximum action on single screw | F83: Max. Wirkung auf einzelne Schraube | G83: Acción máxima en un solo tornillo | H83: Action maximale sur chaque vis | I83: Ação máxima num único parafuso
A84: Resistencia axial un solo tornillo lado madera/acero | D84: Resistenza assiale singola vite lato legno/acciaio | E84: Single screw axial resistance timber/steel side | F84: Axiale Festigkeit einzelne Schraube Seite Holz/Stahl | G84: Resistencia axial un solo tornillo lado madera/acero | H84: Résistance axiale d’une vis côté bois/acier | I84: Resistência axial num único parafuso lado madeira/aço
A85: Coeficiente de trabajo esfuerzo axial | D85: Tasso di lavoro sforzo assiale | E85: Axial stress work ratio | F85: Axiale Beanspruchung | G85: Coeficiente de trabajo esfuerzo axial | H85: Taux de travail effort axial | I85: Taxa de trabalho esforço axial
A86: Máxima acción de corte | D86: Massima azione tagliante | E86: Maximum shear action | F86: Max. Scherkraft | G86: Máxima acción de corte | H86: Action tranchante maximale | I86: Ação de corte máxima
A87: Resistencia al corte de un solo tornillo | D87: Resistenza a taglio singola vite | E87: Single screw shear strength | F87: Scherfestigkeit einzelne Schraube | G87: Resistencia al corte de un solo tornillo | H87: Résistance au cisaillement de chaque vis | I87: Resistência ao corte de cada parafuso
A88: Coeficiente de trabajo esfuerzo corte | D88: Tasso di lavoro sforzo taglio | E88: Shear stress work ratio | F88: Scherbeanspruchung | G88: Coeficiente de trabajo esfuerzo corte | H88: Taux de travail effort au cisaillement | I88: Taxa de trabalho esforço de corte
A89: Coeficiente de trabajo combinación corte tracción | D89: Tasso di lavoro combinata taglio trazione | E89: Combined shear-axial working ratio | F89: Kombinierte Scher-Zug-Beanspruchung | G89: Coeficiente de trabajo combinación corte tracción | H89: Taux de travail combinaison cisaillement traction | I89: Taxa de trabalho combinada corte tração
A90: Comprobación anclaje lado hormigón | D90: Verifica ancoraggio lato calcestruzzo | E90: Concrete side anchorage verification | F90: Überprüfung Verankerung Betonseite | G90: Comprobación anclaje lado hormigón | H90: Vérification ancrage côté béton | I90: Verificação da ancoragem do lado do betão
A91: Longitud efectiva | D91: Lunghezza effettiva | E91: Effective length | F91: Wirksame Länge | G91: Longitud efectiva | H91: Longueur effective | I91: Comprimento efetivo
A92: Longitud mínimo anclaje | D92: Lunghezza minima ancoraggio | E92: Minimum anchor length | F92: Min. Länge Verankerung | G92: Longitud mínimo anclaje | H92: Longueur minimum ancrage | I92: Comprimento mínimo de ancoragem
A93: Coeficiente de trabajo | D93: Tasso di lavoro | E93: Degree of utilization | F93: Beanspruchung | G93: Coeficiente de trabajo | H93: Taux de travail | I93: Taxa de trabalho
A94: Longitud efectiva | D94: Lunghezza effettiva | E94: Effective length | F94: Wirksame Länge | G94: Longitud efectiva | H94: Longueur effective | I94: Comprimento efetivo
A95: Longitud mínima solapamiento | D95: Lunghezza minima overlap | E95: Minimum overlap length | F95: Min. Länge Überlappung (Beton) | G95: Longitud mínima solapamiento | H95: Longueur minimum overlap | I95: Comprimento mínimo de overlap
A96: Coeficiente de trabajo | D96: Tasso di lavoro | E96: Degree of utilization | F96: Beanspruchung | G96: Coeficiente de trabajo | H96: Taux de travail | I96: Taxa de trabalho
A97: Rigideces | D97: Rigidezze | E97: Stiffnesses | F97: Steifigkeiten | G97: Rigideces | H97: Rigidités | I97: Rigidez
A98: Rigidez al corte | D98: Rigidezza a taglio | E98: Shear stiffness | F98: Scherfestigkeit | G98: Rigidez al corte | H98: Rigidité au cisaillement | I98: Rigidez ao corte
A99: Rigidez axial | D99: Rigidezza assiale | E99: Axial stiffness | F99: Axiale Steifigkeit | G99: Rigidez axial | H99: Rigidité axiale | I99: Rigidez axial
A100: Rigidez rotacional (*) | D100: Rigidezza rotazionale (*) | E100: Rotational stiffness (*) | F100: Drehfedersteifigkeit (*) | G100: Rigidez rotacional (*) | H100: Rigidité en rotation (*) | I100: Rigidez rotacional (*)
A101: Cálculo eje neutro - Flexión | D101: Calcolo asse neutro - Flessione | E101: Neutral axis calculation - Bending | F101: Berechnung Nulllinie - Biegung | G101: Cálculo eje neutro - Flexión | H101: Calcul axe neutre - Flexion | I101: Cálculo do eixo neutro - Flexão
A102: Momento de flexión respecto a los tornillos | D102: Momento flettente rispetto le viti | E102: Bending moment with respect to screws | F102: Biegesteifigkeit in Bezug auf Schrauben | G102: Momento de flexión respecto a los tornillos | H102: Moment fléchissant par rapport aux vis | I102: Momento fletor em relação aos parafusos
A103: Eje neutro | D103: Asse neutro | E103: Neutral axis | F103: Nulllinie | G103: Eje neutro | H103: Axe neutre | I103: Eixo neutro
A104: Parte comprimida primera lámina | D104: Porzione compressa prima lamella | E104: Compressed portion first lamella | F104: Gedrückter Bereich erste Lamelle | G104: Parte comprimida primera lámina | H104: Portion comprimée première lame | I104: Parte comprimida primeira lamela
A105: Parte comprimida segunda lámina | D105: Porzione compressa seconda lamella | E105: Compressed portion second lamella | F105: Gedrückter Bereich zweite Lamelle | G105: Parte comprimida segunda lámina | H105: Portion comprimée deuxième lame | I105: Parte comprimida segunda lamela
A106: Parte comprimida tercera lámina | D106: Porzione compressa terza lamella | E106: Compressed portion third lamella | F106: Gedrückter Bereich dritte Lamelle | G106: Parte comprimida tercera lámina | H106: Portion comprimée troisième lame | I106: Parte comprimida terceira lamela
A107: Posición resultante | D107: Posizione risultante | E107: Resulting position | F107: Resultierende Position | G107: Posición resultante | H107: Position résultante | I107: Posição resultante
A108: Brazo de palanca | D108: Braccio di leva | E108: Lever arm | F108: Hebelsarm | G108: Brazo de palanca | H108: Bras de levier | I108: Braço de alavanca
A109: Cálculo esfuerzos | D109: Calcolo sforzi | E109: Stress calculation | F109: Berechnung Belastungen | G109: Cálculo esfuerzos | H109: Calcul des efforts | I109: Cálculo dos esforços
A110: Acción máxima en todos los tornillos | D110: Azione massima su tutte le viti | E110: Maximum action on all screws | F110: Max. Kraft auf alle Schrauben | G110: Acción máxima en todos los tornillos | H110: Action maximale sur toutes les vis | I110: Ação máxima em todos os parafusos
A111: Acción máxima en un solo tornillo (*) | D111: Azione massima su singola vite (*) | E111: Maximum action on single screw (*) | F111: Max. Kraft auf einzelne Schraube (*) | G111: Acción máxima en un solo tornillo (*) | H111: Action maximale sur chaque vis (*) | I111: Ação máxima num único parafuso (*)
A112: Acción máxima tornillos dentro del plano en un solo tornillo superior | D112: Azione massima viti in piano su singola vite superiore | E112: Maximum in-plane screw action on single top screw | F112: Max. Kraft Schrauben in Ebene auf einzelne obere Schraube | G112: Acción máxima tornillos dentro del plano en un solo tornillo superior | H112: Action maximale des vis en plan sur chaque vis supérieure | I112: Ação máxima dos parafusos em plano num único parafuso superior
A113: Acción máxima tornillos dentro del plano en un solo tornillo inferior | D113: Azione massima viti in piano su singola vite inferiore | E113: Maximum in-plane screw action on single lower screw | F113: Max. Kraft Schrauben in Ebene auf einzelne untere Schraube | G113: Acción máxima tornillos dentro del plano en un solo tornillo inferior | H113: Action maximale des vis en plan sur chaque vis inférieure | I113: Ação máxima dos parafusos em plano num único parafuso inferior
A114: Acción máxima tornillos fuera del plano en un solo tornillo superior | D114: Azione massima viti fuoripiano su singola vite superiore | E114: Maximum out-of-plane screw action on single top screw | F114: Max. Kraft Schrauben außerhalb Ebene auf einzelne obere Schraube | G114: Acción máxima tornillos fuera del plano en un solo tornillo superior | H114: Action maximale des vis hors plan sur chaque vis supérieure | I114: Ação máxima dos parafusos fora do plano num único parafuso superior
A115: Acción máxima tornillos fuera del plano en un solo tornillo inferior | D115: Azione massima viti fuoripiano su singola vite inferiore | E115: Maximum out-of-plane screw action on single lower screw | F115: Max. Kraft Schrauben außerhalb Ebene auf einzelne untere Schraube | G115: Acción máxima tornillos fuera del plano en un solo tornillo inferior | H115: Action maximale des vis hors plan sur chaque vis inférieure | I115: Ação máxima dos parafusos fora do plano num único parafuso inferior
A116: Acción combinada en un solo tornillo superior | D116: Azione combinata su singola vite superiore | E116: Combined action on single upper screw | F116: Kombinierte Kraft auf einzelne obere Schraube | G116: Acción combinada en un solo tornillo superior | H116: Action combinée sur chaque vis supérieure | I116: Ação combinada num único parafuso superior
A117: Acción combinada en un solo tornillo inferior | D117: Azione combinata su singola vite inferiore | E117: Combined action on single lower screw | F117: Kombinierte Kraft auf einzelne untere Schraube | G117: Acción combinada en un solo tornillo inferior | H117: Action combinée sur chaque vis inférieure | I117: Ação combinada num único parafuso inferior
A118: Máxima acción de corte | D118: Massima azione tagliante | E118: Maximum shear action | F118: Max. Scherkraft | G118: Máxima acción de corte | H118: Action tranchante maximale | I118: Ação de corte máxima
A119: (*) Se considera que la tracción es absorbida únicamente por los tornillos en la línea inferior | D119: (*) si considera che la trazione venga assorbita solo dalle viti sulla linea inferiore | E119: (*) traction is considered to be absorbed only by the screws on the lower line | F119: (*) Es wird angenommen, dass die Zugkraft nur von den Schrauben an der unteren Linie aufgenommen wird | G119: (*) Se considera que la tracción es absorbida únicamente por los tornillos en la línea inferior | H119: (*) nous considérons que la traction est uniquement absorbée par les vis sur la ligne inférieure | I119: (*) considera-se que a tração só é absorvida pelos parafusos da linha inferior
A120: Fibras inferiores en tracción | D120: Fibre inferiori tese | E120: Lower tense fibers | F120: Untere Fasern unter Zugspannung | G120: Fibras inferiores en tracción | H120: Fibres inférieures tendues | I120: Fibras inferiores tensionadas
A121: Fibras superiores en tracción | D121: Fibre superiori tese | E121: Upper tense fibers | F121: Obere Fasern unter Zugspannung | G121: Fibras superiores en tracción | H121: Fibres supérieures tendues | I121: Fibras superiores tensionadas
A122: Comprobación | D122: Verifica | E122: Verifications | F122: Überprüfung | G122: Comprobación | H122: Vérification | I122: Verificação
A123: Resistencia axial un solo tornillo lado madera/acero | D123: Resistenza assiale singola vite lato legno/acciaio | E123: Single screw axial capacity timber/steel side | F123: Axiale Festigkeit einzelne Schraube Seite Holz/Stahl | G123: Resistencia axial un solo tornillo lado madera/acero | H123: Résistance axiale d’une vis côté bois/acier | I123: Resistência axial num único parafuso lado madeira/aço
A124: Resistencia al corte de un solo tornillo | D124: Resistenza a taglio singola vite | E124: Single screw shear capacity | F124: Scherfestigkeit einzelne Schraube | G124: Resistencia al corte de un solo tornillo | H124: Résistance au cisaillement de chaque vis | I124: Resistência ao corte de cada parafuso
A125: Coeficiente de trabajo esfuerzo axial | D125: Tasso di lavoro sforzo assiale | E125: Axial stress work ratio | F125: Axiale Beanspruchung | G125: Coeficiente de trabajo esfuerzo axial | H125: Taux de travail effort axial | I125: Taxa de trabalho esforço axial
A126: Coeficiente de trabajo esfuerzo corte | D126: Tasso di lavoro sforzo taglio | E126: Shear stress work ratio | F126: Scherbeanspruchung | G126: Coeficiente de trabajo esfuerzo corte | H126: Taux de travail effort au cisaillement | I126: Taxa de trabalho esforço de corte
A127: Coeficiente de trabajo combinación corte tracción | D127: Tasso di lavoro combinata taglio trazione | E127: Combined shear-axial working ratio | F127: Kombinierte Scher-Zug-Beanspruchung | G127: Coeficiente de trabajo combinación corte tracción | H127: Taux de travail combinaison cisaillement traction | I127: Taxa de trabalho combinada corte tração
A128: Comprobación anclaje lado hormigón | D128: Verifica ancoraggio lato calcestruzzo | E128: Concrete side anchorage verification | F128: Überprüfung Verankerung Betonseite | G128: Comprobación anclaje lado hormigón | H128: Vérification ancrage côté béton | I128: Verificação da ancoragem do lado do betão
A129: Longitud anclaje requerida | D129: Lunghezza ancoraggio richiesta | E129: Required anchor length | F129: Geforderte Länge Verankerung | G129: Longitud anclaje requerida | H129: Longueur ancrage requise | I129: Comprimento de ancoragem requerido
A130: Longitud mínima anclaje | D130: Lunghezza ancoraggio minima | E130: Minimum anchor length | F130: Min. Länge Verankerung | G130: Longitud mínima anclaje | H130: Longueur ancrage minimum | I130: Comprimento mínimo de ancoragem
A131: Longitud efectiva | D131: Lunghezza effettiva | E131: Effective length | F131: Wirksame Länge | G131: Longitud efectiva | H131: Longueur effective | I131: Comprimento efetivo
A132: =IF($B$1=$D$1,D132,IF($B$1=$E$1,E132,IF($B$1=$F$1,F132,IF($B$1=$G$1,G132,IF($B$1=$H$1,H132,IF($B$1=$I$1,I132,"ERROR")))))) -> Longitud anclaje | D132: Lunghezza ancoraggio | E132: Anchorage length | F132: Länge Verankerung | G132: Longitud anclaje | H132: Longueur d’ancrage | I132: Comprimento de ancoragem
A133: Coeficiente de trabajo | D133: Tasso di lavoro | E133: Degree of utilization | F133: Beanspruchung | G133: Coeficiente de trabajo | H133: Taux de travail | I133: Taxa de trabalho
A134: Longitud solapamiento | D134: Lunghezza overlap | E134: Overlap length | F134: Länge Überlappung | G134: Longitud solapamiento | H134: Longueur overlap | I134: Comprimento de overlap
A135: Longitud mínima solapamiento | D135: Lunghezza minima overlap | E135: Minimum overlap length | F135: Min. Länge Überlappung | G135: Longitud mínima solapamiento | H135: Longueur minimum overlap | I135: Comprimento mínimo de overlap
A136: Longitud efectiva | D136: Lunghezza effettiva | E136: Effective length | F136: Wirksame Länge | G136: Longitud efectiva | H136: Longueur effective | I136: Comprimento efetivo
A137: Coeficiente de trabajo | D137: Tasso di lavoro | E137: Degree of utilization | F137: Beanspruchung | G137: Coeficiente de trabajo | H137: Taux de travail | I137: Taxa de trabalho
A138: Rigidez corte/flexión | D138: Rigidezza taglio/flessionale | E138: Shear and bending stiffness | F138: Scher-/Biegesteifigkeit | G138: Rigidez corte/flexión | H138: Rigidité cisaillement/flexion | I138: Rigidez ao corte/de flexão
A139: Rigidez al corte | D139: Rigidezza a taglio | E139: Shear stiffness | F139: Scherfestigkeit | G139: Rigidez al corte | H139: Rigidité au cisaillement | I139: Rigidez ao corte
A140: primera capa | D140: primo strato | E140: first layer | F140: erste Schicht | G140: primera capa | H140: première couche | I140: primeira camada
A141: 25 % espesor | D141: 25% spessore | E141: 25% thickness | F141: 25 % Stärke | G141: 25 % espesor | H141: 25 % épaisseur | I141: 25% espessura
A142: a_t(25%) | D142: a_t(25%) | E142: a_t(25%) | F142: a_t(25%) | G142: a_t(25%) | H142: a_t(25 %) | I142: a_t(25%)
A143: Cálculo longitud comprimida por rigidez | D143: Lunghezza compressa calcolo per rigidezza | E143: Compressed length calculation by stiffness | F143: Länge des Bereiches unter Druckspannung Berechnung für Steifigkeit | G143: Cálculo longitud comprimida por rigidez | H143: Longueur comprimée calcul pour rigidité | I143: Comprimento comprimido cálculo para rigidez
A144: Brazo de palanca | D144: Braccio di leva | E144: Lever arm | F144: Hebelsarm | G144: Brazo de palanca | H144: Bras de levier | I144: Braço de alavanca
A145: Momento de referencia | D145: Momento di riferimento | E145: Reference bending moment | F145: Bezugsmoment | G145: Momento de referencia | H145: Moment de référence | I145: Momento de referência
A146: Fuerza en los tornillos de referencia | D146: Forza su viti di riferimento | E146: Reference force on screws | F146: Kraft auf Bezugsschrauben | G146: Fuerza en los tornillos de referencia | H146: Force sur vis de référence | I146: Força nos parafusos de referência
A147: Anchura de referencia | D147: Larghezza di riferimento | E147: Reference width | F147: Bezugsbreite | G147: Anchura de referencia | H147: Largeur de référence | I147: Largura de referência
A148: Rigidez a compresión | D148: Rigidezza a compressione | E148: Compressive stiffness | F148: Druckfestigkeit | G148: Rigidez a compresión | H148: Rigidité à la compression | I148: Rigidez à compressão
A149: Rigidez axial | D149: Rigidezza assiale | E149: Axial stiffness | F149: Axiale Steifigkeit | G149: Rigidez axial | H149: Rigidité axiale | I149: Rigidez axial
A150: Tornillos en zona de tensión | D150: Viti in zona tesa | E150: Screws in tension area | F150: Schrauben im Bereich unter Zugspannung | G150: Tornillos en zona de tensión | H150: Vis en zone tendue | I150: Parafusos na zona tensionada
A151: Deformación de la zona comprimida | D151: Deformazione della zona compressa | E151: Deformation of the compressed zone | F151: Verformung gedrückter Bereich | G151: Deformación de la zona comprimida | H151: Déformation de la zone comprimée | I151: Deformação da zona comprimida
A152: Deformación de las fijaciones | D152: Deformazione dei fissaggi | E152: Deformation of fasteners | F152: Verformung Befestigungen | G152: Deformación de las fijaciones | H152: Déformation des fixations | I152: Deformação das fixações
A153: Ángulo de rotación unitario | D153: Angolo di rotazione unitario | E153: Unit angle of rotation | F153: Einzelner Drehwinkel | G153: Ángulo de rotación unitario | H153: Angle de rotation unitaire | I153: Ângulo de rotação unitário
A154: Rigidez rotacional (*) | D154: Rigidezza rotazionale (*) | E154: Rotational stiffness (*) | F154: Drehsteifigkeit (*) | G154: Rigidez rotacional (*) | H154: Rigidité en rotation (*) | I154: Rigidez rotacional (*)
A155: celdas editables | D155: celle editabili | E155: editable cells | F155: bearbeitbare Zellen | G155: celdas editables | H155: cases éditables | I155: células editáveis
A156: Distancia de la línea de tornillos bajos desde el borde CLT | D156: Distanza della linea di viti basse dal bordo CLT | E156: Distance of the low screw line from the edge CLT | F156: Abstand Linie untere Schrauben von der CLT-Kante | G156: Distancia de la línea de tornillos bajos desde el borde CLT | H156: Distance de la ligne de vis basses depuis le bord CLT | I156: Distância da linha de parafusos baixos do bordo CLT
A157: Tabla | D157: Tavola | E157: Board | F157: Schalung | G157: Tabla | H157: Lame | I157: Soalho
A158: Posición barra longitudinal | D158: Posizione ferro longitudinale | E158: Longitudinal bar position | F158: Position Längseisen | G158: Posición barra longitudinal | H158: Position barre longitudinale | I158: Posição da armadura longitudinal
A159: Barra longitudinal (1/2 diám.) | D159: Ferro longitudinale (1/2 dia.) | E159: Longitudinal bar (1/2 dia.) | F159: Längseisen (1/2 Durchm.) | G159: Barra longitudinal (1/2 diám.) | H159: Barre longitudinale (1/2 dia.) | I159: Armadura longitudinal (1/2 dia.)
A160: Tolerancia en curvatura estribos | D160: Tolleranza su curvatura staffe | E160: Tolerance on stirrup curvature | F160: Toleranz bei Biegung der Bügel | G160: Tolerancia en curvatura estribos | H160: Tolérance sur courbure des étriers | I160: Tolerância em curvatura dos estribos
A161: Tornillo (1/2 diám.) | D161: Vite (1/2 dia.) | E161: Screw (1/2 dia.) | F161: Schrauben (1/2 Durchm.) | G161: Tornillo (1/2 diám.) | H161: Vis (1/2 dia.) | I161: Parafuso (1/2 dia.)
A162: celdas editables | D162: celle editabili | E162: editable cells | F162: bearbeitbare Zellen | G162: celdas editables | H162: cases éditables | I162: células editáveis
A163: Recubrimiento mínimo requerido [mm] | D163: Copriferro minimo richiesto [mm] | E163: Minimum required bars cover [mm] | F163: Min. geforderte Betondeckung [mm] | G163: Recubrimiento mínimo requerido [mm] | H163: Enrobage minimum requis [mm] | I163: Cobirmento mínimo requerido [mm]
A164: Clase de exposición ambiental | D164: Classe di esposizione ambientale | E164: Environmental exposure class | F164: Klasse Umweltexposition | G164: Clase de exposición ambiental | H164: Classe d’exposition environnementale | I164: Classe de exposição ambiental
A165: Clase estructural | D165: Classe strutturale | E165: Structural class | F165: Konstruktionsklasse | G165: Clase estructural | H165: Classe structurelle | I165: Classe estrutural
A166: Recubrimiento mínimo para estribos | D166: Copriferro minimo per le staffe | E166: Minimum stirrups cover | F166: Min. Betondeckung für die Bügel | G166: Recubrimiento mínimo para estribos | H166: Enrobage minimum pour les étriers | I166: Cobrimento mínimo dos estribros
A167: Recubrimiento mínimo para barras longitudinales | D167: Copriferro minimo per le barre longitudinali | E167: Minimum longitudinal bars cover | F167: Min. Betondeckung für die Längsstangen | G167: Recubrimiento mínimo para barras longitudinales | H167: Enrobage minimum pour les barres longitudinales | I167: Cobrimento mínimo das barras longitudinais
A168: Distancia desde el eje de las barras longitudinales | D168: Distanza dall'asse delle barre lungitudinali | E168: Distance from the axis of the longitudinal bars | F168: Abstand von Achse der Längsstangen | G168: Distancia desde el eje de las barras longitudinales | H168: Distance par rapport à l’axe des barres longitudinales | I168: Distância do eixo das barras longitudinais
A169: celdas editables | D169: celle editabili | E169: editable cells | F169: bearbeitbare Zellen | G169: celdas editables | H169: cases éditables | I169: células editáveis
A170: Paneles | D170: Pannelli | E170: Pannels | F170: Platten | G170: Paneles | H170: Panneaux | I170: Painéis
A171: celdas editables | D171: celle editabili | E171: editable cells | F171: bearbeitbare Zellen | G171: celdas editables | H171: cases éditables | I171: células editáveis
A172: coef. conexión madera | D172: coeff. connessione legno | E172: timber connection coeff. | F172: Beiw. Verbindung Holz | G172: coef. conexión madera | H172: coeff. connexion bois | I172: coef. ligação da madeira
A173: coef. material acero | D173: coeff. materiale acciaio | E173: steel material coeff. | F173: Beiw. Material Stahl | G173: coef. material acero | H173: coeff. matériau acier | I173: coef. material de aço
A174: coef. material hormigón | D174: coeff. materiale calcestruzzo | E174: concrete material coeff. | F174: Beiw. Material Beton | G174: coef. material hormigón | H174: coeff. matériau béton | I174: coef. material de betão
A175: Resistencia axial - Hormigón | D175: Resistanza assiale - Calcestruzzo | E175: AXIAL CAPACITY - CONCRETE | F175: Axiale Festigkeit - Beton | G175: Resistencia axial - Hormigón | H175: Résistance axiale - Béton | I175: Resistência axial - Betão
A176: Resistencia axial - Madera | D176: Resistanza assiale - Legno | E176: AXIAL CAPACITY - TIMBER | F176: Axiale Festigkeit - Holz | G176: Resistencia axial - Madera | H176: Résistance axiale - Bois | I176: Resistência axial - Madeira
A177: Resistencia al corte - Madera | D177: Resistenza a taglio - Legno | E177: SHEAR CAPACITY - TIMBER | F177: Scherfestigkeit - Holz | G177: Resistencia al corte - Madera | H177: Résistance au cisaillement - Bois | I177: Resistência ao corte - Madeira
A178: Resistencia al corte - Acero | D178: Resistenza a taglio - Acciaio | E178: SHEAR CAPACITY - STEEL | F178: Scherfestigkeit - Stahl | G178: Resistencia al corte - Acero | H178: Résistance au cisaillement - Acier | I178: Resistência ao corte - Aço
A179: Rigidez lateral para un solo tornillo | D179: Rigidezza laterale per vite singola | E179: Lateral stiffness for single screw | F179: Seitensteifigkeit für Einzelschraube | G179: Rigidez lateral para un solo tornillo | H179: Rigidité latérale pour chaque vis | I179: Rigidez lateral para parafuso único
A180: NOTAS | D180: NOTE | E180: NOTES | F180: ANMERKUNGEN | G180: NOTAS | H180: NOTES | I180: NOTAS
A181: Antes de la construcción, todos los cálculos deben ser comprobados y aprobados por el proyectista responsable. | D181: Prima della costruzione, tutti i calcoli devono essere verificati e approvati dal progettista responsabile. | E181: Before the construction, all calculation must be verified and approved by the responsible designer. | F181: Vor dem Bau müssen alle Berechnungen vom verantwortlichen Planer geprüft und freigegeben werden. | G181: Antes de la construcción, todos los cálculos deben ser comprobados y aprobados por el proyectista responsable. | H181: Avant la construction, tous les calculs doivent être vérifiés et approuvés par le concepteur responsable. | I181: Antes da construção, todos os cálculos devem ser verificados e aprovados pelo projetista responsável.
A182: Los valores de resistencia mecánica y la geometría se refieren a la certificación del producto. | D182: I valori di resistenza meccanica e la geometria si riferiscono alla certificazione del prodotto. | E182: Mechanical resistance values and geometry refer to product certification. | F182: Die Werte der mechanischen Festigkeit und Geometrie beziehen sich auf die Produktzertifizierung. | G182: Los valores de resistencia mecánica y la geometría se refieren a la certificación del producto. | H182: Les valeurs de résistance mécanique et la géométrie se réfèrent à la certification du produit. | I182: Os valores de resistência mecânica e a geometria referem-se à certificação do produto.
A183: La comprobación de la resistencia del sistema lado anclaje al hormigón deberá realizarse por separado siguiendo las indicaciones de ETA-22/0806 - Annex E1. | D183: La verifica della resistenza del sistema lato ancoraggio al calcestruzzo devono essere realizzata a parte seguendo quanto indicato in ETA-22/0806 - Annex E1. | E183: Verification of concrete side anchoring system capacity must be carried out separately following ETA-22/0806 - Annex E1. | F183: Die Überprüfung der Festigkeit des Systems auf der Seite der Verankerung am Beton muss separat gemäß den Angaben in ETA-22/0806 - Anhang E1 durchgeführt werden. | G183: La comprobación de la resistencia del sistema lado anclaje al hormigón deberá realizarse por separado siguiendo las indicaciones de ETA-22/0806 - Annex E1. | H183: La vérification de la résistance du système côté ancrage au béton doit être effectuée séparément conformément à l’ETA-22/0806 - Annexe E1. | I183: A verificação da resistência do sistema do lado de ancoragem ao betão deve ser efetuada separadamente, de acordo com a ETA-22/0806 - Anexo E1.
A184: Todos los cálculos deben ser comprobados y aprobados por el proyectista responsable antes de su ejecución. El proyectista tiene la obligación de comprobar en cada uso que los datos sean conformes con las normativas vigentes y con el proyecto. La responsabilidad final de elegir el producto apropiado para una aplicación específica recae en el proyectista. | D184: Tutti i calcoli devono essere verificati e approvati dal progettista responsabile prima dell'esecuzione. Il progettista è tenuto a verificare, ad ogni utilizzo, la conformità dei dati alle normative vigenti e al progetto. La responsabilità ultima della scelta del prodotto appropriato per una specifica applicazione spetta al progettista. | E184: All calculations must be verified and approved by the responsible designer prior to execution. The designer are responsible to verify, at each use, the conformity of the data to the regulations in force and to the project. The ultimate responsibility for choosing the appropriate product for a specific application lies with the designer. | F184: Alle Berechnungen müssen vor der Ausführung vom verantwortlichen Planer geprüft und freigegeben werden. Der Planer ist verpflichtet, bei jeder Nutzung die Übereinstimmung der Daten mit den geltenden Vorschriften und dem Projekt zu überprüfen. Die letztendliche Verantwortung für die Auswahl des geeigneten Produkts für eine bestimmte Anwendung liegt beim Planer. | G184: Todos los cálculos deben ser comprobados y aprobados por el proyectista responsable antes de su ejecución. El proyectista tiene la obligación de comprobar en cada uso que los datos sean conformes con las normativas vigentes y con el proyecto. La responsabilidad final de elegir el producto apropiado para una aplicación específica recae en el proyectista. | H184: Tous les calculs doivent être vérifiés et approuvés par le concepteur responsable avant l'exécution. Le concepteur est tenu de vérifier, à chaque utilisation, la conformité des données aux règlementations en vigueur et au projet. La responsabilité ultime du choix du produit approprié pour une application spécifique incombe au concepteur. | I184: Todos os cálculos devem ser verificados e aprovados pelo projetista responsável antes da execução. É dever do projetista verificar em cada utilização a conformidade dos dados com as normas em vigor e com o projeto. A responsabilidade final pela escolha do produto apropriado para uma aplicação específica cabe ao projetista.
A185: Los resultados obtenidos en esta ficha son de carácter indicativo y deben considerarse como un servicio técnico-comercial en el ámbito de la actividad de ventas de Rotho Blaas srl. El número y el espesor de las puntas deben ser determinados por el proyectista responsable, que tiene la obligación de comprobar la exactitud de los resultados obtenidos mediante el procesamiento de los datos introducidos. Rotho Blaas srl no garantiza la conformidad con la normativa vigente ni la proyección de los cálculos realizados mediante esta hoja de cálculo. En concreto, tras modificar las disposiciones pertinentes, como, por ejemplo, normas, aprobaciones, etc., el programa puede dejar de ser válido, parcial o completamente. Rotho Blaas srl no ofrece ninguna garantía y en ningún caso podrá ser considerado responsable por daños o consecuencias, directas o indirectas (garantía por defectos, garantía por mal funcionamiento, responsabilidad del producto o legal, etc.). El Usuario declara que utilizará la hoja de cálculo como profesional con la obligación y la responsabilidad de comprobar que la hoja de cálculo responda a sus necesidades específicas. | D185: I risultati ottenuti in questa scheda sono di natura indicativa e vanno considerati come un servizio tecnico-commerciale nell'ambito dell'attività di vendita di Rotho Blaas srl. Il numero e lo spessore degli inserti devono essere determinati dal progettista responsabile che è tenuto a verificare l'esattezza dei risultati derivanti dall'elaborazione dei dati inseriti. Rotho Blaas srl non garantisce la conformità alla normativa vigente e la progettazione dei calcoli effettuati tramite questo foglio di calcolo. In particolare, in seguito alla modifica delle disposizioni pertinenti, quali ad esempio norme, approvazioni, ecc. il programma potrebbe diventare, in parte o in toto, non valido. Rotho Blaas srl non garantisce e non sarà responsabile per danni o conseguenze dirette o indirette o altro, in qualsiasi modo (garanzia per difetti, garanzia per malfunzionamento, responsabilità del prodotto o legale, ecc.) L'Utente dichiara di utilizzare il foglio di calcolo in qualità di professionista con l'obbligo e la responsabilità di verificare che il foglio di calcolo risponda alle sue specifiche esigenze. | E185: The results obtained in this sheet are of an indicative nature and should be considered as a technical-commercial service within the Rotho Blaas srl sales activity. The number and thickness of the inserts must be determined by the responsible designer who is required to check the accuracy of the results deriving from the processing of the data entered. Rotho Blaas srl does not guarantee compliance with current legislation and the design of the calculations made through this spreadsheet. In particular, following the amendment of the pertinent provisions such as, for example standards, approvals, etc. the program may become, in part or in whole, invalid. Rotho Blaas srl does not guarantee and will not be responsible for direct or indirect damages or consequences or other, in any way (warranty for defects, warranty for malfunction, product or legal responsibility, etc.). The User declares to use the spreadsheet as a professional with the obligation and responsibility to verify that the spreadsheet meets his specific needs. | F185: Die in diesem Datenblatt erzielten Ergebnisse sind Richtwerte und sollten als technisch-kommerzielle Dienstleistung im Rahmen der Verkaufstätigkeit von Rotho Blaas srl. betrachtet werden. Die Anzahl und Stärke der Einsätze muss vom verantwortlichen Planer bestimmt werden, der verpflichtet ist, die Richtigkeit der Ergebnisse zu überprüfen, die sich aus der Verarbeitung der eingegebenen Daten ergeben. Rotho Blaas srl übernimmt keine Garantie für die Übereinstimmung mit den geltenden Vorschriften und die Planung der Berechnungen, die mit dieser Tabellenkalkulation durchgeführt wurden. Insbesondere könnte das Programm infolge einer Änderung der relevanten Bestimmungen, wie z. B. Normen, Zulassungen usw., seine Gültigkeit teilweise oder vollständig verlieren. Rotho Blaas srl garantiert nicht bzw. haftet in keiner Weise für direkte oder indirekte Schäden oder Folgen oder sonstige Auswirkungen (Gewährleistung bei Mängeln, Gewährleistung bei Fehlfunktionen, gesetzliche oder Produkthaftung usw.). Der Benutzer erklärt, das Tabellenkalkulationsprogramm in seiner Eigenschaft als Fachkraft zu verwenden, einschließlich der Verpflichtung und Verantwortung, sicherzustellen, dass die Tabellenkalkulation seinen spezifischen Anforderungen entspricht. | G185: Los resultados obtenidos en esta ficha son de carácter indicativo y deben considerarse como un servicio técnico-comercial en el ámbito de la actividad de ventas de Rotho Blaas srl. El número y el espesor de las puntas deben ser determinados por el proyectista responsable, que tiene la obligación de comprobar la exactitud de los resultados obtenidos mediante el procesamiento de los datos introducidos. Rotho Blaas srl no garantiza la conformidad con la normativa vigente ni la proyección de los cálculos realizados mediante esta hoja de cálculo. En concreto, tras modificar las disposiciones pertinentes, como, por ejemplo, normas, aprobaciones, etc., el programa puede dejar de ser válido, parcial o completamente. Rotho Blaas srl no ofrece ninguna garantía y en ningún caso podrá ser considerado responsable por daños o consecuencias, directas o indirectas (garantía por defectos, garantía por mal funcionamiento, responsabilidad del producto o legal, etc.). El Usuario declara que utilizará la hoja de cálculo como profesional con la obligación y la responsabilidad de comprobar que la hoja de cálculo responda a sus necesidades específicas. | H185: Les résultats obtenus dans cette fiche sont à titre indicatif et doivent être considérés comme un service technico-commercial dans le cadre de l'activité de vente de Rotho Blaas srl. Le nombre et l'épaisseur des inserts doivent être déterminés par le concepteur responsable qui est tenu de vérifier l'exactitude des résultats découlant du traitement des données saisies. Rotho Blaas srl ne garantit pas la conformité aux normes en vigueur et la conception des calculs effectués à l'aide de cette feuille de calcul. En particulier, suite à la modification des dispositions pertinentes, comme par exemple les normes, approbations, etc. le programme pourrait devenir entièrement ou partiellement non valide. Rotho Blaas srl ne garantit pas et n'est pas responsable des dommages ou conséquences directs ou indirects, ou autre, quels qu'ils soient (garantie pour les défauts, garantie pour les dysfonctionnements, responsabilité du produit ou responsabilité juridique, etc.) L'utilisateur déclare utiliser la feuille de calcul en tant que professionnel avec l'obligation et la responsabilité de vérifier que la feuille de calcul répond à ses besoins spécifiques. | I185: Os resultados obtidos nesta ficha são de natureza indicativa e devem ser considerados como um serviço técnico-comercial no âmbito da atividade comercial da Rotho Blaas srl. O número e a espessura das inserções devem ser determinados pelo projetista responsável que tem o dever de verificar a exatidão dos resultados do tratamento dos dados introduzidos. A Rotho Blaas srl não garante o cumprimento da regulamentação em vigor e a conceção dos cálculos efetuados com esta folha de cálculo. Em particular, devido a alterações nas disposições aplicáveis, tais como normas, homologações, etc., o programa pode tornar-se parcial ou totalmente inválido. A Rotho Blaas srl não garante e não será responsável por quaisquer danos ou consequências, diretos ou indiretos, de qualquer forma (garantia contra defeitos, garantia em caso de mau funcionamento, responsabilidade pelo produto ou jurídica, etc.). O Utilizador declara que utiliza a folha de cálculo como profissional, com a obrigação e a responsabilidade de verificar se a folha de cálculo responde às suas necessidades específicas.
A186: (flexión de vigas de hormigón) | D186: (flessione cordolo in calcestruzzo) | E186: (concrete beam bending) | F186: (Biegung von Betonbalken) | G186: (flexión de vigas de hormigón) | H186: (flexion d'une poutre en béton) | I186: (flexão de vigas de betão)
A189: lingua selezionata: | B189: =CONDITIONS!E3 -> ES | D189: IT | E189: EN | F189: DE | G189: ES | H189: FR | I189: PT
A190: =IF($B$189=$D$189,D190,IF($B$189=$E$189,E190,IF($B$189=$F$189,F190,IF($B$189=$G$189,G190,IF($B$189=$H$189,H190,IF($B$189=$I$189,I190,"ERROR")))))) -> CONDICIONES GENERALES DEL CONTRATO DE LICENCIA DE USO PARA LA HOJA DE CÁLCULO “TC_FUSION_CALCULATOR” | D190: CONDIZIONI GENERALI CONTRATTO DI LICENZA D’USO PER IL FOGLIO DI CALCOLO "TC_FUSION_CALCULATOR" | E190: GENERAL TERMS AND CONDITIONS OF THE LICENSE AGREEMENT FOR THE USE OF THE SPREADSHEET "TC_FUSION_CALCULATOR" | F190: ALLGEMEINE BEDINGUNGEN DES LIZENZVERTRAGS ZUR NUTZUNG DES TABELLENKALKULATIONSPROGRAMMS „TC_FUSION_CALCULATOR“ | G190: CONDICIONES GENERALES DEL CONTRATO DE LICENCIA DE USO PARA LA HOJA DE CÁLCULO “TC_FUSION_CALCULATOR” | H190: CONDITIONS GÉNÉRALES DU CONTRAT DE LICENCE D'UTILISATION DE LA FEUILLE DE CALCUL « TC_FUSION_CALCULATOR » | I190: CONDIÇÕES GERAIS DO CONTRATO DE LICENÇA PARA A UTILIZAÇÃO DA FOLHA DE CÁLCULO “TC_FUSION_CALCULATOR”
A191: =IF($B$189=$D$189,D191,IF($B$189=$E$189,E191,IF($B$189=$F$189,F191,IF($B$189=$G$189,G191,IF($B$189=$H$189,H191,IF($B$189=$I$189,I191,"ERROR")))))) -> 1. OBJETO | D191: 1. OGGETTO | E191: 1. SUBJECT | F191: 1. BETREFF | G191: 1. OBJETO | H191: 1. OBJET | I191: 1. OBJETO
A192: Con estas Condiciones Generales (o “Contrato”), ROTHO BLAAS SRL, con domicilio en I-39040 Cortaccia (BZ), Via dell'Adige 2/1 (en lo sucesivo, “RB”), otorga al usuario el derecho no exclusivo y revocable para usar, a título gratuito, la hoja de cálculo “--” (en lo sucesivo, “CALC”) en las condiciones indicadas a continuación y mientras esté vigente el Contrato. Por lo tanto, este contrato tiene por objeto regular la relación entre el usuario y RB con respecto al uso de dicha hoja de cálculo. En el momento en que el usuario descarga y usa CALC, acepta este Contrato y las condiciones indicadas. CALC permite al usuario realizar cálculos estáticos exclusivamente para los productos y los materiales indicados en cada una de sus secciones. Este Contrato prohíbe expresamente el uso de CALC para realizar cálculos para productos que no estén indicados. En cualquier caso, RB no proporciona ninguna garantía sobre la conformidad legal ni con el proyecto de cálculos y solo pretende proporcionar una herramienta de cálculo indicativo, como servicio técnico-comercial en el ámbito de la actividad de ventas. | D192: Con le presenti Condizioni Generali (o “Contratto”), ROTHO BLAAS SRL, con sede in I-39040 Cortaccia (BZ), Via dell’Adige 2/1 (d’ora in avanti “RB”) concede all’utente il diritto non esclusivo e revocabile di utilizzare, a titolo gratuito, il foglio di calcolo (d’ora in avanti “CALC”) alle condizioni di seguito indicate e per la durata del presente Contratto. Il presente contratto regola pertanto il rapporto tra l’utente e RB relativamente all’utilizzo di detto foglio di calcolo. Nel momento in cui l’utente scarica e utilizza CALC, lo stesso accetta il presente Contratto e le condizioni riportate. CALC permette all’utente di effettuare calcoli statici esclusivamente per i prodotti e materiali indicati in ciascuna sezione dello stesso. Il presente Contratto vieta espressamente l’uso di CALC per la realizzazione di prodotti che non sono indicati. Nessuna garanzia sulla conformità legale ed al progetto dei calcoli è in ogni caso fornita da RB, che intende fornire esclusivamente uno strumento di calcolo indicativo quale servizio tecnico-commerciale nell’ambito dell’attività di vendita. | E192: With these General Terms and Conditions (or "Agreement"), ROTHO BLAAS SRL, with registered office at I-39040 Cortaccia (BZ), Via dell'Adige 2/1 (hereinafter "RB") grants the user the non-exclusive and revocable right to use the spreadsheet (hereinafter "XLS") free of charge under the following conditions and during the term of this Agreement. In any case, RB does not guarantee the legal and design conformity of the calculations, as RB intends to provide only an indicative calculation tool to be considered as a technical-commercial service within the sales activity. XLS allows the user to perform static calculations only for the products and materials indicated in each of its sections. This Agreement expressly prohibits to use XLS to manufacture products that are not indicated. This Agreement therefore governs the relationship between the User and RB with respect to the use of this spreadsheet. By downloading and using XLS, the user accepts this Agreement and the conditions set out herein. | F192: Mit diesen Allgemeinen Bedingungen (oder „Vertrag“) gewährt ROTHO BLAAS GmbH mit Sitz in I-39040 Kurtatsch (BZ), Etschweg 2/1 (nachfolgend „RB“) dem Benutzer das nicht exklusive und widerrufliche Recht, das Tabellenkalkulationsprogramm „CALC“ (nachfolgend „XLS“) zu den im Folgenden angegebenen Bedingungen und für die Laufzeit dieses Vertrags unentgeltlich zu verwenden. Dieser Vertrag regelt somit das Verhältnis zwischen dem Benutzer und RB in Bezug auf die Verwendung des besagten Tabellenkalkulationsprogramms. Wenn der Benutzer CALC herunterlädt und verwendet, akzeptiert er diesen Vertrag und die dort aufgeführten Bedingungen. CALC ermöglicht dem Benutzer, statische Berechnungen ausschließlich für jene Produkte und Materialien vorzunehmen, die in jeder seiner Sektionen angegeben sind. Durch diesen Vertrag ist die Verwendung von CALC für die Fertigung nicht angegebener Produkte ausdrücklich untersagt. RB bietet keine Garantie für die rechtliche Konformität und die Konformität mit dem Berechnungsprojekt und bezweckt, ausschließlich ein indikatives Berechnungstool bereitzustellen, bei dem es sich um eine technisch-kommerzielle Leistung im Rahmen der Vertriebstätigkeit handelt. | G192: Con estas Condiciones Generales (o “Contrato”), ROTHO BLAAS SRL, con domicilio en I-39040 Cortaccia (BZ), Via dell'Adige 2/1 (en lo sucesivo, “RB”), otorga al usuario el derecho no exclusivo y revocable para usar, a título gratuito, la hoja de cálculo “--” (en lo sucesivo, “CALC”) en las condiciones indicadas a continuación y mientras esté vigente el Contrato. Por lo tanto, este contrato tiene por objeto regular la relación entre el usuario y RB con respecto al uso de dicha hoja de cálculo. En el momento en que el usuario descarga y usa CALC, acepta este Contrato y las condiciones indicadas. CALC permite al usuario realizar cálculos estáticos exclusivamente para los productos y los materiales indicados en cada una de sus secciones. Este Contrato prohíbe expresamente el uso de CALC para realizar cálculos para productos que no estén indicados. En cualquier caso, RB no proporciona ninguna garantía sobre la conformidad legal ni con el proyecto de cálculos y solo pretende proporcionar una herramienta de cálculo indicativo, como servicio técnico-comercial en el ámbito de la actividad de ventas. | H192: Avec les présentes Conditions Générales (ou « Contrat »), ROTHO BLAAS SRL, dont le siège se situe I-39040 Cortaccia (BZ), Via dell'Adige 2/1 (ci-après « RB »), donne à l'utilisateur le droit non exclusif et révocable d'utiliser à titre gratuit la feuille de calcul « -- » (ci-après « CALC »), aux conditions indiquées ci-après et pour la durée du présent Contrat. Le présent contrat régit ainsi le rapport entre l'utilisateur et RB concernant l'utilisation de la feuille de calcul mentionnée. Lorsque l'utilisateur télécharge et utilise CALC, il accepte le présent Contrat et les conditions indiquées. CALC permet à l'utilisateur d'effectuer des calculs statiques, exclusivement pour les produits et les matériaux indiqués dans chacune des sections. Le présent Contrat interdit expressément d'utiliser CALC pour réaliser des produits non indiqués. RB ne donne aucune garantie sur la conformité des calculs à la réglementation et au projet et fournit exclusivement un outil de calcul indicatif en tant que service technico-commercial dans le cadre de l'activité de vente. | I192: Com as presentes Condições Gerais (ou “Contrato”), a ROTHO BLAAS SRL, com sede em I-39040 Cortaccia (BZ), Via dell’Adige 2/1 (a seguir designada “RB”) concede ao Utilizador o direito não exclusivo e revogável de utilizar gratuitamente a folha de cálculo “--” (a seguir designada “CALC”) nas condições a seguir indicadas e durante o período de vigência do presente Contrato. Este acordo rege, portanto, a relação entre o Utilizador e a RB no que diz respeito à utilização da referida folha de cálculo. Ao transferir e utilizar o CALC, o Utilizador aceita o presente Contrato e as Condições aqui estabelecidas. O CALC permite ao Utilizador efetuar cálculos estáticos apenas para os produtos e materiais indicados em cada secção do mesmo. O presente Contrato proíbe expressamente a utilização de CALC para o fabrico de produtos não indicados. A RB não garante, em caso algum, a conformidade legal e com a conceção dos cálculos, pretendendo fornecer apenas um instrumento de cálculo indicativo enquanto serviço técnico-comercial no âmbito das suas atividades de venda.
A193: 2. REFERENCIAS TÉCNICAS | D193: 2. RIFERIMENTI TECNICI | E193: 2. TECHNICAL-STANDARDS REFERENCES | F193: 2. TECHNISCHE VERWEISE | G193: 2. REFERENCIAS TÉCNICAS | H193: 2. RÉFÉRENCES TECHNIQUES | I193: 2. REFERÊNCIAS TÉCNICAS
A194: RB ha efectuado las comprobaciones según el método de los estados límite de acuerdo con la norma EN 1995-1-1 Eurocódigo 5 - Proyecto de estructuras de madera y con la norma EN 1992-1-1 Eurocódigo 2 - Proyecto de estructuras de hormigón. Para los valores de resistencia mecánica y para la geometría de los clavos se han tomado como referencia las indicaciones de ETA-22/0806. | D194: RB ha svolto le verifiche secondo il metodo degli Stati Limite in accordo EN 1995-1-1 Eurocodice 5-Progettazione delle strutture di legno ed EN 1992-1-1 Eurocodice 2-Progettazione delle strutture di calcestruzzo. Per i valori di resistenza meccanica e per la geometria del sistema si è fatto riferimento a quanto riportato in ETA-22/0806. | E194: RB carried out the checks according to the Limit State method in accordance with EN 1995-1-1 Eurocode 5 - Design of timber structures and EN 1992-1-1 Eurocode 2 - Design of concrete structures. For the mechanical resistance values and the geometry of the connectors, reference was made to ETA-22/0806. | F194: RB hat die Prüfungen gemäß Grenzzustandsmethode laut DIN EN 1995-1-1 Eurocode 5 - Bemessung und Konstruktion von Holzbauten sowie DIN EN 1992-1-1 Eurocode 2 - Bemessung und Konstruktion von Stahlbeton- und Spannbetontragwerken vorgenommen. Bei den Werten für die mechanische Festigkeit und die Geometrie des Systems wurde auf die Angaben in der ETA-22/0806 Bezug genommen. | G194: RB ha efectuado las comprobaciones según el método de los estados límite de acuerdo con la norma EN 1995-1-1 Eurocódigo 5 - Proyecto de estructuras de madera y con la norma EN 1992-1-1 Eurocódigo 2 - Proyecto de estructuras de hormigón. Para los valores de resistencia mecánica y para la geometría de los clavos se han tomado como referencia las indicaciones de ETA-22/0806. | H194: RB a effectué les vérifications selon la méthode des états-limites conformément à l'Eurocode 5 EN 1995-1-1 Conception et calcul des structures en bois et l'Eurocode 2 EN 1992-1-1 Conception et calcul des structures en béton. Pour les valeurs de résistance mécanique et pour la géométrie du système, il a été fait référence à l’ETA-22/0806. | I194: A RB efetuou as verificações segundo o método dos Estados-Limite em conformidade com a EN 1995-1-1 Eurocódigo 5 - Conceção de estruturas de madeira e a EN 1992-1-1 Eurocódigo 2 - Conceção de estruturas de betão. Para os valores de resistência mecânica e para a geometria do sistema, fez-se referência ao que consta da ETA-22/0806.
A195: 3. DERECHOS Y OBLIGACIONES DE RB | D195: 3. DIRITTI E OBBLIGHI DI RB | E195: 3. RB RIGHTS AND OBLIGATIONS | F195: 3. RECHTE UND PFLICHTEN VON RB | G195: 3. DERECHOS Y OBLIGACIONES DE RB | H195: 3. DROITS ET OBLIGATIONS DE RB | I195: 3. DIREITOS E OBRIGAÇÕES DA RB
A196: RB: a) pone el CALC a disposición del usuario gratuitamente, tal como está; b) no proporciona al usuario asistencia técnica de ningún tipo para el uso de CALC; c) no garantiza la conformidad de CALC con la normativa vigente ni con el proyecto de cálculos realizados con este. En concreto, tras modificar las disposiciones pertinentes, como, por ejemplo, normas, homologaciones, etc., la hoja de cálculo puede dejar de ser válida, parcial o completamente. d) aunque se reserva el derecho de actualizar, revisar y desarrollar CALC, no asume ninguna obligación, ante el usuario, de comprobar, corregir, completar o actualizar la hoja de cálculo ni de poner a su disposición las actualizaciones realizadas. | D196: RB: a) mette a disposizione dell’Utente CALC gratuitamente, così com’è; b) non fornisce all’utente alcun supporto tecnico per l’utilizzo di CALC; c) non garantisce la conformità di CALC alla normativa vigente né al progetto dei calcoli effettuati tramite lo stesso. In particolare, in seguito alla modifica delle disposizioni di pertinenza quali, per es. norme, omologazioni, ecc. il foglio di calcolo potrebbe diventare, in parte o per intero, non valido. d) pur riservandosi il diritto di aggiornare, rivedere e sviluppare CALC, non assume alcun obbligo nei confronti dell’utente di verificare, correggere, completare o aggiornare il foglio di calcolo e/o rendere disponibili allo stesso gli aggiornamenti effettuati. | E196: RB: a) makes available XLS to the User free of charge, as it is; b) does not provide the user with any technical support for using XLS; c) does not guarantee that XLS complies with the regulations in force or with the calculations design made using it. In particular, as a result of changes to the relevant provisions, such as standards, approvals, etc., the spreadsheet may become invalid in part or in full. d) while reserving the right to update, revise and develop XLS, RB does not assume any obligation towards the user to verify, correct, complete or update the spreadsheet and/or make the updates available to the user. | F196: RB: a) stellt dem Benutzer CALC kostenlos zur Verfügung, wie es ist; b) bietet dem Benutzer keine technische Unterstützung für die Verwendung von CALC; c) garantiert weder die Übereinstimmung der mit CALC durchgeführten Berechnungen mit den geltenden Vorschriften noch mit dem Projekt. Insbesondere könnte das Tabellenkalkulationsprogramm infolge einer Änderung der relevanten Bestimmungen, wie z. B. Normen, Zulassungen usw., seine Gültigkeit teilweise oder vollständig verlieren. d) übernimmt, auch wenn das Unternehmen sich das Recht auf Aktualisierung, Korrektur und Entwicklung von CALC vorbehält, keinerlei Verpflichtung gegenüber dem Benutzer, das Tabellenkalkulationsprogramm zu prüfen, zu korrigieren, zu vervollständigen oder zu aktualisieren und/oder dieses mit den vorgenommenen Aktualisierungen auszustatten. | G196: RB: a) pone el CALC a disposición del usuario gratuitamente, tal como está; b) no proporciona al usuario asistencia técnica de ningún tipo para el uso de CALC; c) no garantiza la conformidad de CALC con la normativa vigente ni con el proyecto de cálculos realizados con este. En concreto, tras modificar las disposiciones pertinentes, como, por ejemplo, normas, homologaciones, etc., la hoja de cálculo puede dejar de ser válida, parcial o completamente. d) aunque se reserva el derecho de actualizar, revisar y desarrollar CALC, no asume ninguna obligación, ante el usuario, de comprobar, corregir, completar o actualizar la hoja de cálculo ni de poner a su disposición las actualizaciones realizadas. | H196: RB : a) met gratuitement CALC à la disposition de l’Utilisateur, telle quelle est ; b) ne fournit aucun support technique à l’utilisateur pour l’utilisation de CALC ; c) ne garantit pas la conformité de CALC à la règlementation en vigueur ni à la conception des calculs effectués à travers celui-ci. En particulier, suite à la modification des dispositions relatives, comme les normes, homologations, etc. la feuille de calcul pourrait devenir entièrement ou partiellement non valide ; d) tout en se réservant le droit de mettre à jour, revoir et développer CALC, ne prend aucune obligation envers l'utilisateur concernant la vérification, la correction, le complètement ou la mise à jour de la feuille de calcul et/ou la mise à disposition des mises à jour effectuées. | I196: RB: a) coloca o CALC à disposição do Utilizador gratuitamente, tal como está; b) não fornece ao utilizador qualquer suporte técnico para a utilização do CALC; c) não garante a conformidade do CALC com a regulamentação em vigor ou a conceção dos cálculos efetuados pelo mesmo. Em particular, na sequência de alterações nas disposições aplicáveis, tais como normas, homologações, etc., a folha de cálculo pode ficar total ou parcialmente inválida. d) embora se reserve o direito de atualizar, rever e desenvolver o CALC, não assume qualquer obrigação perante o utilizar de verificar, corrigir, completar ou atualizar a folha de cálculo e/ou disponibilizar ao utilizar as atualizações realizadas.
A197: 4. DERECHOS Y OBLIGACIONES DEL USUARIO | D197: 4. DIRITTI E OBBLIGHI DELL'UTENTE | E197: 4. USER RIGHTS AND OBLIGATIONS | F197: 4. RECHTE UND PFLICHTEN DES BENUTZERS | G197: 4. DERECHOS Y OBLIGACIONES DEL USUARIO | H197: 4. DROITS ET OBLIGATIONS DE L'UTILISATEUR | I197: 4. DIREITOS E OBRIGAÇÕES DO UTILIZADOR
A198: El Usuario declara que utilizará la hoja de cálculo como profesional, quedando excluido cualquier uso como consumidor, y que respetará siempre las siguientes obligaciones y prohibiciones: a) la obligación y la responsabilidad de comprobar que CALC satisfaga sus necesidades específicas y sea compatible con su hardware, software y sistemas; b) la obligación de comprobar, cada vez que lo use, la conformidad de los cálculos realizados mediante CALC con la normativa vigente y con el proyecto; c) la obligación de comprobar la conformidad legal de los cálculos realizados mediante el software; d) la obligación de usar la versión más actualizada de CALC puesta a disposición por la persona de contacto RB y de comprobar, cada vez que lo use, si hay actualizaciones; e) la prohibición de usar XLS para productos no indicados en cada sección de cálculo; f) la obligación de utilizar un software antivirus actualizado y que sea conforme con el estándar industrial actual; g) la obligación de no ceder la licencia de uso de CALC a terceros ni, por otros medios, transferir, dar en garantía o arrendamiento, alquilar o compartir con otros o conceder en sublicencia los derechos de uso de la hoja de cálculo; h) la prohibición de hacer copias de XLS o hacer que terceros lo hagan por él. El usuario se compromete a solicitar a la persona de contacto de RB la última versión de CALC. | D198: L’Utente dichiara di utilizzare il foglio di calcolo in qualità di professionista escludendosi qualsiasi uso come consumatore, e di rispettare sempre i seguenti obblighi e divieti: a) l’obbligo e la responsabilità di verificare che CALC soddisfi i propri bisogni specifici e sia compatibile con i propri hardware-software-sistemi; b) l’obbligo di verificare, ad ogni utilizzo, la conformità dei calcoli effettuati tramite CALC alla normativa vigente ed al progetto; c) l’obbligo di verificare la conformità legale dei calcoli effettuati tramite il Software; d) L’obbligo di utilizzare l'ultima versione di CALC resa disponibile dal contatto di riferimento RB, controllando ad ogni utilizzo eventuali aggiornamenti; e) il divieto di utilizzare CALC per prodotti non indicati in ciascuna sezione di calcolo; f) l’obbligo di utilizzare software antivirus aggiornati e conformi allo standard industriale vigente; g) l’obbligo di non cedere la licenza d’uso di CALC a terzi e/o in altro modo trasferire, dare in pegno o in locazione, affittare o condividere con altri o concedere in sublicenza i diritti di utilizzo del foglio di calcolo; h) il divieto di modificare o variare in alcun modo CALC, anche tramite terzi. L'utente si impegna a chiedere al referente di RB l'ultima versione di CALC. | E198: The User declares to use the spreadsheet as a professional excluding any use as a consumer, and to always comply with the following obligations and prohibitions: a) obligation and responsibility to verify that XLS meets the specific needs and that it is compatible with the hardware-software-systems; b) obligation to verify, for each use, the compliance of the calculations made through XLS to the regulations in force and to the project; c) obligation to verify the legal compliance of the calculations made through the Software; d) obligation to use the latest version of XLS made available by the RB contact person, checking at each use for any updates that have occurred; e) prohibition to use XLS for products not indicated in each calculation section; f) obligation to use updated antivirus software that complies with the industry standard in force; g) obligation not to assign the licence to use XLS to third parties and/or in any other way transfer, pledge or lease, rent or share with others or sublicense the rights to use the spreadsheet; h) prohibition to modify or vary XLS in any way, including through third parties. The user commits himself to ask the RB contact person for the last version of the XLS. | F198: Der Benutzer erklärt, das Tabellenkalkulationsprogramm in seiner Eigenschaft als Fachkraft zu verwenden und in keiner Weise als Verbraucher davon Gebrauch zu machen sowie stets die folgenden Pflichten und Verbote zu respektieren: a) die Verpflichtung und Verantwortung zu überprüfen, dass CALC seinen spezifischen Bedürfnissen entspricht und mit seinen Hard- und Software-Systemen kompatibel ist; b) die Verpflichtung, bei jeder Verwendung die Übereinstimmung der mit CALC durchgeführten Berechnungen mit den geltenden Vorschriften und dem Projekt zu überprüfen; c) die Verpflichtung, die rechtliche Übereinstimmung der über die Software vorgenommenen Berechnungen zu überprüfen; d) die Verpflichtung, die neueste Version von CALC zu verwenden, die vom Ansprechpartner RB zur Verfügung gestellt wurde, und bei jeder Verwendung auf etwaige Aktualisierungen zu kontrollieren; e) das Verbot, CALC für Produkte zu verwenden, die nicht in jeder der Berechnungssektionen angegeben sind; f) die Verpflichtung, aktualisierte Antivirensoftware zu verwenden, die den geltenden Industriestandards entspricht; g) die Verpflichtung, die Nutzungslizenz von CALC nicht an Dritte zu übertragen und/oder auf andere Weise die Nutzungsrechte am Tabellenkalkulationsprogramm zu übertragen, zu verpfänden oder zu vermieten; h) das Verbot, CALC in irgendeiner Weise zu verändern oder abzuwandeln. Der Benutzer verpflichtet sich, den Ansprechpartner von RB um die neueste Version von CALC zu bitten. | G198: El Usuario declara que utilizará la hoja de cálculo como profesional, quedando excluido cualquier uso como consumidor, y que respetará siempre las siguientes obligaciones y prohibiciones: a) la obligación y la responsabilidad de comprobar que CALC satisfaga sus necesidades específicas y sea compatible con su hardware, software y sistemas; b) la obligación de comprobar, cada vez que lo use, la conformidad de los cálculos realizados mediante CALC con la normativa vigente y con el proyecto; c) la obligación de comprobar la conformidad legal de los cálculos realizados mediante el software; d) la obligación de usar la versión más actualizada de CALC puesta a disposición por la persona de contacto RB y de comprobar, cada vez que lo use, si hay actualizaciones; e) la prohibición de usar XLS para productos no indicados en cada sección de cálculo; f) la obligación de utilizar un software antivirus actualizado y que sea conforme con el estándar industrial actual; g) la obligación de no ceder la licencia de uso de CALC a terceros ni, por otros medios, transferir, dar en garantía o arrendamiento, alquilar o compartir con otros o conceder en sublicencia los derechos de uso de la hoja de cálculo; h) la prohibición de hacer copias de XLS o hacer que terceros lo hagan por él. El usuario se compromete a solicitar a la persona de contacto de RB la última versión de CALC. | H198: L'utilisateur déclare utiliser la feuille de calcul en tant que professionnel et en excluant toute utilisation en tant que consommateur, et respecter systématiquement les obligations et interdictions suivantes : a) l'obligation et la responsabilité de vérifier que CALC répond à ses besoins spécifiques et est compatible avec ses systèmes hardware et logiciels ; b) l'obligation de vérifier, à chaque utilisation, la conformité des calculs effectués à travers CALC à la réglementation en vigueur et à la conception ; c) l'obligation de vérifier la conformité légale des calculs effectués au moyen du logiciel ; d) l'obligation d'utiliser la dernière version de CALC mise à disposition par le contact de référence RB, en vérifiant les éventuelles mises à jour à chaque utilisation ; e) l'interdiction d'utiliser CALC pour des produits non indiqués dans chaque section de calcul ; f) l'obligation d'utiliser des logiciels antivirus mis à jour et conformes à la norme industrielle en vigueur ; g) l'obligation de ne pas céder la licence d'utilisation de CALC à des tiers et/ou de transférer, mettre en gage ou en location, louer ou partager avec d'autres ou sous-licencier les droits d'utilisation de la feuille de calcul ; h) l'interdiction de modifier ou de varier CALC de quelque manière que ce soit, même par l'intermédiaire de tiers. L’utilisateur s’engage à demander au conseiller RB la dernière version de CALC. | I198: O Utilizador declara que utiliza a folha de cálculo como profissional, excluindo qualquer utilização como consumidor, e que respeita sempre as seguintes obrigações e proibições: a) a obrigação e a responsabilidade de verificar se o CALC satisfaz as suas necessidades específicas e é compatível com os seus sistemas de hardware-software; b) a obrigação de verificar, em cada utilização, a conformidade dos cálculos efetuados com o CALC com a regulamentação em vigor e o projeto; c) a obrigação de verificar a conformidade legal dos cálculos efetuados através do Software; d) A obrigação de utilizar a última versão do CALC disponibilizada pelo contacto de referência da RB, verificando as atualizações de cada vez que é utilizado; e) a proibição de utilizar o CALC para produtos não indicados em cada secção de cálculo; f) a obrigação de utilizar software antivírus atualizado que esteja em conformidade com as normas em vigor no setor; g) a obrigação de não ceder a terceiros a licença de utilização do CALC e/ou de transferir, penhorar ou arrendar, alugar ou partilhar com outros ou sublicenciar os direitos de utilização da folha de cálculo; h) a proibição de modificar ou alterar o CALC de qualquer forma, mesmo através de terceiros. O utilizador compromete-se a solicitar à pessoa de contacto da RB a última versão do CALC.
A199: 5. DERECHOS DE AUTOR | D199: 5. DIRITTI D'AUTORE | E199: 5. COPYRIGHTS | F199: 5. URHEBERRECHTE | G199: 5. DERECHOS DE AUTOR | H199: 5. DROITS D'AUTEUR | I199: 5. DIREITOS DE AUTOR
A200: Los derechos de autor sobre las fórmulas de la hoja de cálculo y todos los derechos de propiedad intelectual e industrial que se aplican a aquellas (a título meramente de ejemplo y no exhaustivo: marcas, patentes, secretos comerciales, saber hacer, información confidencial) son y seguirán siendo propiedad exclusiva de RB. Este acuerdo no otorga al usuario ninguno de los derechos indicados anteriormente. | D200: I diritti d’autore sulle formulazioni di cui nel foglio di calcolo e tutti i diritti di proprietà intellettuale ed industriale sottesi a queste (quali in via puramente esemplificativa e non esaustiva: marchi, brevetti, segreti commerciali, know how, informazioni riservate) sono e restano di proprietà esclusiva di RB. Il presente accordo non conferisce all’utente alcuno dei diritti di cui sopra. | E200: The copyrights on the formulations referred to in the spreadsheet and all the intellectual and industrial property rights underlying them (such as, but not limited to: trademarks, patents, trade secrets, know-how, confidential information) are and remain the exclusive property of RB. This agreement does not transfer any of the above rights to the user. | F200: Die Urheberrechte auf die im Tabellenkalkulationsprogramm aufgeführten Formeln und alle ihnen zugrunde liegenden geistigen und gewerblichen Eigentumsrechte (beispielsweise und ohne Anspruch auf Vollständigkeit: Marken, Patente, Geschäftsgeheimnisse, Know-how, vertrauliche Informationen) sind und bleiben ausschließlicher Besitz von RB. Dieser Vertrag erteilt dem Benutzer keines der hier o. g. Rechte. | G200: Los derechos de autor sobre las fórmulas de la hoja de cálculo y todos los derechos de propiedad intelectual e industrial que se aplican a aquellas (a título meramente de ejemplo y no exhaustivo: marcas, patentes, secretos comerciales, saber hacer, información confidencial) son y seguirán siendo propiedad exclusiva de RB. Este acuerdo no otorga al usuario ninguno de los derechos indicados anteriormente. | H200: Les droits d'auteur sur les formules de la feuille de calcul et tous les droits de propriété intellectuelle et industrielle sous-jacents (par exemple, sans s'y limiter : marques, brevets, secrets industriels, savoir-faire, informations confidentielles) sont et restent la propriété exclusive de RB. Le présent accord ne donne à l'utilisateur aucun des droits susmentionnés. | I200: Os direitos de autor sobre as formulações referidas na folha de cálculo e todos os direitos de propriedade intelectual e industrial que lhes estão subjacentes (tais como, a título de exemplo e não exaustivo: marcas, patentes, segredos comerciais, saber-fazer, informações confidenciais) são e continuam a ser propriedade exclusiva da RB. O presente acordo não concede ao Utilizador nenhum dos direitos acima estabelecidos.
A201: 6. DURACIÓN, RESCISIÓN Y TERMINACIÓN | D201: 6. DURATA, RECESSO E CESSAZIONE | E201: 6. DURATION, WITHDRAWAL AND TERMINATION | F201: 6. LAUFZEIT, RÜCKTRITT UND AUFLÖSUNG | G201: 6. DURACIÓN, RESCISIÓN Y TERMINACIÓN | H201: 6. DURÉE, RETRAIT ET RÉSILIATION | I201: 6. DURAÇÃO, DENÚNCIA E CESSAÇÃO
A202: Las presentes condiciones generales y, en consecuencia, la licencia de uso de la hoja de cálculo, son válidas desde el momento de su descarga hasta que termine su uso. El usuario puede rescindir en cualquier momento este contrato eliminando CALC y cualquier copia de sus sistemas. RB puede rescindir este Contrato y desactivar el servicio en caso de infracción de una cualquiera de las disposiciones que regulan la licencia de uso. En caso de que RB comunique la terminación, el usuario deberá eliminar la hoja de cálculo y cualquier copia de sus sistemas. | D202: Le presenti condizioni generali e, di conseguenza, la licenza d’uso del foglio di calcolo, sono validi dal momento del download dello stesso sino alla cessazione del suo utilizzo. L’utente può recedere in qualsiasi momento dal presente Contratto eliminando CALC e tutte le eventuali copie dai suoi sistemi. RB può recedere dal presente Contratto e disattivare il servizio in caso di infrazione di una qualsiasi delle disposizioni che regolano la licenza d’uso. Nel caso in cui RB comunichi la cessazione, l’utente dovrà provvedere ad eliminare il foglio di calcolo ed eventuali sue copie dai suoi sistemi. | E202: These general conditions and, consequently, the licence to use the spreadsheet, are valid from the moment of downloading it until the termination of its use. The user may withdraw from this Agreement at any time by deleting the XLS and all copies from its systems. RB may withdraw from this Agreement and deactivate the service in the event of a breach of any of the provisions governing the license of use. In the event that RB notifies its termination, the user shall remove the spreadsheet and any copies thereof from its systems. | F202: Diese Allgemeinen Bedingungen und demzufolge die Nutzungslizenz des Tabellenkalkulationsprogramms gelten ab dem Zeitpunkt ihres Downloads bis zur Beendigung seiner Nutzung. Der Benutzer kann zu jeder Zeit vom Vertrag zurücktreten, indem er CALC und alle etwaigen Kopien von seinen Systemen löscht. RB kann im Falle eines Verstoßes gegen eine der die Nutzungslizenz regelnden Bestimmungen von diesem Vertrag zurücktreten und die Leistung deaktivieren. Für den Fall, dass RB den Rücktritt mitteilt, muss der Benutzer dafür sorgen, dass das Tabellenkalkulationsprogramm und etwaige Kopien von seinen Systemen gelöscht werden. | G202: Las presentes condiciones generales y, en consecuencia, la licencia de uso de la hoja de cálculo, son válidas desde el momento de su descarga hasta que termine su uso. El usuario puede rescindir en cualquier momento este contrato eliminando CALC y cualquier copia de sus sistemas. RB puede rescindir este Contrato y desactivar el servicio en caso de infracción de una cualquiera de las disposiciones que regulan la licencia de uso. En caso de que RB comunique la terminación, el usuario deberá eliminar la hoja de cálculo y cualquier copia de sus sistemas. | H202: Les présentes conditions générales et, par conséquent, la licence d'utilisation de la feuille de calcul, sont valables à partir du moment du téléchargement de celle-ci jusqu'à la fin de son utilisation. L'utilisateur peut résilier à tout moment le présent Contrat en supprimant CALC et toutes les copies éventuelles de ses systèmes. RB peut résilier à tout moment le présent Contrat et désactiver le service en cas d'infraction d'une des dispositions qui régissent la licence d'utilisation. En cas de communication de résiliation par RB, l'utilisateur devra supprimer la feuille de calcul et ses copies éventuelles de ses systèmes. | I202: As presentes Condições Gerais e, consequentemente, a licença de utilização da folha de cálculo, são válidas desde o momento de download do mesmo até à cessação da sua utilização. O Utilizador pode rescindir o presente Contrato a qualquer momento, eliminando o CALC e todas as cópias dos seus sistemas. A RB pode rescindir o presente Contrato e desativar o serviço em caso de violação de qualquer uma das disposições que regem a licença de utilização. Caso a RB comunique a cessação, o Utilizador deve eliminar a folha de cálculo e eventuais cópias da mesma dos seus sistemas.
A203: 7. RESPONSABILIDAD | D203: 7. RESPONSABILITÀ | E203: 7. RESPONSIBILITY | F203: 7. VERANTWORTUNG | G203: 7. RESPONSABILIDAD | H203: 7. RESPONSABILITÉ | I203: 7. RESPONSABILIDADE
... 20 more rows

Sheet Foglio1 (hidden)
AC1: L | AF1: L | AJ1: C
M2: x | N2: y | P2: x | Q2: y | AB2: =IF(I8="T",0,AB3+50) -> 300 | AC2: =IF(I8="T",0,AC3+50) -> 550 | AE2: =IF(I8="T",0,AE3+50) -> 1500 | AF2: =IF(I8="T",0,AF3+50) -> 550 | AJ2: =IF(I8="L",0,N5/2+50) -> 0 | AK2: =IF(I8="L",0,M4/4+50) -> 0 | AM2: =IF(I8="L",0,AJ2++D9+D23) -> 0 | AN2: =IF(I8="L",0,AK2) -> 0
L3: 1 | M3: =0 -> 0 | N3: 0 | P3: =M3+D9+D23 -> 1200 | Q3: =N3 -> 0 | S3: 0 | T3: 0 | V3: =P3 -> 1200 | W3: =Q3 -> 0 | Y3: =D9+5 -> 1005 | Z3: =Q3 -> 0 | AB3: =IF(I8="T",0,M4/4) -> 250 | AC3: =IF(I8="T",0,N5/2) -> 500 | AE3: =IF(I8="T",0,AB3+D9+D23) -> 1450 | AF3: =IF(I8="T",0,AC3) -> 500 | AJ3: =IF(I8="L",0,N5/2) -> 0 | AK3: =IF(I8="L",0,M4/4) -> 0 | AM3: =IF(I8="L",0,AJ3++D9+D23) -> 0 | AN3: =IF(I8="L",0,AK3) -> 0
L4: 2 | M4: =D9 -> 1000 | N4: 0 | P4: =M4+D23+D9 -> 2200 | Q4: =N4 -> 0 | S4: 0 | T4: =D9 -> 1000 | V4: =0 -> 0 | W4: =Q3 -> 0 | Y4: =D9-5+D23 -> 1195 | Z4: =Q4 -> 0 | AB4: =IF(I8="T",0,M5-AB3) -> 750 | AC4: =IF(I8="T",0,AC3) -> 500 | AE4: =IF(I8="T",0,AB4+D9+D23) -> 1950 | AF4: =IF(I8="T",0,AC4) -> 500 | AJ4: =IF(I8="L",0,N5/2) -> 0 | AK4: =IF(I8="L",0,M5-M4/4) -> 0 | AM4: =IF(I8="L",0,AJ4++D9+D23) -> 0 | AN4: =IF(I8="L",0,AK4) -> 0
L5: 3 | M5: =M4 -> 1000 | N5: =M4 -> 1000 | P5: =M5+D23+D9 -> 2200 | Q5: 1000 | Y5: =P5-5-D9 -> 1195 | Z5: 1000 | AB5: =IF(I8="T",0,AB4-50) -> 700 | AC5: =IF(I8="T",0,AC4-50) -> 450 | AE5: =IF(I8="T",0,AE4-50) -> 1900 | AF5: =IF(I8="T",0,AF4-50) -> 450 | AJ5: =IF(I8="L",0,N5/2-50) -> 0 | AK5: =IF(I8="L",0,M5-M4/4-50) -> 0 | AM5: =IF(I8="L",0,AJ5+D9+D23) -> 0 | AN5: =IF(I8="L",0,AK5) -> 0
L6: 4 | M6: =0 -> 0 | N6: =M5 -> 1000 | P6: =M6+D23+D9 -> 1200 | Q6: 1000 | S6: =P6 -> 1200 | T6: =Q6 -> 1000 | Y6: =D9+5 -> 1005 | Z6: 1000
P7: =P3 -> 1200 | Q7: =Q3 -> 0 | S7: =S6 -> 1200 | T7: =Q3 -> 0 | Y7: =Y3 -> 1005 | Z7: =Z3 -> 0
I8: =GEOMETRY!H34 -> L | Y8: =Y5 -> 1195 | Z8: =Z5 -> 1000 | AF8: =IF(I8="T",0,1) -> 1
C9: b | D9: =GEOMETRY!H21 -> 1000 | E9: mm | I9: =GEOMETRY!$H$32 -> 260mm - 7s - 40 40 30 40 30 40 40 | Y9: =Y6 -> 1005 | Z9: =Z8 -> 1000
C10: h | D10: =GEOMETRY!H33 -> 260 | E10: mm | Y10: =Y8 -> 1195 | Z10: 0
C11: n | D11: =IF(--MID(GEOMETRY!H31,3,1)=1,--MID(GEOMETRY!H31,3,2),--MID(GEOMETRY!H31,3,1)) -> 7 | F11: 1 | G11: =IF(F11<$D$11,F11,IF(F11=$D$11,F11,"")) -> 1 | H11: =IF(G11="","",1) -> 1 | I11: =IF(G11="","",IF(--MID(GEOMETRY!$H$31,3,1)=1,--MID(GEOMETRY!$H$32,15,2),--MID(GEOMETRY!$H$32,14,2))) -> 40 | M11: sup | N11: x | O11: y | Q11: inf
F12: 2 | G12: =IF(F12<$D$11,F12,IF(F12=$D$11,F12,"")) -> 2 | H12: =IF(G12="","",1) -> 1 | I12: =IF(G12="","",IF(--MID(GEOMETRY!$H$31,3,1)=1,--MID(GEOMETRY!$H$32,15+3,2),--MID(GEOMETRY!$H$32,14+3,2))) -> 40 | L12: 1 | M12: =IF(L12>$D$17,"",L12) -> 1 | N12: =IF(M12="","",D19) -> 50 | O12: =IF(M12="","",$D$16) -> 45 | Q12: =IF(L12>$D$18,"",L12) -> 1 | R12: =IF(Q12="","",D20) -> 100 | S12: =IF(Q12="","",$D$10-$D$16) -> 215
F13: 3 | G13: 3 | H13: 1 | I13: =IF(G13="","",IF(--MID(GEOMETRY!$H$31,3,1)=1,--MID(GEOMETRY!$H$32,15+6,2),--MID(GEOMETRY!$H$32,14+6,2))) -> 30 | L13: 2 | M13: =IF(L13>$D$17,"",L13) -> 2 | N13: =IF(M13="","",N12+$D$14) -> 250 | O13: =IF(M13="","",$D$16) -> 45 | Q13: =IF(L13>$D$18,"",L13) -> 2 | R13: =IF(Q13="","",R12+$D$15) -> 300 | S13: =IF(Q13="","",$D$10-$D$16) -> 215
C14: esup | D14: =GEOMETRY!H40 -> 200 | E14: mm | F14: 4 | G14: 4 | H14: 1 | I14: =IF(G14="","",IF(--MID(GEOMETRY!$H$31,3,1)=1,--MID(GEOMETRY!$H$32,15+9,2),--MID(GEOMETRY!$H$32,14+9,2))) -> 40 | L14: 3 | M14: 3 | N14: =IF(M14="","",N13+$D$14) -> 450 | O14: 45 | Q14: =IF(L14>$D$18,"",L14) -> 3 | R14: =IF(Q14="","",R13+$D$15) -> 500 | S14: 215
C15: einf | D15: =GEOMETRY!H41 -> 200 | E15: mm | F15: 5 | G15: 5 | H15: 1 | I15: =IF(G15="","",IF(--MID(GEOMETRY!$H$31,3,1)=1,--MID(GEOMETRY!$H$32,15+12,2),--MID(GEOMETRY!$H$32,14+12,2))) -> 30 | L15: 4 | M15: 4 | N15: =IF(M15="","",N14+$D$14) -> 650 | O15: 45 | Q15: =IF(L15>$D$18,"",L15) -> 4 | R15: 700 | S15: 215
C16: a | D16: =GEOMETRY!H70 -> 45 | E16: mm | F16: 6 | G16: 6 | H16: 1 | I16: =IF(G16="","",IF(--MID(GEOMETRY!$H$31,3,1)=1,--MID(GEOMETRY!$H$32,15+15,2),--MID(GEOMETRY!$H$32,14+15,2))) -> 40 | L16: 5 | M16: 5 | N16: =IF(M16="","",N15+$D$14) -> 850 | O16: 45 | Q16: =IF(L16>$D$18,"",L16) -> 5 | R16: 900 | S16: 215
C17: nsup | D17: =D9/D14 -> 5 | E17: mm | F17: 7 | G17: 7 | H17: 1 | I17: =IF(G17="","",IF(--MID(GEOMETRY!$H$31,3,1)=1,--MID(GEOMETRY!$H$32,15+18,2),--MID(GEOMETRY!$H$32,14+18,2))) -> 40 | L17: 6 | M17: =IF(L17>$D$17,"",L17) -> 
C18: ninf | D18: =D9/D15 -> 5 | E18: mm | F18: 8 | I18: =IF(G18="","",IF(--MID(GEOMETRY!$H$31,3,1)=1,--MID(GEOMETRY!$H$32,15+21,2),--MID(GEOMETRY!$H$32,14+21,2))) ->  | L18: 7
C19: (d1vitesup) | D19: 50 | E19: mm | F19: 9 | I19: =IF(G19="","",IF(--MID(GEOMETRY!$H$31,3,1)=1,--MID(GEOMETRY!$H$32,15+24,2),--MID(GEOMETRY!$H$32,14+24,2))) ->  | L19: 8
C20: (d1viteinf | D20: 100 | E20: mm | F20: 10 | I20: =IF(G20="","",IF(--MID(GEOMETRY!$H$31,3,1)=1,--MID(GEOMETRY!$H$32,15+27,2),--MID(GEOMETRY!$H$32,14+27,2))) ->  | L20: 9
C21: htav | D21: =IF(GEOMETRY!H42="N",0,GEOMETRY!I42) -> 0 | E21: mm | F21: 11 | I21: =IF(G21="","",IF(--MID(GEOMETRY!$H$31,3,1)=1,--MID(GEOMETRY!$H$32,15+30,2),--MID(GEOMETRY!$H$32,14+30,2))) ->  | L21: 10
C22: ltav | D22: =D23+60 -> 260 | E22: mm | L22: 11
C23: LC | D23: =GEOMETRY!H67 -> 200 | E23: mm | L23: 12
L24: 13
L25: 14
L26: 15
L27: 16
L28: 17
L29: 18
L30: 19
L31: 20
L32: 21
L33: 22
L34: 23
L35: 24
L36: 25
I38: x | J38: y
F39: 1 | G39: =IF(F39<$D$11*2,F39,IF(F39=$D$11*2,F39,"")) -> 1 | H39: =IF(G39="",0,1) -> 1 | I39: =0*H39 -> 0 | J39: 0 | L39: =I39+$D$9+$D$23 -> 1200 | M39: =J39 -> 0
F40: 2 | G40: =IF(F40<$D$11*2,F40,IF(F40=$D$11*2,F40,"")) -> 2 | H40: =IF(G40="",0,1) -> 1 | I40: =$D$9*H40 -> 1000 | J40: 0 | L40: =I40+$D$9+$D$23 -> 2200 | M40: =J40 -> 0
F41: 3 | G41: 3 | H41: 1 | I41: =0*H41 -> 0 | J41: =I11 -> 40 | L41: 1200 | M41: 40
F42: 4 | G42: 4 | H42: 1 | I42: =$D$9*H42 -> 1000 | J42: =I11 -> 40 | L42: 2200 | M42: 40
F43: 5 | G43: 5 | H43: 1 | I43: =0*H43 -> 0 | J43: =J41+I12 -> 80 | L43: 1200 | M43: 80
F44: 6 | G44: 6 | H44: 1 | I44: =$D$9*H44 -> 1000 | J44: =J42+I12 -> 80 | L44: 2200 | M44: 80
F45: 7 | G45: 7 | H45: 1 | I45: =0*H45 -> 0 | J45: =J43+I13 -> 110 | L45: 1200 | M45: 110 | AJ45: =I65+CONCRETE!M14 -> 1020 | AK45: =D21+CONCRETE!M14 -> 20
F46: 8 | G46: 8 | H46: 1 | I46: =$D$9*H46 -> 1000 | J46: =J44+I13 -> 110 | L46: 2200 | M46: 110 | AJ46: =I66+CONCRETE!M14 -> 1020 | AK46: =J66-CONCRETE!M14 -> 240
F47: 9 | G47: 9 | H47: 1 | I47: =0*H47 -> 0 | J47: =J45+I14 -> 150 | L47: 1200 | M47: 150 | AJ47: =AJ46+D23-2*CONCRETE!M14 -> 1180 | AK47: =AK46 -> 240
F48: 10 | G48: 10 | H48: 1 | I48: =$D$9*H48 -> 1000 | J48: =J46+I14 -> 150 | L48: 2200 | M48: 150 | AJ48: =AJ47 -> 1180 | AK48: =AK45 -> 20
F49: 11 | G49: 11 | H49: 1 | I49: =0*H49 -> 0 | J49: =J47+I15 -> 180 | L49: 1200 | M49: 180 | AJ49: =AJ45 -> 1020 | AK49: =AK45 -> 20
F50: 12 | G50: 12 | H50: 1 | I50: =$D$9*H50 -> 1000 | J50: =J48+I15 -> 180 | L50: 2200 | M50: 180
F51: 13 | G51: 13 | H51: 1 | I51: =0*H51 -> 0 | J51: =J49+I16 -> 220 | L51: 1200 | M51: 220
F52: 14 | G52: =IF(F52<$D$11*2,F52,IF(F52=$D$11*2,F52,"")) -> 14 | H52: 1 | I52: =$D$9*H52 -> 1000 | J52: =J50+I16 -> 220 | L52: 2200 | M52: 220 | AJ52: =I65+GEOMETRY!H58+GEOMETRY!H53/2 -> 1028 | AK52: =GEOMETRY!H66 -> 24
F53: 15 | H53: 0 | I53: =0*H53 -> 0 | J53: =J51+I17 -> 260 | L53: 1200 | M53: 260 | AJ53: =AJ52 -> 1028 | AK53: =D10-GEOMETRY!H58+D211 -> 236
F54: 16 | H54: 0 | I54: =$D$9*H54 -> 0 | J54: =J52+I17 -> 260 | L54: 1200 | M54: 260 | AJ54: =I67-GEOMETRY!H58-GEOMETRY!H53/2 -> 1172 | AK54: =AK52 -> 24
F55: 17 | H55: 0 | I55: =0*H55 -> 0 | J55: =J53+I18 ->  | L55: 1200 | AJ55: =AJ54 -> 1172 | AK55: =AK53 -> 236
F56: 18 | H56: 0 | I56: =$D$9*H56 -> 0 | J56: =J54+I18 ->  | L56: 1200
F57: 19 | H57: 0 | I57: =0*H57 -> 0 | J57: =J55+I19 ->  | L57: 1200
F58: 20 | H58: 0 | I58: =$D$9*H58 -> 0 | J58: =J56+I19 ->  | L58: 1200
F59: 21 | H59: 0 | I59: =0*H59 -> 0 | J59: =J57+I20 ->  | L59: 1200
F60: 22 | G60: =IF(F60<$D$11*2,F60,IF(F60=$D$11*2,F60,"")) ->  | H60: 0 | I60: =$D$9*H60 -> 0 | J60: =J58+I20 ->  | L60: 1200
F61: 23 | I61: 0 | J61: =D10 -> 260 | L61: =I61+$D$9+$D$23 -> 1200 | M61: 260
F62: 24 | I62: =D9 -> 1000 | J62: =D10 -> 260 | L62: 2200 | M62: 260
I65: =I62 -> 1000 | J65: =D21 -> 0
I66: =I65 -> 1000 | J66: =J62 -> 260
I67: =L61 -> 1200 | J67: =D21 -> 0
I68: =L61 -> 1200 | J68: =M61 -> 260
F73: viti | I73: =I62-GEOMETRY!H74 -> 730 | J73: =D16 -> 45 | M73: =L39-GEOMETRY!H73 -> 1020 | N73: =J73+10 -> 55
I74: =I73+GEOMETRY!H39 -> 1180 | J74: =D16 -> 45 | M74: =L39+GEOMETRY!H74 -> 1470 | N74: =J74+10 -> 55
I77: =I73 -> 730 | J77: =D10-D16 -> 215 | M77: =M73 -> 1020 | N77: =D10-D16+10 -> 225
I78: =I74 -> 1180 | J78: =D10-D16 -> 215 | M78: =M74 -> 1470 | N78: =D10-D16+10 -> 225
F81: tavoletta
I82: =I62-(D22-D23)/2 -> 970 | J82: =D21 -> 0
I83: =I62+D23+(D22-D23)/2 -> 1230 | J83: =J82 -> 0
I85: =I82 -> 970 | J85: =0 -> 0
I86: =I83 -> 1230 | J86: =0 -> 0
I88: =I82 -> 970 | J88: 0
I89: =I88 -> 970 | J89: =J83 -> 0
I91: =I83 -> 1230 | J91: =0 -> 0
I92: =I83 -> 1230 | J92: =J89 -> 0
F95: Concrete | I95: =I65 -> 1000 | J95: =D10 -> 260
I96: =D9+D23 -> 1200 | J96: =J95 -> 260
